Workbook

Sheet Cover
D2: SET Global Fringes / Handling Fee / Tax | Q2: Production Fees | X2: Insurance
D3: (Can be overridden in sections)
D4: Fringes | G4: Handling | J4: Post MU | M4: Post Tax | Q4: A-K | T4: Section X | X4: Production | AA4: Post
X5: Insurance | AA5: Insurance
D6: 0 | G6: 0 | J6: 0 | M6: 0 | Q6: 0 | T6: 0 | X6: 0 | AA6: 0
BX7: CITY
BX8: Hide | BY8: Show | BZ8: Show
C9: Job Information | BX9: DETAIL
C10: Date | L10: Advertiser Job ID | U10: Brand | BX10: Hide | BY10: Show | BZ10: Hide
C11: Job Name | L11: Agency Job ID | U11: Product
C12: Advertiser | L12: Production Job ID(s) | U12: Traffic Information
C13: Advertiser Address
C15: Production Information
C16: Production Company | L16: Agency | U16: Pre-Production Days:
C17: Editorial Co | L17: Agency Address | U17: Build & Strike Days:
C18: VFX Co | U18: Pre-Light:
C19: Music Co | U19: Stage Days:
U20: Location Days:
C21: Production Contact | L21: Agency Producer | U21: Locations:
C22: Email | L22: Phone
C23: Editorial Producer | L23: Email
C24: Email | L24: Agency Creative Team | U24: Spot Titles & Lengths:
C25: VFX Producer
C26: Email
C27: Music producer
C28: Email
C29: Director(s) | L29: Agency Business Mgr
L30: Phone
C31: Editor | L31: Email
C32: Add'l Post Creative(s)
C34: Summary of Estimated Production Costs
D35: Production | Z35: Estimate | AE35: Actual | AI35: Variance
C36: A. | E36: =A!D10 -> Prep Crew | N36: Total A | Z36: =Total_A -> 0 | AE36: =Actual_A -> 0 | AI36: =AE36-Z36 -> 0
C37: B. | E37: =B!D10 -> Shoot Crew | N37: Total B | Z37: =Total_B -> 0 | AE37: =Actual_B -> 0 | AI37: =AE37-Z37 -> 0
C38: C. | E38: =CDE!D8 -> Prep & Wrap Expenses | N38: Total C | Z38: =Total_C -> 0 | AE38: =Actual_C -> 0 | AI38: 0
C39: D. | E39: =CDE!D25 -> Location Expenses | N39: Total D | Z39: =Total_D -> 0 | AE39: =Actual_D -> 0 | AI39: 0
C40: E. | E40: =CDE!D55 -> Props, Wardrobe & Animals | N40: Total E | Z40: =Total_E -> 0 | AE40: =Actual_E -> 0 | AI40: 0
C41: F. | E41: =FGH!D10 -> Studio Costs | N41: Total F | Z41: =Total_F -> 0 | AE41: =Actual_F -> 0 | AI41: 0
C42: G. | E42: =FGH!D31 -> Art Department Labor | N42: Total G | Z42: =Total_G -> 0 | AE42: =Actual_G -> 0 | AI42: 0
C43: H. | E43: =FGH!D51 -> Art Department Expenses | N43: Total H | Z43: =Total_H -> 0 | AE43: =Actual_H -> 0 | AI43: 0
C44: I. | E44: =IJKL!D8 -> Equipment Rental | N44: Total I | Z44: =Total_I -> 0 | AE44: =Actual_I -> 0 | AI44: 0
C45: J. | E45: =IJKL!D30 -> Media | N45: Total J | Z45: =Total_J -> 0 | AE45: =Actual_J -> 0 | AI45: 0 | AM45: Production Subject to Production Fee / Insurance
C46: K. | E46: =IJKL!D40 -> Miscellaneous Production Costs | N46: Total K | Z46: =Total_K -> 0 | AE46: =Actual_K -> 0 | AI46: 0 | AM46: PF | AN46: Ins | AT46: Prod Fee Subj | AW46: Ins Subj
N47: Sub-Total A to K | Z47: =SUM(Z36:AC46) -> 0 | AE47: =SUM(AE36:AG46) -> 0 | AI47: 0 | AO47: =N47 -> Sub-Total A to K | AT47: =IF($AM$47="X",Z47,0) -> 0 | AW47: =IF(AN47="X",Z47,0) -> 0
C48: L | E48: =IJKL!D54 -> Director's Fees | N48: Total L | Z48: =Total_L -> 0 | AE48: =Actual_L -> 0 | AI48: 0 | AO48: =C48&" "&E48 -> L Director's Fees | AT48: =IF(AM48="X",Z48,0) -> 0 | AW48: 0
C49: M. | E49: =MN!D8 -> Talent | N49: Total M | Z49: =Total_M -> 0 | AE49: =Actual_M -> 0 | AI49: 0 | AO49: =C49&" "&E49 -> M. Talent | AT49: =IF(AM49="X",Z49,0) -> 0 | AW49: =IF(AN49="X",Z49,0) -> 0
C50: N. | E50: =MN!D55 -> Talent Expenses | N50: Total N | Z50: =Total_N -> 0 | AE50: =Actual_N -> 0 | AI50: 0 | AO50: N. Talent Expenses | AT50: =IF(AM50="X",Z50,0) -> 0 | AW50: =IF(AN50="X",Z50,0) -> 0
C51: O. | E51: =O!D8 -> Other | N51: Total O | Z51: =Total_O -> 0 | AE51: =Actual_O -> 0 | AI51: 0 | AO51: O. Other | AT51: =IF(AM51="X",Z51,0) -> 0 | AW51: =IF(AN51="X",Z51,0) -> 0
C52: =IF(AI79="X",C79,"") ->  | E52: =IF(AI79="X",E79,"") ->  | N52: =IF(AI79="X","Total "&E79,"") ->  | Z52: =IF(AI79="X",Z79,0) -> 0 | AE52: =IF(AI79="X",'P1. Breakout Expenses'!Actual_P,0) -> 0 | AI52: 0 | AT52: 0 | AW52: 0
C53: =IF(AI80="X",C80,"") ->  | E53: =IF(AI80="X",E80,"") ->  | N53: =IF(AI80="X","Total " & E80,"") ->  | Z53: =IF(AI80="X",Z80,0) -> 0 | AE53: =IF(AI80="X",'P2. Breakout Labor'!Actual_P,0) -> 0 | AI53: =AE53-Z53 -> 0 | AO53: =C53&" "&E53 ->  | AT53: =IF(AM53="X",Z53,0) -> 0 | AW53: =IF(AN53="X",Z53,0) -> 0
C54: =IF(AI81="X",C81,"") ->  | E54: =IF(AI81="X",E81,"") ->  | N54: =IF(AI81="X","Total " & E81,"") ->  | Z54: =IF(AI81="X",Z81,0) -> 0 | AE54: =IF(AI81="X",'P3. Breakout Talent'!Actual_P,0) -> 0 | AI54: =AE54-Z54 -> 0 | AO54: =C54&" "&E54 ->  | AT54: =IF(AM54="X",Z54,0) -> 0 | AW54: =IF(AN54="X",Z54,0) -> 0
C55: =IF(AI82="X",C82,"") ->  | E55: =IF(AI82="X",E82,"") ->  | N55: =IF(AI82="X","Total " & E82,"") ->  | Z55: =IF(AI82="X",Z82,0) -> 0 | AE55: =IF(AI82="X",'P4. Breakout Blank'!Actual_P,0) -> 0 | AI55: =AE55-Z55 -> 0 | AO55: =C55&" "&E55 ->  | AT55: =IF(AM55="X",Z55,0) -> 0 | AW55: =IF(AN55="X",Z55,0) -> 0
N56: Insurance | Z56: =(SUM(INDIRECT("Cover!AW47:AY"&ROW(PROD_Ins_Bot)))*PInsPerc) -> 0 | AE56: =Z56 -> 0 | AI56: 0
N57: Production Fee | Z57: =(SUM(INDIRECT("Cover!AT47:AV"&ROW(PROD_PFee_Bot)))*PFeePerc) -> 0 | AE57: =Z57 -> 0 | AI57: =AE57-Z57 -> 0
U58: Production Total | Z58: =SUM(Z47:AC57) -> 0 | AE58: =SUM(AE47:AG57) -> 0 | AI58: =AE58-Z58 -> 0 | AM58: Post Subject to Insurance
D60: Post | AM60: Ins | AT60: Ins Subj
C61: Q. | E61: =Q!D5 -> Editorial | N61: Total Q | Z61: =Total_Q -> 0 | AE61: =Actual_Q -> 0 | AI61: =AE61-Z61 -> 0 | AN61: =E61 -> Editorial | AT61: =IF(AM61="X",Z61,0) -> 0
C62: R. | E62: ='R'!D5 -> Social Versions | N62: Total R | Z62: =Total_R -> 0 | AE62: =Actual_R -> 0 | AI62: =AE62-Z62 -> 0 | AN62: =E62 -> Social Versions | AT62: 0
C63: S. | E63: =S!D5 -> Audio | N63: Total S | Z63: =Total_S -> 0 | AE63: =Actual_S -> 0 | AI63: 0 | AN63: Audio | AT63: 0
C64: T. | E64: =T!D5 -> Finishing | N64: Total T | Z64: =Total_T -> 0 | AE64: =Actual_T -> 0 | AI64: 0 | AN64: Finishing | AT64: 0
C65: V. | E65: =VW!D5 -> Miscellaneous Editorial | N65: Total V | Z65: =Total_V -> 0 | AE65: =Actual_V -> 0 | AI65: =AE65-Z65 -> 0 | AN65: Miscellaneous Editorial | AT65: 0
C66: W. | E66: =VW!D43 -> Editorial Labor & Creative Fees | N66: Total W | Z66: =Total_W -> 0 | AE66: =Actual_W -> 0 | AI66: 0 | AN66: Editorial Labor & Creative Fees | AT66: 0
C67: X. | E67: =X!D6 -> Visual Effects, Design & Animation, Interactive | N67: Total X | Z67: =Total_X -> 0 | AE67: =Actual_X -> 0 | AI67: =AE67-Z67 -> 0 | AN67: Visual Effects, Design & Animation, Interactive | AT67: 0
N68: Post-Production Sub-Total | Z68: =SUM(Z61:AC67) -> 0 | AE68: =SUM(AE61:AG67) -> 0 | AI68: 0 | AT68: =SUM(AT61:AV67) -> 0
N69: Section X Production Fee | Z69: =Z67*T6 -> 0 | AE69: =Z69 -> 0 | AI69: 0 | AL69: X
N70: Post-Production Insurance | Z70: =AT68*AA6 -> 0 | AE70: =Z70 -> 0 | AI70: 0
N71: Post-Production Markup | Z71: =Markup_R+Markup_S+Markup_T+Markup_Q+Markup_V -> 0 | AE71: =Z71 -> 0 | AI71: 0
N72: Post-Production Tax | Z72: =Tax_Q+Tax_R+Tax_S+Tax_T+Tax_V -> 0 | AE72: =Z72 -> 0 | AI72: 0
U73: Post-Production Total | Z73: =SUM(Z68:AC72) -> 0 | AE73: =SUM(AE68:AG72) -> 0 | AI73: =AE73-Z73 -> 0
C75: X | U75: Grand Total | Z75: =Z73+Z58 -> 0 | AE75: =AE73+AE58 -> 0 | AI75: =AE75-Z75 -> 0
C77: P SECTIONS | AI77: Included P Sections | AU77: + | AV77: Add New P Section
D78: P. | E78: Additional Production Estimates | AI78: [X] | AJ78: Mark X to include in production total | AR78: Included | BD78: =MAX(INDIRECT("BD"&ROW(PTop)+1&":BD"&ROW(PBottom)))+1 -> 5
C79: =IF('P1. Breakout Expenses'!P_NUM>0,'P1. Breakout Expenses'!P_NUM,"") -> P1. | E79: =IF('P1. Breakout Expenses'!P_TITLE>0,'P1. Breakout Expenses'!P_TITLE,"") -> Breakout Expenses | Z79: =[0]!P_TOT -> 492 | AJ79: =E79 -> Breakout Expenses | AR79: =IF(AI79="X",Z79,0) -> 0 | AU79: CANNOT REMOVE P1 | BD79: 1
C80: =IF('P2. Breakout Labor'!P_NUM>0,'P2. Breakout Labor'!P_NUM,"") -> P2. | E80: =IF('P2. Breakout Labor'!P_TITLE>0,'P2. Breakout Labor'!P_TITLE,"") -> Breakout Labor | Z80: ='P2. Breakout Labor'!P_TOT -> 476.1 | AJ80: =E80 -> Breakout Labor | AR80: =IF(AI80="X",Z80,0) -> 0 | AU80: - | AV80: ="Remove "&C80&" "&E80 -> Remove P2. Breakout Labor | BD80: 2
C81: =IF('P3. Breakout Talent'!P_NUM>0,'P3. Breakout Talent'!P_NUM,"") -> P3. | E81: =IF('P3. Breakout Talent'!P_TITLE>0,'P3. Breakout Talent'!P_TITLE,"") -> Breakout Talent | Z81: ='P3. Breakout Talent'!P_TOT -> 2300 | AJ81: =E81 -> Breakout Talent | AR81: =IF(AI81="X",Z81,0) -> 0 | AU81: - | AV81: ="Remove "&C81&" "&E81 -> Remove P3. Breakout Talent | BD81: 3
C82: =IF('P4. Breakout Blank'!P_NUM>0,'P4. Breakout Blank'!P_NUM,"") -> P4. | E82: =IF('P4. Breakout Blank'!P_TITLE>0,'P4. Breakout Blank'!P_TITLE,"") -> Breakout Blank | Z82: ='P4. Breakout Blank'!P_TOT -> 0 | AJ82: =E82 -> Breakout Blank | AR82: =IF(AI82="X",Z82,0) -> 0 | AU82: - | AV82: ="Remove "&C82&" "&E82 -> Remove P4. Breakout Blank | BD82: 4
D84: Contingencies (Not Billed)
C85: 1.
C86: 2.
C87: 3.
C88: 4.
C90: [THIS LINE AND BELOW DO NOT PRINT]

Sheet Bid Notes
D3: Notes

Sheet A
BY1: take2
C10: A. | D10: Prep Crew | AJ10: Payroll OT Calculator | AR10: Day Rate to State Law
E11: Description | N11: Days | Q11: Rate | U11: Overtime | X11: Estimate | AB11: Actual | AF11: Variance | AJ11: Base | AL11: Hourly | AN11: State OT | AP11: Fringes | AR11: State | AT11: State Day | AV11: State Day
U12: 1.5 | V12: 2 | AJ12: Hours | AL12: Rate | AN12: Rate | AP12: Rate | AR12: Basis | AT12: Strt Total | AV12: OT Total
C13: 1 | E13: Line Producer | O13: days | P13: @ | Q13: 200 | S13: x | W13: =IF(ISNUMBER(N13),(N13*Q13*IF(ISNUMBER(T13),T13,1)+(IFERROR(U13*(Q13/AJ13)*1.5,0))+(IFERROR(V13*(Q13/AJ13)*2,0))),0) -> 0 | AB13: 0 | AF13: =AB13-W13 -> 0 | AJ13: 12 | AL13: =IFERROR(Q13/(AJ13+((AJ13-HourlyState_A)*0.5)),0) -> 14.28571429 | AN13: =AL13*1.5 -> 21.42857143 | AP13: 0 | AR13: 8 | AT13: =AL13*HourlyState_A -> 114.2857143 | AV13: =(AJ13-HourlyState_A)*AN13 -> 85.71428571
C14: 2 | E14: Assistant Director | O14: days | P14: @ | S14: x | W14: 0 | AB14: 0 | AF14: 0 | AJ14: 12 | AL14: 0 | AN14: 0 | AT14: 0 | AV14: 0
C15: 3 | E15: Director of Photography | O15: days | P15: @ | S15: x | W15: 0 | AB15: 0 | AF15: 0 | AJ15: 10 | AL15: 0 | AN15: 0 | AT15: 0 | AV15: 0
C16: 4 | E16: 1st Assistant Camera | O16: days | P16: @ | S16: x | W16: 0 | AB16: 0 | AF16: 0 | AJ16: 10 | AL16: 0 | AN16: 0 | AT16: 0 | AV16: 0
C17: 5 | E17: 2nd Assistant Camera | O17: days | P17: @ | S17: x | W17: 0 | AB17: 0 | AF17: 0 | AJ17: 10 | AL17: 0 | AN17: 0 | AT17: 0 | AV17: 0
C18: 6 | E18: DIT | O18: days | P18: @ | S18: x | W18: 0 | AB18: 0 | AF18: 0 | AJ18: 10 | AL18: 0 | AN18: 0 | AT18: 0 | AV18: 0
C19: 7 | E19: Prop Master | O19: days | P19: @ | S19: x | W19: 0 | AB19: 0 | AF19: 0 | AJ19: 10 | AL19: 0 | AN19: 0 | AT19: 0 | AV19: 0
C20: 8 | E20: Asst Props | O20: days | P20: @ | S20: x | W20: 0 | AB20: 0 | AF20: 0 | AJ20: 10 | AL20: 0 | AN20: 0 | AT20: 0 | AV20: 0
C21: 9 | O21: days | P21: @ | S21: x | W21: 0 | AB21: 0 | AF21: 0 | AJ21: 10 | AL21: 0 | AN21: =AL21*1.5 -> 0 | AT21: 0 | AV21: 0
C22: 10 | E22: Camera Op | O22: days | P22: @ | S22: x | W22: 0 | AB22: 0 | AF22: 0 | AJ22: 10 | AL22: 0 | AN22: 0 | AT22: 0 | AV22: 0
C23: 11 | E23: Gaffer | O23: days | P23: @ | S23: x | W23: 0 | AB23: 0 | AF23: 0 | AJ23: 10 | AL23: 0 | AN23: 0 | AT23: 0 | AV23: 0
C24: 12 | E24: Best Boy Electric | O24: days | P24: @ | S24: x | W24: 0 | AB24: 0 | AF24: 0 | AJ24: 10 | AL24: 0 | AN24: 0 | AT24: 0 | AV24: 0
C25: 13 | E25: 3rd Electric | O25: days | P25: @ | S25: x | W25: 0 | AB25: 0 | AF25: 0 | AJ25: 10 | AL25: 0 | AN25: 0 | AT25: 0 | AV25: 0
C26: 14 | E26: Electric/Driver | O26: days | P26: @ | S26: x | W26: 0 | AB26: 0 | AF26: 0 | AJ26: 10 | AL26: 0 | AN26: 0 | AT26: 0 | AV26: 0
C27: 15 | E27: Prep/Strike/Pre Rig Crew | O27: days | P27: @ | S27: x | W27: 0 | AB27: 0 | AF27: 0 | AJ27: 10 | AL27: 0 | AN27: 0 | AT27: 0 | AV27: 0
C28: 16 | E28: Key Grip | O28: days | P28: @ | S28: x | W28: 0 | AB28: 0 | AF28: 0 | AJ28: 10 | AL28: 0 | AN28: =AL28*1.5 -> 0 | AT28: 0 | AV28: 0
C29: 17 | E29: Best Boy Grip | O29: days | P29: @ | S29: x | W29: 0 | AB29: 0 | AF29: 0 | AJ29: 10 | AL29: 0 | AN29: 0 | AT29: 0 | AV29: 0
C30: 18 | E30: 3rd Grip | O30: days | P30: @ | S30: x | W30: 0 | AB30: 0 | AF30: 0 | AJ30: 10 | AL30: 0 | AN30: 0 | AT30: 0 | AV30: 0
C31: 19 | E31: Grip/Driver | O31: days | P31: @ | S31: x | W31: 0 | AB31: 0 | AF31: 0 | AJ31: 10 | AL31: 0 | AN31: 0 | AT31: 0 | AV31: 0
C32: 20 | E32: Crane Tech 2x | O32: days | P32: @ | S32: x | W32: 0 | AB32: 0 | AF32: 0 | AJ32: 10 | AL32: 0 | AN32: 0 | AT32: 0 | AV32: 0
C33: 21 | E33: Crane Head Tech | O33: days | P33: @ | S33: x | W33: 0 | AB33: 0 | AF33: 0 | AJ33: 10 | AL33: 0 | AN33: 0 | AT33: 0 | AV33: 0
C34: 22 | E34: Steadi Cam Op | O34: days | P34: @ | S34: x | W34: 0 | AB34: 0 | AF34: 0 | AJ34: 10 | AL34: 0 | AN34: 0 | AT34: 0 | AV34: 0
C35: 23 | E35: Choreographer | O35: days | P35: @ | S35: x | W35: 0 | AB35: 0 | AF35: 0 | AJ35: 8 | AL35: 0 | AN35: 0 | AT35: 0 | AV35: 0
C36: 24 | E36: Make-Up/Hair | O36: days | P36: @ | S36: x | W36: 0 | AB36: 0 | AF36: 0 | AJ36: 8 | AL36: 0 | AN36: 0 | AT36: 0 | AV36: 0
C37: 25 | E37: Make-Up/Hair Asst | O37: days | P37: @ | S37: x | W37: 0 | AB37: 0 | AF37: 0 | AJ37: 8 | AL37: 0 | AN37: 0 | AT37: 0 | AV37: 0
C38: 26 | E38: Wardrobe Stylist | O38: days | P38: @ | S38: x | W38: 0 | AB38: 0 | AF38: 0 | AJ38: 8 | AL38: 0 | AN38: 0 | AT38: 0 | AV38: 0
C39: 27 | E39: Asst Wardrobe | O39: days | P39: @ | S39: x | W39: 0 | AB39: 0 | AF39: 0 | AJ39: 8 | AL39: 0 | AN39: 0 | AT39: 0 | AV39: 0
C40: 28 | E40: Script Supervisor | O40: days | P40: @ | S40: x | W40: 0 | AB40: 0 | AF40: 0 | AJ40: 10 | AL40: 0 | AN40: 0 | AT40: 0 | AV40: 0
C41: 29 | E41: Boom Operator | O41: days | P41: @ | S41: x | W41: 0 | AB41: 0 | AF41: 0 | AJ41: 10 | AL41: =IFERROR(Q41/(AJ41+((AJ41-8)*0.5)),0) -> 0 | AN41: 0 | AT41: 0 | AV41: 0
C42: 30 | E42: Sound Mixer | O42: days | P42: @ | S42: x | W42: 0 | AB42: 0 | AF42: 0 | AJ42: 10 | AL42: 0 | AN42: 0 | AT42: 0 | AV42: 0
C43: 31 | E43: VTR Operator | O43: days | P43: @ | S43: x | W43: 0 | AB43: 0 | AF43: 0 | AJ43: 10 | AL43: 0 | AN43: 0 | AT43: 0 | AV43: 0
C44: 32 | E44: Stunt Coordinator | O44: days | P44: @ | S44: x | W44: 0 | AB44: 0 | AF44: 0 | AJ44: 10 | AL44: 0 | AN44: 0 | AT44: 0 | AV44: 0
C45: 33 | E45: Safety Officer | O45: days | P45: @ | S45: x | W45: =IF(ISNUMBER(N45),(N45*Q45*IF(ISNUMBER(T45),T45,1)+(IFERROR(U45*(Q45/AJ45)*1.5,0))+(IFERROR(V45*(Q45/AJ45)*2,0))),0) -> 0 | AB45: 0 | AF45: =AB45-W45 -> 0 | AJ45: 10 | AL45: 0 | AN45: 0 | AT45: =AL45*HourlyState_A -> 0 | AV45: =(AJ45-HourlyState_A)*AN45 -> 0
C46: 34 | E46: Site Rep | O46: days | P46: @ | S46: x | W46: 0 | AB46: 0 | AF46: 0 | AJ46: 10 | AL46: 0 | AN46: 0 | AT46: 0 | AV46: 0
C47: 35 | E47: Storyboard Artist | O47: days | P47: @ | S47: x | W47: 0 | AB47: 0 | AF47: 0 | AJ47: 10 | AL47: 0 | AN47: 0 | AT47: 0 | AV47: 0
C48: 36 | E48: Catering Crew | O48: days | P48: @ | S48: x | W48: 0 | AB48: 0 | AF48: 0 | AJ48: 10 | AL48: 0 | AN48: 0 | AT48: 0 | AV48: 0
C49: 37 | E49: Location Scout | O49: days | P49: @ | S49: x | W49: 0 | AB49: 0 | AF49: 0 | AJ49: 10 | AL49: 0 | AN49: 0 | AT49: 0 | AV49: 0
C50: 38 | E50: Compliance Assistant | O50: days | P50: @ | S50: x | W50: 0 | AB50: 0 | AF50: 0 | AJ50: 10 | AL50: 0 | AN50: 0 | AT50: 0 | AV50: 0
C51: 39 | E51: 2nd AD | O51: days | P51: @ | S51: x | W51: 0 | AB51: 0 | AF51: 0 | AJ51: 10 | AL51: 0 | AN51: 0 | AT51: 0 | AV51: 0
C52: 40 | E52: Medic | O52: days | P52: @ | Q52: 450 | S52: x | W52: 0 | AB52: 0 | AF52: 0 | AJ52: 10 | AL52: 40.90909091 | AN52: 61.36363636 | AT52: 327.2727273 | AV52: 122.7272727
C53: 41 | E53: Craft Service | O53: days | P53: @ | S53: x | W53: 0 | AB53: 0 | AF53: 0 | AJ53: 10 | AL53: 0 | AN53: 0 | AT53: 0 | AV53: 0
C54: 42 | E54: Firefighter | O54: days | P54: @ | S54: x | W54: 0 | AB54: 0 | AF54: 0 | AJ54: 10 | AL54: 0 | AN54: 0 | AT54: 0 | AV54: 0
C55: 43 | E55: Police Officers/Ranger/CHP | O55: days | P55: @ | S55: x | W55: 0 | AB55: 0 | AF55: 0 | AJ55: 10 | AL55: 0 | AN55: 0 | AT55: 0 | AV55: 0
C56: 44 | E56: Welfare/Teacher | O56: days | P56: @ | S56: x | W56: 0 | AB56: 0 | AF56: 0 | AJ56: 10 | AL56: 0 | AN56: 0 | AT56: 0 | AV56: 0
C57: 45 | E57: Gang Boss | O57: days | P57: @ | S57: x | W57: 0 | AB57: 0 | AF57: 0 | AJ57: 10 | AL57: 0 | AN57: 0 | AT57: 0 | AV57: 0
C58: 46 | E58: Teamster Drivers / Animal Wranglers | O58: days | P58: @ | S58: x | W58: 0 | AB58: 0 | AF58: 0 | AJ58: 10 | AL58: 0 | AN58: 0 | AT58: 0 | AV58: 0
C59: 47 | E59: Production Supervisor | O59: days | P59: @ | S59: x | W59: 0 | AB59: 0 | AF59: 0 | AJ59: 10 | AL59: 0 | AN59: 0 | AT59: 0 | AV59: 0
C60: 48 | E60: Assistant Production Supervisor | O60: days | P60: @ | S60: x | W60: 0 | AB60: 0 | AF60: 0 | AJ60: 10 | AL60: 0 | AN60: 0 | AT60: 0 | AV60: 0
C61: 49 | E61: Production Assistant | O61: days | P61: @ | S61: x | W61: 0 | AB61: 0 | AF61: 0 | AJ61: 10 | AL61: 0 | AN61: 0 | AT61: 0 | AV61: 0
C62: 50 | E62: Production Assistant | O62: days | P62: @ | S62: x | W62: 0 | AB62: 0 | AF62: 0 | AJ62: 10 | AL62: 0 | AN62: 0 | AT62: 0 | AV62: 0
O63: Sub Total A | W63: =SUM(W13:Z62) -> 0 | AB63: =SUM(AB13:AD62) -> 0 | AF63: =AB63-SubTotal_A -> 0
O64: Fringes | W64: =IFERROR(FringeRate_A*SubTotal_A,0) -> 0 | AB64: 0 | AF64: =AB64-SubTotal_A -> 0
O65: Total | W65: =W64+W63 -> 0 | AB65: =SUM(AB63:AD64) -> 0 | AF65: =AB65-SubTotal_A -> 0

Sheet B
BY1: take2
C10: B. | D10: Shoot Crew | AJ10: Payroll OT Calculator | AR10: Day Rate to State Law
E11: Description | N11: Days | Q11: Rate | U11: Overtime | W11: Estimate | AB11: Actual | AF11: Variance | AJ11: Base | AL11: Hourly | AN11: State OT | AP11: Fringes | AR11: State | AT11: State Day | AV11: State Day
U12: 1.5 | V12: 2 | AJ12: Hours | AL12: Rate | AN12: Rate | AP12: Rate | AR12: Basis | AT12: Strt Total | AV12: OT Total
C13: 51 | E13: Line Producer | O13: days | P13: @ | Q13: 200 | S13: x | W13: =IF(ISNUMBER(N13),(N13*Q13*IF(ISNUMBER(T13),T13,1)+(IFERROR(U13*(Q13/AJ13)*1.5,0))+(IFERROR(V13*(Q13/AJ13)*2,0))),0) -> 0 | AB13: 0 | AF13: =AB13-W13 -> 0 | AJ13: 12 | AL13: =IFERROR(Q13/(AJ13+((AJ13-HourlyState_B)*0.5)),0) -> 14.28571429 | AN13: =AL13*1.5 -> 21.42857143 | AP13: 0 | AR13: 8 | AT13: =AL13*HourlyState_B -> 114.2857143 | AV13: =(AJ13-HourlyState_B)*AN13 -> 85.71428571
C14: 52 | E14: Assistant Director | O14: days | P14: @ | S14: x | W14: 0 | AB14: 0 | AF14: 0 | AJ14: 10 | AL14: 0 | AN14: 0 | AT14: =AL14*HourlyState_B -> 0 | AV14: 0
C15: 53 | E15: Director of Photography | O15: days | P15: @ | S15: x | W15: 0 | AB15: 0 | AF15: 0 | AJ15: 10 | AL15: 0 | AN15: 0 | AT15: 0 | AV15: 0
C16: 54 | E16: 1st Assistant Camera | O16: days | P16: @ | S16: x | W16: 0 | AB16: 0 | AF16: 0 | AJ16: 10 | AL16: 0 | AN16: 0 | AT16: 0 | AV16: 0
C17: 55 | E17: 2nd Assistant Camera | O17: days | P17: @ | S17: x | W17: 0 | AB17: 0 | AF17: 0 | AJ17: 10 | AL17: 0 | AN17: 0 | AT17: 0 | AV17: 0
C18: 56 | E18: DIT | O18: days | P18: @ | S18: x | W18: 0 | AB18: 0 | AF18: 0 | AJ18: 10 | AL18: 0 | AN18: 0 | AT18: 0 | AV18: 0
C19: 57 | E19: Prop Master | O19: days | P19: @ | S19: x | W19: 0 | AB19: 0 | AF19: 0 | AJ19: 10 | AL19: 0 | AN19: 0 | AT19: 0 | AV19: 0
C20: 58 | E20: Asst Props | O20: days | P20: @ | S20: x | W20: 0 | AB20: 0 | AF20: 0 | AJ20: 10 | AL20: 0 | AN20: 0 | AT20: 0 | AV20: 0
C21: 59 | O21: days | P21: @ | S21: x | W21: 0 | AB21: 0 | AF21: 0 | AJ21: 10 | AL21: 0 | AN21: =AL21*1.5 -> 0 | AT21: 0 | AV21: 0
C22: 60 | E22: Camera Op | O22: days | P22: @ | S22: x | W22: 0 | AB22: 0 | AF22: 0 | AJ22: 10 | AL22: 0 | AN22: 0 | AT22: 0 | AV22: 0
C23: 61 | E23: Gaffer | O23: days | P23: @ | S23: x | W23: 0 | AB23: 0 | AF23: 0 | AJ23: 10 | AL23: 0 | AN23: 0 | AT23: 0 | AV23: 0
C24: 62 | E24: Best Boy Electric | O24: days | P24: @ | S24: x | W24: 0 | AB24: 0 | AF24: 0 | AJ24: 10 | AL24: 0 | AN24: 0 | AT24: 0 | AV24: 0
C25: 63 | E25: 3rd Electric | O25: days | P25: @ | S25: x | W25: 0 | AB25: 0 | AF25: 0 | AJ25: 10 | AL25: 0 | AN25: 0 | AT25: 0 | AV25: 0
C26: 64 | E26: Electric/Driver | O26: days | P26: @ | S26: x | W26: 0 | AB26: 0 | AF26: 0 | AJ26: 10 | AL26: 0 | AN26: 0 | AT26: 0 | AV26: 0
C27: 65 | E27: Prep/Strike/Pre Rig Crew | O27: days | P27: @ | S27: x | W27: 0 | AB27: 0 | AF27: 0 | AJ27: 10 | AL27: 0 | AN27: 0 | AT27: 0 | AV27: 0
C28: 66 | E28: Key Grip | O28: days | P28: @ | S28: x | W28: 0 | AB28: 0 | AF28: 0 | AJ28: 10 | AL28: 0 | AN28: =AL28*1.5 -> 0 | AT28: 0 | AV28: 0
C29: 67 | E29: Best Boy Grip | O29: days | P29: @ | S29: x | W29: 0 | AB29: 0 | AF29: 0 | AJ29: 10 | AL29: 0 | AN29: 0 | AT29: 0 | AV29: 0
C30: 68 | E30: 3rd Grip | O30: days | P30: @ | S30: x | W30: 0 | AB30: 0 | AF30: 0 | AJ30: 10 | AL30: 0 | AN30: 0 | AT30: 0 | AV30: 0
C31: 69 | E31: Grip/Driver | O31: days | P31: @ | S31: x | W31: 0 | AB31: 0 | AF31: 0 | AJ31: 10 | AL31: 0 | AN31: 0 | AT31: 0 | AV31: 0
C32: 70 | E32: Crane Tech 2x | O32: days | P32: @ | S32: x | W32: 0 | AB32: 0 | AF32: 0 | AJ32: 10 | AL32: 0 | AN32: 0 | AT32: 0 | AV32: 0
C33: 71 | E33: Crane Head Tech | O33: days | P33: @ | S33: x | W33: 0 | AB33: 0 | AF33: 0 | AJ33: 10 | AL33: 0 | AN33: 0 | AT33: 0 | AV33: 0
C34: 72 | E34: Steadi Cam Op | O34: days | P34: @ | S34: x | W34: 0 | AB34: 0 | AF34: 0 | AJ34: 10 | AL34: 0 | AN34: 0 | AT34: 0 | AV34: 0
C35: 73 | E35: Choreographer | O35: days | P35: @ | S35: x | W35: 0 | AB35: 0 | AF35: 0 | AJ35: 8 | AL35: 0 | AN35: 0 | AT35: 0 | AV35: 0
C36: 74 | E36: Make-Up/Hair | O36: days | P36: @ | S36: x | W36: 0 | AB36: 0 | AF36: 0 | AJ36: 8 | AL36: 0 | AN36: 0 | AT36: 0 | AV36: 0
C37: 75 | E37: Make-Up/Hair Asst | O37: days | P37: @ | S37: x | W37: 0 | AB37: 0 | AF37: 0 | AJ37: 8 | AL37: 0 | AN37: 0 | AT37: 0 | AV37: 0
C38: 76 | E38: Wardrobe Stylist | O38: days | P38: @ | S38: x | W38: 0 | AB38: 0 | AF38: 0 | AJ38: 8 | AL38: 0 | AN38: 0 | AT38: 0 | AV38: 0
C39: 77 | E39: Asst Wardrobe | O39: days | P39: @ | S39: x | W39: 0 | AB39: 0 | AF39: 0 | AJ39: 8 | AL39: 0 | AN39: 0 | AT39: 0 | AV39: 0
C40: 78 | E40: Script Supervisor | O40: days | P40: @ | S40: x | W40: 0 | AB40: 0 | AF40: 0 | AJ40: 10 | AL40: 0 | AN40: 0 | AT40: 0 | AV40: 0
C41: 79 | E41: Boom Operator | O41: days | P41: @ | S41: x | W41: 0 | AB41: 0 | AF41: 0 | AJ41: 10 | AL41: 0 | AN41: 0 | AT41: 0 | AV41: 0
C42: 80 | E42: Sound Mixer | O42: days | P42: @ | S42: x | W42: 0 | AB42: 0 | AF42: 0 | AJ42: 10 | AL42: 0 | AN42: 0 | AT42: 0 | AV42: 0
C43: 81 | E43: VTR Operator | O43: days | P43: @ | S43: x | W43: 0 | AB43: 0 | AF43: 0 | AJ43: 10 | AL43: 0 | AN43: 0 | AT43: 0 | AV43: 0
C44: 82 | E44: Stunt Coordinator | O44: days | P44: @ | S44: x | W44: 0 | AB44: 0 | AF44: 0 | AJ44: 10 | AL44: 0 | AN44: 0 | AT44: 0 | AV44: 0
C45: 83 | E45: Safety Officer | O45: days | P45: @ | S45: x | W45: =IF(ISNUMBER(N45),(N45*Q45*IF(ISNUMBER(T45),T45,1)+(IFERROR(U45*(Q45/AJ45)*1.5,0))+(IFERROR(V45*(Q45/AJ45)*2,0))),0) -> 0 | AB45: 0 | AF45: =AB45-W45 -> 0 | AJ45: 10 | AL45: =IFERROR(Q45/(AJ45+((AJ45-HourlyState_B)*0.5)),0) -> 0 | AN45: 0 | AT45: 0 | AV45: =(AJ45-HourlyState_B)*AN45 -> 0
C46: 84 | E46: Site Rep | O46: days | P46: @ | S46: x | W46: 0 | AB46: 0 | AF46: 0 | AJ46: 10 | AL46: 0 | AN46: 0 | AT46: 0 | AV46: 0
C47: 85 | E47: Storyboard Artist | O47: days | P47: @ | S47: x | W47: 0 | AB47: 0 | AF47: 0 | AJ47: 10 | AL47: 0 | AN47: 0 | AT47: 0 | AV47: 0
C48: 86 | E48: Catering Crew | O48: days | P48: @ | S48: x | W48: 0 | AB48: 0 | AF48: 0 | AJ48: 10 | AL48: 0 | AN48: 0 | AT48: 0 | AV48: 0
C49: 87 | E49: Location Manager | O49: days | P49: @ | S49: x | W49: 0 | AB49: 0 | AF49: 0 | AJ49: 10 | AL49: 0 | AN49: 0 | AT49: 0 | AV49: 0
C50: 88 | E50: Compliance Assistant | O50: days | P50: @ | S50: x | W50: 0 | AB50: 0 | AF50: 0 | AJ50: 10 | AL50: 0 | AN50: 0 | AT50: 0 | AV50: 0
C51: 89 | E51: 2nd AD | O51: days | P51: @ | S51: x | W51: 0 | AB51: 0 | AF51: 0 | AJ51: 10 | AL51: 0 | AN51: 0 | AT51: 0 | AV51: 0
C52: 90 | E52: Medic | O52: days | P52: @ | Q52: 450 | S52: x | W52: 0 | AB52: 0 | AF52: 0 | AJ52: 10 | AL52: 40.90909091 | AN52: 61.36363636 | AT52: 327.2727273 | AV52: 122.7272727
C53: 91 | E53: Craft Service | O53: days | P53: @ | S53: x | W53: 0 | AB53: 0 | AF53: 0 | AJ53: 10 | AL53: 0 | AN53: 0 | AT53: 0 | AV53: 0
C54: 92 | E54: Firefighter | O54: days | P54: @ | S54: x | W54: 0 | AB54: 0 | AF54: 0 | AJ54: 10 | AL54: 0 | AN54: 0 | AT54: 0 | AV54: 0
C55: 93 | E55: Police Officers/Ranger/CHP | O55: days | P55: @ | S55: x | W55: 0 | AB55: 0 | AF55: 0 | AJ55: 10 | AL55: 0 | AN55: 0 | AT55: 0 | AV55: 0
C56: 94 | E56: Welfare/Teacher | O56: days | P56: @ | S56: x | W56: 0 | AB56: 0 | AF56: 0 | AJ56: 10 | AL56: 0 | AN56: 0 | AT56: 0 | AV56: 0
C57: 95 | E57: Gang Boss | O57: days | P57: @ | S57: x | W57: 0 | AB57: 0 | AF57: 0 | AJ57: 10 | AL57: 0 | AN57: 0 | AT57: 0 | AV57: 0
C58: 96 | E58: Teamster Drivers / Animal Wranglers | O58: days | P58: @ | S58: x | W58: 0 | AB58: 0 | AF58: 0 | AJ58: 10 | AL58: 0 | AN58: 0 | AT58: 0 | AV58: 0
C59: 97 | E59: Production Supervisor | O59: days | P59: @ | S59: x | W59: 0 | AB59: 0 | AF59: 0 | AJ59: 10 | AL59: 0 | AN59: 0 | AT59: 0 | AV59: 0
C60: 98 | E60: Assistant Production Supervisor | O60: days | P60: @ | S60: x | W60: 0 | AB60: 0 | AF60: 0 | AJ60: 10 | AL60: 0 | AN60: 0 | AT60: 0 | AV60: 0
C61: 99 | E61: Production Assistant | O61: days | P61: @ | S61: x | W61: 0 | AB61: 0 | AF61: 0 | AJ61: 10 | AL61: 0 | AN61: 0 | AT61: 0 | AV61: 0
C62: 100 | E62: Production Assistant | O62: days | P62: @ | S62: x | W62: 0 | AB62: 0 | AF62: 0 | AJ62: 10 | AL62: 0 | AN62: 0 | AT62: 0 | AV62: 0
O63: Sub Total B | W63: =SUM(W13:Z62) -> 0 | AB63: =SUM(AB13:AD62) -> 0 | AF63: 0
O64: Fringes | W64: =IFERROR(FringeRate_B*W63,0) -> 0 | AB64: 0 | AF64: 0
O65: Total | W65: =W64+W63 -> 0 | AB65: =SUM(AB63:AD64) -> 0 | AF65: 0

Sheet CDE
BY1: take2
C8: C. | D8: Prep & Wrap Expenses
E9: Description | N9: Days | Q9: Rate | T9: QTY | W9: Estimate | AB9: Actual | AF9: Variance
C10: 101 | E10: Craft Service | O10: each | P10: @ | S10: x | W10: =N10*Q10*(IF(ISNUMBER(T10),T10,IF(ISNUMBER(N10),1,0))) -> 0 | AB10: 0 | AF10: =AB10-W10 -> 0
C11: 102 | E11: Per Diems | O11: each | P11: @ | S11: x | W11: 0 | AB11: 0 | AF11: 0
C12: 103 | E12: Hotels | O12: each | P12: @ | S12: x | W12: 0 | AB12: 0 | AF12: 0
C13: 104 | E13: Scouting Expenses | O13: each | P13: @ | S13: x | W13: 0 | AB13: 0 | AF13: 0
C14: 105 | E14: Deliveries & Taxi | O14: allow | P14: @ | S14: x | W14: 0 | AB14: 0 | AF14: 0
C15: 106 | E15: Car Rental | O15: each | P15: @ | S15: x | W15: 0 | AB15: 0 | AF15: 0
C16: 107 | E16: Trucking | O16: each | P16: @ | S16: x | W16: 0 | AB16: 0 | AF16: 0
C17: 108 | E17: Casting Director | I17: prep | K17: cast & callback | O17: days | P17: @ | Q17: 400 | S17: x | W17: =(J17+N17+IF(ISNUMBER(T17),T17,0))*Q17 -> 0 | AB17: 0 | AF17: 0
C18: 109 | E18: Casting Facility | I18: prep | K18: cast & callback | O18: days | P18: @ | Q18: 1100 | S18: x | W18: =(H18+J18+M18+N18)*Q18*(IF(ISNUMBER(T18),T18,IF(ISNUMBER(N18),1,0))) -> 0 | AB18: 0 | AF18: 0
C19: 110 | E19: Home Econ Supplies | O19: each | P19: @ | S19: x | W19: 0 | AB19: 0 | AF19: 0
C20: 111 | E20: Telephone & Cable | O20: each | P20: @ | S20: x | W20: 0 | AB20: 0 | AF20: 0
C21: 112 | E21: Working Meals | O21: each | P21: @ | S21: x | W21: 0 | AB21: 0 | AF21: 0
C22: 113 | E22: Messengers | O22: each | P22: @ | S22: x | W22: 0 | AB22: 0 | AF22: 0
O23: Total C | W23: =SUM(W10:Z22) -> 0 | AB23: =SUM(AB10:AD22) -> 0 | AF23: 0
C25: D. | D25: Location Expenses
E26: Description | N26: QTY | Q26: Rate | T26: Days | X26: Estimate | AB26: Actual | AF26: Variance
C27: 114 | E27: Location Fees | O27: each | P27: @ | S27: x | W27: =N27*Q27*(IF(ISNUMBER(T27),T27,IF(ISNUMBER(N27),1,0))) -> 0 | AB27: 0 | AF27: =AB27-W27 -> 0
C28: 115 | E28: Permits | O28: each | P28: @ | S28: x | W28: 0 | AB28: 0 | AF28: 0
C29: 116 | E29: Lane Closures | O29: each | P29: @ | S29: x | W29: 0 | AB29: 0 | AF29: 0
C30: 117 | E30: Set Security | O30: each | P30: @ | Q30: 22 | S30: x | W30: 0 | AB30: 0 | AF30: 0
C31: 118 | E31: Cargo Van | O31: each | P31: @ | S31: x | W31: 0 | AB31: 0 | AF31: 0
C32: 119 | E32: Production Trucking | O32: each | P32: @ | S32: x | W32: 0 | AB32: 0 | AF32: 0
C33: 120 | E33: Camera Truck | O33: each | P33: @ | S33: x | W33: 0 | AB33: 0 | AF33: 0
C34: 121 | E34: Car Rentals | O34: each | P34: @ | S34: x | W34: 0 | AB34: 0 | AF34: 0
C35: 122 | E35: Bus Rentals | O35: each | P35: @ | S35: x | W35: 0 | AB35: 0 | AF35: 0
C36: 123 | E36: Limousines | O36: each | P36: @ | S36: x | W36: 0 | AB36: 0 | AF36: 0
C37: 124 | E37: Dressing Room Vehicles | O37: each | P37: @ | S37: x | W37: 0 | AB37: 0 | AF37: 0
C38: 125 | E38: Production MoHo | O38: each | P38: @ | S38: x | W38: 0 | AB38: 0 | AF38: 0
C39: 126 | E39: Other Vehicles | O39: each | P39: @ | S39: x | W39: 0 | AB39: 0 | AF39: 0
C40: 127 | E40: Parking/Tolls/Gas | O40: each | P40: @ | S40: x | W40: 0 | AB40: 0 | AF40: 0
C41: 128 | E41: Excess Bags/Homeland Security | O41: each | P41: @ | S41: x | W41: 0 | AB41: 0 | AF41: 0
C42: 129 | E42: Air Fares | O42: each | P42: @ | S42: x | W42: 0 | AB42: 0 | AF42: 0
C43: 130 | E43: Hotels | O43: each | P43: @ | S43: x | W43: 0 | AB43: 0 | AF43: 0
C44: 131 | E44: Per Diems | O44: each | P44: @ | S44: x | W44: 0 | AB44: 0 | AF44: 0
C45: 132 | E45: Talent Meals | O45: each | P45: @ | S45: x | W45: 0 | AB45: 0 | AF45: 0
C46: 133 | E46: Breakfast | O46: ppl | P46: @ | S46: x | W46: 0 | AB46: 0 | AF46: 0
C47: 134 | E47: Lunch | O47: ppl | P47: @ | S47: x | W47: 0 | AB47: 0 | AF47: 0
C48: 135 | E48: Dinner | O48: ppl | P48: @ | S48: x | W48: 0 | AB48: 0 | AF48: 0
C49: 136 | E49: Cabs/ Ubers/ Lyfts / Other Transportation | O49: each | P49: @ | S49: x | W49: 0 | AB49: 0 | AF49: 0
C50: 137 | E50: Kit Rental | O50: each | P50: @ | S50: x | W50: 0 | AB50: 0 | AF50: 0
C51: 138 | E51: Art Work | O51: each | P51: @ | S51: x | W51: 0 | AB51: 0 | AF51: 0
C52: 139 | E52: Sustainable Practices | O52: allow | P52: @ | S52: x | W52: 0 | AB52: 0 | AF52: 0
O53: Total D | W53: =SUM(W27:Z52) -> 0 | AB53: =SUM(AB27:AD52) -> 0 | AF53: 0
C55: E. | D55: Props, Wardrobe & Animals
E56: Description | N56: QTY | Q56: Rate | T56: Days | X56: Estimate | AB56: Actual | AF56: Variance
C57: 140 | E57: Prop Rental | O57: each | P57: @ | Q57: 333 | S57: x | W57: =N57*Q57*(IF(ISNUMBER(T57),T57,IF(ISNUMBER(N57),1,0))) -> 0 | AB57: 0 | AF57: =AB57-W57 -> 0
C58: 141 | E58: Prop Purchase | O58: each | P58: @ | S58: x | W58: 0 | AB58: 0 | AF58: 0
C59: 142 | E59: Prop Fabrication | O59: each | P59: @ | S59: x | W59: 0 | AB59: 0 | AF59: 0
C60: 143 | E60: Wardrobe Rental | O60: each | P60: @ | S60: x | W60: 0 | AB60: 0 | AF60: 0
C61: 144 | E61: Wardrobe Purchase | O61: each | P61: @ | S61: x | W61: 0 | AB61: 0 | AF61: 0
C62: 145 | E62: Costumes | O62: each | P62: @ | S62: x | W62: 0 | AB62: 0 | AF62: 0
C63: 146 | E63: Picture Vehicles | O63: each | P63: @ | S63: x | W63: 0 | AB63: 0 | AF63: 0
C64: 147 | E64: Animals & Handlers | O64: each | P64: @ | S64: x | W64: 0 | AB64: 0 | AF64: 0
C65: 148 | E65: Theatrical Makeup | O65: each | P65: @ | S65: x | W65: 0 | AB65: 0 | AF65: 0
C66: 149 | E66: Product Prep / Color Correct | O66: each | P66: @ | S66: x | W66: 0 | AB66: 0 | AF66: 0
C67: 150 | E67: Greens | O67: each | P67: @ | S67: x | W67: 0 | AB67: 0 | AF67: 0
O68: Total E | W68: =SUM(W57:Z67) -> 0 | AB68: =SUM(AB57:AD67) -> 0 | AF68: 0

Sheet FGH
BY1: take2
C10: F. | D10: Studio Costs
E11: Description | N11: Days | Q11: Rate | T11: QTY | W11: Estimate | AB11: Actual | AF11: Variance
C12: 151 | E12: Rental For Build Days | O12: days | P12: @ | S12: x | W12: =N12*Q12*(IF(ISNUMBER(T12),T12,IF(ISNUMBER(N12),1,0))) -> 0 | AB12: 0 | AF12: =AB12-W12 -> 0
C13: 152 | E13: Build OT Hours | O13: hrs | P13: @ | S13: x | W13: 0 | AB13: 0 | AF13: 0
C14: 153 | E14: Rental for Pre-Lite Days | O14: days | P14: @ | S14: x | W14: 0 | AB14: 0 | AF14: 0
C15: 154 | E15: Pre-Lite OT Hours | O15: days | P15: @ | S15: x | W15: 0 | AB15: 0 | AF15: 0
C16: 155 | E16: Rental for Shoot Days | O16: days | P16: @ | S16: x | W16: 0 | AB16: 0 | AF16: 0
C17: 156 | E17: Shoot OT Hours | O17: hrs | P17: @ | S17: x | W17: 0 | AB17: 0 | AF17: 0
C18: 157 | E18: Rental for Strike Days | O18: days | P18: @ | S18: x | W18: 0 | AB18: 0 | AF18: 0
C19: 158 | E19: Strike OT Hours | O19: hrs | P19: @ | S19: x | W19: 0 | AB19: 0 | AF19: 0
C20: 159 | E20: Generator and Operator | O20: days | P20: @ | S20: x | W20: 0 | AB20: 0 | AF20: 0
C21: 160 | E21: Stage Manager/Studio Security | O21: days | P21: @ | Q21: 1222 | S21: x | W21: 0 | AB21: 0 | AF21: 0
C22: 161 | E22: Power Charges | O22: days | P22: @ | S22: x | W22: 0 | AB22: 0 | AF22: 0
C23: 162 | E23: Misc Studio Charges | O23: days | P23: @ | S23: x | W23: 0 | AB23: 0 | AF23: 0
C24: 163 | E24: Meals for Crew & Talent | O24: days | P24: @ | S24: x | W24: 0 | AB24: 0 | AF24: 0
C25: 164 | E25: Air Conditioning | O25: days | P25: @ | S25: x | W25: 0 | AB25: 0 | AF25: 0
C26: 165 | E26: Crew Parking | O26: days | P26: @ | S26: x | W26: 0 | AB26: 0 | AF26: 0
C27: 166 | E27: Condor/Scissor Lift | O27: days | P27: @ | S27: x | W27: 0 | AB27: 0 | AF27: 0
C28: 167 | E28: Steeldeck | O28: days | P28: @ | S28: x | W28: 0 | AB28: 0 | AF28: 0
O29: Total F | W29: =SUM(W12:Z28) -> 0 | AB29: =SUM(AB12:AD28) -> 0 | AF29: 0
C31: G. | D31: Art Department Labor | AJ31: Payroll OT Calculator | AR31: Day Rate to State Law
E32: Description | N32: Days | Q32: Rate | U32: Overtime | W32: Estimate | AB32: Actual | AF32: Variance | AJ32: Base | AL32: Hourly | AN32: State OT | AP32: Fringes | AR32: State | AT32: State Day | AV32: State Day
U33: 1.5 | V33: 2 | AJ33: Hours | AL33: Rate | AN33: Rate | AP33: Rate | AR33: Basis | AT33: Strt Total | AV33: OT Total
C34: 168 | E34: Production Designer/Art Director | O34: days | P34: @ | Q34: 1000 | S34: x | W34: =IF(ISNUMBER(N34),(N34*Q34*IF(ISNUMBER(T34),T34,1)+(IFERROR(U34*(Q34/AJ34)*1.5,0))+(IFERROR(V34*(Q34/AJ34)*2,0))),0) -> 0 | AB34: 0 | AF34: =AB34-W34 -> 0 | AJ34: 10 | AL34: =IFERROR(Q34/(AJ34+((AJ34-HourlyState_G)*0.5)),0) -> 66.66666667 | AN34: =AL34*1.5 -> 100 | AP34: 0 | AR34: 0 | AT34: =AL34*HourlyState_G -> 0 | AV34: =(AJ34-HourlyState_G)*AN34 -> 1000
C35: 169 | O35: days | P35: @ | S35: x | W35: 0 | AB35: 0 | AF35: 0 | AJ35: 12 | AL35: 0 | AN35: 0 | AT35: 0 | AV35: 0
C36: 170 | E36: Set Decorator | O36: days | P36: @ | S36: x | W36: 0 | AB36: 0 | AF36: 0 | AJ36: 12 | AL36: 0 | AN36: 0 | AT36: 0 | AV36: 0
C37: 171 | E37: Art Dept Coordinator | O37: days | P37: @ | Q37: 1111 | S37: x | W37: 0 | AB37: 0 | AF37: 0 | AJ37: 12 | AL37: 61.72222222 | AN37: 92.58333333 | AT37: 0 | AV37: 1111
C38: 172 | E38: Prop Master | O38: days | P38: @ | S38: x | W38: 0 | AB38: 0 | AF38: 0 | AJ38: 12 | AL38: 0 | AN38: 0 | AT38: 0 | AV38: 0
C39: 173 | E39: Asst Props | O39: days | P39: @ | S39: x | W39: 0 | AB39: 0 | AF39: 0 | AJ39: 12 | AL39: 0 | AN39: 0 | AT39: 0 | AV39: 0
C40: 174 | E40: Swing | O40: days | P40: @ | S40: x | W40: 0 | AB40: 0 | AF40: 0 | AJ40: 12 | AL40: 0 | AN40: 0 | AT40: 0 | AV40: 0
C41: 175 | E41: Leadman | O41: days | P41: @ | S41: x | W41: 0 | AB41: 0 | AF41: 0 | AJ41: 12 | AL41: 0 | AN41: 0 | AT41: 0 | AV41: 0
C42: 176 | E42: Set Dresser | O42: days | P42: @ | S42: x | W42: 0 | AB42: 0 | AF42: 0 | AJ42: 12 | AL42: 0 | AN42: =AL42*1.5 -> 0 | AT42: 0 | AV42: 0
C43: 177 | E43: Scenics | O43: days | P43: @ | S43: x | W43: 0 | AB43: 0 | AF43: 0 | AJ43: 12 | AL43: 0 | AN43: =AL43*1.5 -> 0 | AT43: 0 | AV43: 0
C44: 178 | E44: Grips / Riggers | O44: days | P44: @ | S44: x | W44: 0 | AB44: 0 | AF44: 0 | AJ44: 12 | AL44: 0 | AN44: =AL44*1.5 -> 0 | AT44: 0 | AV44: 0
C45: 179 | O45: days | P45: @ | S45: x | W45: 0 | AB45: 0 | AF45: 0 | AJ45: 12 | AL45: 0 | AN45: =AL45*1.5 -> 0 | AT45: 0 | AV45: 0
C46: 180 | O46: days | P46: @ | S46: x | W46: 0 | AB46: 0 | AF46: 0 | AJ46: 12 | AL46: 0 | AN46: =AL46*1.5 -> 0 | AT46: 0 | AV46: 0
O47: Sub Total G | W47: =SUM(W34:Z46) -> 0 | AB47: =SUM(AB34:AD46) -> 0 | AF47: 0
O48: Fringes G | W48: =IFERROR(AP34*W47,0) -> 0 | AB48: 0 | AF48: 0
O49: Total G | W49: =SUM(W47:Z48) -> 0 | AB49: =AB47+AB48 -> 0 | AF49: 0
C51: H. | D51: Art Department Expenses
E52: Description | N52: QTY | Q52: Rate | T52: Days | W52: Estimate | X52: Estimate | AB52: Actual | AF52: Variance
C53: 181 | E53: Set Dressing Rentals | O53: each | P53: @ | S53: x | W53: =N53*Q53*(IF(ISNUMBER(T53),T53,IF(ISNUMBER(N53),1,0))) -> 0 | AB53: 0 | AF53: =AB53-W53 -> 0
C54: 182 | E54: Set Dressing Purchases | O54: each | P54: @ | S54: x | W54: 0 | AB54: 0 | AF54: 0
C55: 183 | E55: Art Dept Prod Supplies | O55: each | P55: @ | S55: x | W55: 0 | AB55: 0 | AF55: 0
C56: 184 | E56: Art Dept Kit Rental | O56: each | P56: @ | S56: x | W56: 0 | AB56: 0 | AF56: 0
C57: 185 | E57: Special Effects Rental | O57: each | P57: @ | S57: x | W57: 0 | AB57: 0 | AF57: 0
C58: 186 | E58: Art Dept Trucking | O58: each | P58: @ | S58: x | W58: 0 | AB58: 0 | AF58: 0
C59: 187 | E59: Outside Construction | O59: each | P59: @ | S59: x | W59: 0 | AB59: 0 | AF59: 0
C60: 188 | E60: Car Prep | O60: each | P60: @ | S60: x | W60: 0 | AB60: 0 | AF60: 0
C61: 189 | E61: Art Dept Meals | O61: each | P61: @ | S61: x | W61: 0 | AB61: 0 | AF61: 0
C62: 190 | E62: Messengers/Deliveries | O62: each | P62: @ | S62: x | W62: 0 | AB62: 0 | AF62: 0
C63: 191 | O63: each | P63: @ | S63: x | W63: 0 | AB63: 0 | AF63: 0
C64: 192 | O64: each | P64: @ | S64: x | W64: =N64*Q64*(IF(ISNUMBER(T64),T64,IF(ISNUMBER(N64),1,0))) -> 0 | AB64: 0 | AF64: 0
O65: Total H | W65: =SUM(W53:Z64) -> 0 | AB65: =SUM(AB53:AD64) -> 0 | AF65: 0

Sheet IJKL
BY1: take2
C8: I. | D8: Equipment Rental
E9: Description | N9: Days | Q9: Rate | T9: QTY | W9: Estimate | AB9: Actual | AF9: Variance
C10: 193 | E10: Camera Rental | O10: days | P10: @ | Q10: 222 | S10: x | W10: =N10*Q10*(IF(ISNUMBER(T10),T10,IF(ISNUMBER(N10),1,0))) -> 0 | AB10: 0 | AF10: =AB10-W10 -> 0
C11: 194 | E11: Sound Rental | O11: days | P11: @ | S11: x | W11: 0 | AB11: 0 | AF11: 0
C12: 195 | E12: Lighting Rental | O12: days | P12: @ | S12: x | W12: 0 | AB12: 0 | AF12: 0
C13: 196 | E13: Grip Rental | O13: days | P13: @ | S13: x | W13: 0 | AB13: 0 | AF13: 0
C14: 197 | E14: Generator Rental | O14: days | P14: @ | S14: x | W14: 0 | AB14: 0 | AF14: 0
C15: 198 | E15: Crane Rental | O15: days | P15: @ | S15: x | W15: 0 | AB15: 0 | AF15: 0
C16: 199 | E16: VTR Rental | O16: days | P16: @ | S16: x | W16: 0 | AB16: 0 | AF16: 0
C17: 200 | E17: Walkie Talkie Rental | O17: days | P17: @ | S17: x | W17: 0 | AB17: 0 | AF17: 0
C18: 201 | E18: Dolly Rental | O18: days | P18: @ | S18: x | W18: 0 | AB18: 0 | AF18: 0
C19: 202 | E19: SteadiCam | O19: days | P19: @ | S19: x | W19: 0 | AB19: 0 | AF19: 0
C20: 203 | E20: Helicopter | O20: days | P20: @ | S20: x | W20: 0 | AB20: 0 | AF20: 0
C21: 204 | E21: Production Supplies | O21: days | P21: @ | S21: x | W21: 0 | AB21: 0 | AF21: 0
C22: 205 | E22: Jib Arm | O22: days | P22: @ | S22: x | W22: =N22*Q22*(IF(ISNUMBER(T22),T22,IF(ISNUMBER(N22),1,0))) -> 0 | AB22: 0 | AF22: 0
C23: 206 | E23: Crane Head | O23: days | P23: @ | S23: x | W23: 0 | AB23: 0 | AF23: 0
C24: 207 | E24: Camera Car | O24: days | P24: @ | S24: x | W24: =N24*Q24*(IF(ISNUMBER(T24),T24,IF(ISNUMBER(N24),1,0))) -> 0 | AB24: 0 | AF24: 0
C25: 208 | E25: Expendables | O25: days | P25: @ | S25: x | W25: =N25*Q25*(IF(ISNUMBER(T25),T25,IF(ISNUMBER(N25),1,0))) -> 0 | AB25: 0 | AF25: 0
C26: 209 | E26: Lenses | O26: days | P26: @ | S26: x | W26: =N26*Q26*(IF(ISNUMBER(T26),T26,IF(ISNUMBER(N26),1,0))) -> 0 | AB26: 0 | AF26: 0
C27: 210 | E27: Cinedrives | O27: days | P27: @ | S27: x | W27: 0 | AB27: 0 | AF27: 0
O28: Total I | W28: =SUM(W10:Z27) -> 0 | AB28: =SUM(AB10:AD27) -> 0 | AF28: 0
C30: J. | D30: Media
E31: Description | N31: Units | Q31: Rate | T31: QTY | W31: Estimate | AB31: Actual | AF31: Variance
C32: 211 | E32: Media / Drives | O32: each | P32: @ | S32: x | W32: =N32*Q32*(IF(ISNUMBER(T32),T32,IF(ISNUMBER(N32),1,0))) -> 0 | AB32: 0 | AF32: =AB32-W32 -> 0
C33: 212 | E33: Film | O33: ft | P33: @ | S33: x | W33: 0 | AB33: 0 | AF33: 0
C34: 213 | E34: Transcode / Transfer | O34: hrs | P34: @ | S34: x | W34: 0 | AB34: 0 | AF34: 0
C35: 214 | E35: Process | O35: hrs | P35: @ | Q35: 444 | S35: x | W35: 0 | AB35: 0 | AF35: 0
C36: 215 | E36: Dailies | O36: each | P36: @ | S36: x | W36: 0 | AB36: 0 | AF36: 0
C37: 216 | P37: @ | S37: x | W37: 0 | AB37: 0 | AF37: 0
O38: Total J | W38: =SUM(W32:Z37) -> 0 | AB38: =SUM(AB32:AD37) -> 0 | AF38: 0
C40: K. | D40: Miscellaneous Production Costs
E41: Description | N41: Units | Q41: Rate | T41: QTY | W41: Estimate | AB41: Actual | AF41: Variance
C42: 217 | E42: Petty Cash | O42: each | P42: @ | S42: x | W42: =N42*Q42*(IF(ISNUMBER(T42),T42,IF(ISNUMBER(N42),1,0))) -> 0 | AB42: 0 | AF42: =AB42-W42 -> 0
C43: 218 | E43: Air Shipping and Carriers | O43: each | P43: @ | Q43: 333 | S43: x | W43: 0 | AB43: 0 | AF43: 0
C44: 219 | E44: Phones and Cables | O44: each | P44: @ | S44: x | W44: 0 | AB44: 0 | AF44: 0
C45: 220 | E45: Cash Under $15 Each | O45: each | P45: @ | S45: x | W45: 0 | AB45: 0 | AF45: 0
C46: 221 | E46: External Billing Costs | O46: each | P46: @ | S46: x | W46: 0 | AB46: 0 | AF46: 0
C47: 222 | E47: Special Insurance | O47: each | P47: @ | S47: x | W47: 0 | AB47: 0 | AF47: 0
C48: 223 | E48: Cell Phones | O48: each | P48: @ | S48: x | W48: 0 | AB48: 0 | AF48: 0
C49: 224 | E49: Foreign Production Service Co | O49: each | P49: @ | S49: x | W49: 0 | AB49: 0 | AF49: 0
C50: 225 | P50: @ | S50: x | W50: 0 | AB50: 0 | AF50: 0
C51: 226 | P51: @ | S51: x | W51: 0 | AB51: 0 | AF51: 0
O52: Total K | W52: =SUM(W42:Z51) -> 0 | AB52: =SUM(AB42:AD51) -> 0 | AF52: 0
C54: L. | D54: Director's Fees
E55: Description | O55: Days | Q55: Rate | T55: QTY | X55: Estimate | AB55: Actual | AF55: Variance
C56: 227 | E56: Director Prep | O56: days | P56: @ | Q56: 11111 | S56: x | W56: =N56*Q56*(IF(ISNUMBER(T56),T56,IF(ISNUMBER(N56),1,0))) -> 0 | AB56: 0 | AF56: =AB56-W56 -> 0
C57: 228 | E57: Director Travel | O57: days | P57: @ | S57: x | W57: 0 | AB57: 0 | AF57: 0
C58: 229 | E58: Director Shoot | O58: days | P58: @ | S58: x | W58: 0 | AB58: 0 | AF58: 0
C59: 230 | E59: Director Post | O59: days | P59: @ | S59: x | W59: 0 | AB59: 0 | AF59: 0
C60: 231 | E60: Fringes | O60: days | P60: @ | Q60: 12121 | S60: x | W60: 0 | AB60: 0 | AF60: 0
C61: 232 | P61: @ | S61: x | W61: 0 | AB61: 0 | AF61: 0
C62: 233 | P62: @ | S62: x | W62: 0 | AB62: 0 | AF62: 0
O63: Total L | W63: =SUM(W56:Z62) -> 0 | AB63: =SUM(AB56:AD62) -> 0 | AF63: 0

Sheet MN
BY1: take2
C8: M. | D8: Talent | AJ8: Payroll OT Calculator | AR8: Day Rate to State Law
E9: Description | N9: Days | Q9: Rate | T9: QTY | U9: Overtime | W9: Estimate | AB9: Actual | AF9: Variance | AJ9: Base | AL9: Hourly | AN9: State OT | AP9: Fringes | AR9: State | AT9: State Day | AV9: State Day
U10: 1.5 | V10: 2 | AJ10: Hours | AL10: Rate | AN10: Rate | AP10: Rate | AR10: Basis | AT10: Strt Total | AV10: OT Total
C11: 234 | E11: O/C Principals | O11: days | P11: @ | Q11: 1000 | S11: x | W11: =IF(ISNUMBER(N11),(N11*Q11*IF(ISNUMBER(T11),T11,1)+(IFERROR(U11*(Q11/AJ11)*1.5,0))+(IFERROR(V11*(Q11/AJ11)*2,0))),0) -> 0 | AB11: 0 | AF11: =AB11-W11 -> 0 | AJ11: 10 | AL11: =IFERROR(Q11/(AJ11+((AJ11-HourlyState_M)*0.5)),0) -> 66.66666667 | AN11: =AL11*1.5 -> 100 | AP11: 0 | AR11: 0 | AT11: =AL11*HourlyState_M -> 0 | AV11: =(AJ11-HourlyState_M)*AN11 -> 1000
C12: 235 | E12: O/C Principals | O12: days | P12: @ | S12: x | W12: 0 | AB12: 0 | AF12: 0 | AJ12: 10 | AL12: 0 | AN12: =AL12*1.5 -> 0 | AT12: 0 | AV12: 0
C13: 236 | E13: O/C Principals | O13: days | P13: @ | Q13: 1000 | S13: x | W13: =IF(ISNUMBER(N13),(N13*Q13*IF(ISNUMBER(T13),T13,1)+(IFERROR(U13*(Q13/AJ13)*1.5,0))+(IFERROR(V13*(Q13/AJ13)*2,0))),0) -> 0 | AB13: 0 | AF13: 0 | AJ13: 10 | AL13: =IFERROR(Q13/(AJ13+((AJ13-HourlyState_M)*0.5)),0) -> 66.66666667 | AN13: 100 | AT13: 0 | AV13: 1000
C14: 237 | E14: O/C Principals | O14: days | P14: @ | S14: x | W14: =IF(ISNUMBER(N14),(N14*Q14*IF(ISNUMBER(T14),T14,1)+(IFERROR(U14*(Q14/AJ14)*1.5,0))+(IFERROR(V14*(Q14/AJ14)*2,0))),0) -> 0 | AB14: 0 | AF14: 0 | AJ14: 10 | AL14: 0 | AN14: 0 | AT14: 0 | AV14: 0
C15: 238 | E15: O/C Principals | O15: days | P15: @ | S15: x | W15: 0 | AB15: 0 | AF15: 0 | AJ15: 10 | AL15: 0 | AN15: 0 | AT15: 0 | AV15: 0
C16: 239 | E16: O/C Principals | O16: days | P16: @ | S16: x | W16: 0 | AB16: 0 | AF16: 0 | AJ16: 10 | AL16: 0 | AN16: 0 | AT16: 0 | AV16: 0
C17: 240 | E17: O/C Principals | O17: days | P17: @ | S17: x | W17: 0 | AB17: 0 | AF17: 0 | AJ17: 10 | AL17: 0 | AN17: 0 | AT17: 0 | AV17: 0
C18: 241 | E18: O/C Principals | O18: days | P18: @ | S18: x | W18: 0 | AB18: 0 | AF18: 0 | AJ18: 10 | AL18: 0 | AN18: 0 | AT18: 0 | AV18: 0
C19: 242 | E19: O/C Principals | O19: days | P19: @ | S19: x | W19: 0 | AB19: 0 | AF19: 0 | AJ19: 10 | AL19: 0 | AN19: 0 | AT19: 0 | AV19: 0
C20: 243 | O20: days | P20: @ | S20: x | W20: 0 | AB20: 0 | AF20: 0 | AJ20: 10 | AL20: 0 | AN20: 0 | AT20: 0 | AV20: 0
C21: 244 | E21: Office Extras | O21: days | P21: @ | S21: x | W21: 0 | AB21: 0 | AF21: 0 | AJ21: 10 | AL21: 0 | AN21: 0 | AT21: 0 | AV21: 0
C22: 245 | O22: days | P22: @ | S22: x | W22: 0 | AB22: 0 | AF22: 0 | AJ22: 10 | AL22: 0 | AN22: 0 | AT22: 0 | AV22: 0
C23: 246 | E23: Crowd Extras | O23: days | P23: @ | S23: x | W23: 0 | AB23: 0 | AF23: 0 | AJ23: 10 | AL23: 0 | AN23: 0 | AT23: 0 | AV23: 0
C24: 247 | E24: General Extras | O24: days | P24: @ | S24: x | W24: 0 | AB24: 0 | AF24: 0 | AJ24: 10 | AL24: 0 | AN24: 0 | AT24: 0 | AV24: 0
C25: 248 | E25: General Extras | O25: days | P25: @ | S25: x | W25: 0 | AB25: 0 | AF25: 0 | AJ25: 10 | AL25: 0 | AN25: 0 | AT25: 0 | AV25: 0
C26: 249 | E26: General Extras | O26: days | P26: @ | S26: x | W26: 0 | AB26: 0 | AF26: 0 | AJ26: 10 | AL26: 0 | AN26: 0 | AT26: 0 | AV26: 0
C27: 250 | E27: General Extras | O27: days | P27: @ | S27: x | W27: 0 | AB27: 0 | AF27: 0 | AJ27: 10 | AL27: 0 | AN27: 0 | AT27: 0 | AV27: 0
C28: 251 | E28: General Extras | O28: days | P28: @ | S28: x | W28: 0 | AB28: 0 | AF28: 0 | AJ28: 10 | AL28: 0 | AN28: 0 | AT28: 0 | AV28: 0
C29: 252 | O29: days | P29: @ | S29: x | W29: 0 | AB29: 0 | AF29: 0 | AJ29: 10 | AL29: 0 | AN29: 0 | AT29: 0 | AV29: 0
C30: 253 | O30: days | P30: @ | S30: x | W30: 0 | AB30: 0 | AF30: 0 | AJ30: 10 | AL30: 0 | AN30: 0 | AT30: 0 | AV30: 0
C31: 254 | O31: days | P31: @ | S31: x | W31: 0 | AB31: 0 | AF31: 0 | AJ31: 10 | AL31: 0 | AN31: 0 | AT31: 0 | AV31: 0
C32: 255 | E32: Hand Models | O32: days | P32: @ | S32: x | W32: 0 | AB32: 0 | AF32: 0 | AJ32: 10 | AL32: 0 | AN32: 0 | AT32: 0 | AV32: 0
C33: 256 | O33: days | P33: @ | S33: x | W33: 0 | AB33: 0 | AF33: 0 | AJ33: 10 | AL33: 0 | AN33: 0 | AT33: 0 | AV33: 0
C34: 257 | O34: days | P34: @ | S34: x | W34: 0 | AB34: 0 | AF34: 0 | AJ34: 10 | AL34: 0 | AN34: 0 | AT34: 0 | AV34: 0
C35: 258 | E35: Voice Over | O35: days | P35: @ | S35: x | W35: 0 | AB35: 0 | AF35: 0 | AJ35: 10 | AL35: 0 | AN35: 0 | AT35: 0 | AV35: 0
C36: 259 | E36: Fitting Fees | O36: days | P36: @ | S36: x | W36: 0 | AB36: 0 | AF36: 0 | AJ36: 10 | AL36: 0 | AN36: 0 | AT36: 0 | AV36: 0
C37: 260 | E37: Fitting Fees | O37: days | P37: @ | S37: x | W37: 0 | AB37: 0 | AF37: 0 | AJ37: 10 | AL37: 0 | AN37: 0 | AT37: 0 | AV37: 0
C38: 261 | O38: days | P38: @ | S38: x | W38: 0 | AB38: 0 | AF38: 0 | AJ38: 10 | AL38: 0 | AN38: =AL38*1.5 -> 0 | AT38: 0 | AV38: 0
C39: 262 | E39: Audition Fees | O39: days | P39: @ | S39: x | W39: 0 | AB39: 0 | AF39: 0 | AJ39: 10 | AL39: 0 | AN39: =AL39*1.5 -> 0 | AT39: 0 | AV39: 0
C40: 263 | E40: Audition Fees | O40: days | P40: @ | S40: x | W40: 0 | AB40: 0 | AF40: 0 | AJ40: 10 | AL40: 0 | AN40: =AL40*1.5 -> 0 | AT40: 0 | AV40: 0
C41: 264 | O41: days | P41: @ | S41: x | W41: 0 | AB41: 0 | AF41: 0 | AJ41: 10 | AL41: 0 | AN41: =AL41*1.5 -> 0 | AT41: 0 | AV41: 0
C42: 265 | O42: days | P42: @ | S42: x | W42: 0 | AB42: 0 | AF42: 0 | AJ42: 10 | AL42: 0 | AN42: =AL42*1.5 -> 0 | AT42: 0 | AV42: 0
O43: Sub Total M | W43: =SUM(W11:Z42) -> 0 | AB43: =SUM(AB11:AD42) -> 0 | AF43: 0
O44: Fringes | W44: =W43*AP11 -> 0 | AB44: 0 | AF44: 0
E46: Additional Talent Costs | X46: Estimate | AB46: Actual | AF46: Variance | AJ46: Talent Agency & Payroll
C47: 266 | E47: Talent Agency Fees | W47: =W43*AJ48*0.01 -> 0 | AB47: 0 | AF47: =AB47-W47 -> 0 | AJ47: Agency Fees | AM47: Payroll Svc.
C48: 267 | E48: Talent Payroll Service | W48: =W43*AM48*0.01 -> 0 | AB48: 0 | AF48: 0 | AJ48: 0 | AM48: 0
C49: 268 | E49: Talent Wardrobe Allowance | S49: x | U49: qty | W49: =N49*Q49*(IF(ISNUMBER(T49),T49,IF(ISNUMBER(N49),1,0))) -> 0 | AB49: 0 | AF49: 0
C50: 269 | S50: x | U50: qty | W50: =N50*Q50*(IF(ISNUMBER(T50),T50,IF(ISNUMBER(N50),1,0))) -> 0 | AB50: 0 | AF50: 0 | AJ50: Handling Fees
C51: 270 | S51: x | U51: qty | W51: =N51*Q51*(IF(ISNUMBER(T51),T51,IF(ISNUMBER(N51),1,0))) -> 0 | AB51: 0 | AF51: 0 | AJ51: M | AM51: N
O52: Handling Fee M | W52: =(SUM(W47:Z51)+(W43+W44))*HandleM -> 0 | AB52: =Markup_M -> 0 | AF52: 0 | AJ52: 0 | AM52: 0
O53: Total M | W53: =Markup_M+W44+W43+SUM(W47:Z51) -> 0 | AB53: 0 | AF53: 0
C55: N. | D55: Talent Expenses
E56: Description | N56: QTY | Q56: Rate | T56: Days | X56: Estimate | AB56: Actual | AF56: Variance
C57: 271 | E57: Talent Air Fares | O57: each | P57: @ | Q57: 1000 | S57: x | W57: =N57*Q57*(IF(ISNUMBER(T57),T57,IF(ISNUMBER(N57),1,0))) -> 0 | AB57: 0 | AF57: =AB57-W57 -> 0
C58: 272 | E58: Talent Per Diem | O58: each | P58: @ | S58: x | W58: 0 | AB58: 0 | AF58: 0
C59: 273 | E59: Talent Gd Transportation | O59: each | P59: @ | S59: x | W59: 0 | AB59: 0 | AF59: 0
C60: 274 | O60: each | P60: @ | S60: x | W60: 0 | AB60: 0 | AF60: 0
C61: 275 | O61: each | P61: @ | S61: x | W61: 0 | AB61: 0 | AF61: 0
C62: 276 | O62: each | P62: @ | S62: x | W62: 0 | AB62: 0 | AF62: 0
O63: Sub Total N | W63: =SUM(W57:Z62) -> 0 | AB63: =SUM(AB57:AD62) -> 0 | AF63: 0
O64: Handling Fee N | W64: =W63*HandleN -> 0 | AB64: =Markup_N -> 0 | AF64: 0
O65: Total N | W65: =SUM(W63:Z64) -> 0 | AB65: =SUM(AB63:AD64) -> 0 | AF65: 0

Sheet O
BY1: take2
C8: O. | D8: Other
E9: Description | N9: Each | Q9: Rate | T9: QTY | X9: Estimate | AB9: Actual | AF9: Variance
C10: 277 | O10: each | P10: @ | S10: x | W10: =N10*Q10*(IF(ISNUMBER(T10),T10,IF(ISNUMBER(N10),1,0))) -> 0 | AB10: 0 | AF10: =AB10-W10 -> 0
C11: 278 | O11: each | P11: @ | Q11: 500 | S11: x | W11: =N11*Q11*(IF(ISNUMBER(T11),T11,IF(ISNUMBER(N11),1,0))) -> 0 | AB11: 0 | AF11: =AB11-W11 -> 0
C12: 279 | O12: each | P12: @ | S12: x | W12: =N12*Q12*(IF(ISNUMBER(T12),T12,IF(ISNUMBER(N12),1,0))) -> 0 | AB12: 0 | AF12: 0
C13: 280 | O13: each | P13: @ | S13: x | W13: =N13*Q13*(IF(ISNUMBER(T13),T13,IF(ISNUMBER(N13),1,0))) -> 0 | AB13: 0 | AF13: 0
C14: 281 | O14: each | P14: @ | S14: x | W14: 0 | AB14: 0 | AF14: 0
C15: 282 | O15: each | P15: @ | S15: x | W15: 0 | AB15: 0 | AF15: 0
C16: 283 | O16: each | P16: @ | S16: x | W16: 0 | AB16: 0 | AF16: 0
C17: 284 | O17: each | P17: @ | S17: x | W17: 0 | AB17: 0 | AF17: 0
C18: 285 | O18: each | P18: @ | S18: x | W18: 0 | AB18: 0 | AF18: 0
C19: 286 | O19: each | P19: @ | S19: x | W19: 0 | AB19: 0 | AF19: 0
C20: 287 | O20: each | P20: @ | S20: x | W20: 0 | AB20: 0 | AF20: 0
C21: 288 | O21: each | P21: @ | S21: x | W21: 0 | AB21: 0 | AF21: 0
C22: 289 | O22: each | P22: @ | S22: x | W22: 0 | AB22: 0 | AF22: 0
C23: 290 | O23: each | P23: @ | S23: x | W23: 0 | AB23: 0 | AF23: 0
C24: 291 | O24: each | P24: @ | S24: x | W24: 0 | AB24: 0 | AF24: 0
C25: 292 | O25: each | P25: @ | S25: x | W25: 0 | AB25: 0 | AF25: 0
C26: 293 | O26: each | P26: @ | S26: x | W26: 0 | AB26: 0 | AF26: 0
C27: 294 | O27: each | P27: @ | S27: x | W27: 0 | AB27: 0 | AF27: 0
C28: 295 | O28: each | P28: @ | S28: x | W28: 0 | AB28: 0 | AF28: 0
C29: 296 | O29: each | P29: @ | S29: x | W29: 0 | AB29: 0 | AF29: 0
C30: 297 | O30: each | P30: @ | S30: x | W30: 0 | AB30: 0 | AF30: 0
C31: 298 | O31: each | P31: @ | S31: x | W31: 0 | AB31: 0 | AF31: 0
C32: 299 | O32: each | P32: @ | S32: x | W32: 0 | AB32: 0 | AF32: 0
C33: 300 | O33: each | P33: @ | S33: x | W33: 0 | AB33: 0 | AF33: 0
C34: 301 | O34: each | P34: @ | S34: x | W34: 0 | AB34: 0 | AF34: 0
C35: 302 | O35: each | P35: @ | S35: x | W35: 0 | AB35: 0 | AF35: 0
C36: 303 | O36: each | P36: @ | S36: x | W36: 0 | AB36: 0 | AF36: 0
C37: 304 | O37: each | P37: @ | S37: x | W37: 0 | AB37: 0 | AF37: 0
C38: 305 | O38: each | P38: @ | S38: x | W38: 0 | AB38: 0 | AF38: 0
C39: 306 | O39: each | P39: @ | S39: x | W39: 0 | AB39: 0 | AF39: 0
C40: 307 | O40: each | P40: @ | S40: x | W40: =N40*Q40*(IF(ISNUMBER(T40),T40,IF(ISNUMBER(N40),1,0))) -> 0 | AB40: 0 | AF40: 0
C41: 308 | O41: each | P41: @ | S41: x | W41: 0 | AB41: 0 | AF41: 0
C42: 309 | O42: each | P42: @ | S42: x | W42: 0 | AB42: 0 | AF42: 0
C43: 310 | O43: each | P43: @ | S43: x | W43: 0 | AB43: 0 | AF43: 0
C44: 311 | O44: each | P44: @ | S44: x | W44: 0 | AB44: 0 | AF44: 0
C45: 312 | O45: each | P45: @ | S45: x | W45: 0 | AB45: 0 | AF45: 0
C46: 313 | O46: each | P46: @ | S46: x | W46: 0 | AB46: 0 | AF46: 0
C47: 314 | O47: each | P47: @ | S47: x | W47: 0 | AB47: 0 | AF47: 0
C48: 315 | O48: each | P48: @ | S48: x | W48: 0 | AB48: 0 | AF48: 0
C49: 316 | O49: each | P49: @ | S49: x | W49: 0 | AB49: 0 | AF49: 0
C50: 317 | O50: each | P50: @ | S50: x | W50: 0 | AB50: 0 | AF50: 0
C51: 318 | O51: each | P51: @ | S51: x | W51: 0 | AB51: 0 | AF51: 0
C52: 319 | O52: each | P52: @ | S52: x | W52: 0 | AB52: 0 | AF52: 0
C53: 320 | O53: each | P53: @ | S53: x | W53: =N53*Q53*(IF(ISNUMBER(T53),T53,IF(ISNUMBER(N53),1,0))) -> 0 | AB53: 0 | AF53: 0
C54: 321 | O54: each | P54: @ | S54: x | W54: 0 | AB54: 0 | AF54: 0
C55: 322 | O55: each | P55: @ | S55: x | W55: 0 | AB55: 0 | AF55: 0
C56: 323 | O56: each | P56: @ | S56: x | W56: 0 | AB56: 0 | AF56: 0
C57: 324 | O57: each | P57: @ | S57: x | W57: 0 | AB57: 0 | AF57: 0
C58: 325 | O58: each | P58: @ | S58: x | W58: 0 | AB58: 0 | AF58: 0
C59: 326 | O59: each | P59: @ | S59: x | W59: 0 | AB59: 0 | AF59: 0
C60: 327 | O60: each | P60: @ | S60: x | W60: =N60*Q60*(IF(ISNUMBER(T60),T60,IF(ISNUMBER(N60),1,0))) -> 0 | AB60: 0 | AF60: 0
C61: 328 | O61: each | P61: @ | S61: x | W61: =N61*Q61*(IF(ISNUMBER(T61),T61,IF(ISNUMBER(N61),1,0))) -> 0 | AB61: 0 | AF61: 0
C62: 329 | O62: each | P62: @ | S62: x | W62: =N62*Q62*(IF(ISNUMBER(T62),T62,IF(ISNUMBER(N62),1,0))) -> 0 | AB62: 0 | AF62: 0
C63: 330 | O63: each | P63: @ | S63: x | W63: =N63*Q63*(IF(ISNUMBER(T63),T63,IF(ISNUMBER(N63),1,0))) -> 0 | AB63: 0 | AF63: 0
C64: 331 | O64: each | P64: @ | S64: x | W64: =N64*Q64*(IF(ISNUMBER(T64),T64,IF(ISNUMBER(N64),1,0))) -> 0 | AB64: 0 | AF64: 0
C65: 332 | O65: each | P65: @ | S65: x | W65: 0 | AB65: 0 | AF65: 0
C66: 333 | O66: each | P66: @ | S66: x | W66: 0 | AB66: 0 | AF66: 0
C67: 334 | O67: each | P67: @ | S67: x | W67: 0 | AB67: 0 | AF67: 0
C68: 335 | O68: each | P68: @ | S68: x | W68: 0 | AB68: 0 | AF68: 0
C69: 336 | O69: each | P69: @ | S69: x | W69: 0 | AB69: 0 | AF69: 0
C70: =C69+1 -> 337 | O70: each | P70: @ | S70: x | W70: =N70*Q70*(IF(ISNUMBER(T70),T70,IF(ISNUMBER(N70),1,0))) -> 0 | AB70: 0 | AF70: =AB70-W70 -> 0
C71: =C70+1 -> 338 | O71: each | P71: @ | S71: x | W71: =N71*Q71*(IF(ISNUMBER(T71),T71,IF(ISNUMBER(N71),1,0))) -> 0 | AB71: 0 | AF71: =AB71-W71 -> 0
C72: 339 | O72: each | P72: @ | S72: x | W72: =N72*Q72*(IF(ISNUMBER(T72),T72,IF(ISNUMBER(N72),1,0))) -> 0 | AB72: 0 | AF72: 0
C73: O. | D73: =D8&" (cont.)" -> Other (cont.)
E74: Description | N74: Days | Q74: Rate | T74: QTY | X74: Estimate | AB74: Actual | AF74: Variance
C75: =C72+1 -> 340 | O75: each | P75: @ | S75: x | W75: =N75*Q75*(IF(ISNUMBER(T75),T75,IF(ISNUMBER(N75),1,0))) -> 0 | AB75: 0 | AF75: 0
C76: 341 | O76: each | P76: @ | Q76: 245 | S76: x | W76: 0 | AB76: 0 | AF76: 0
C77: 342 | O77: each | P77: @ | S77: x | W77: 0 | AB77: 0 | AF77: 0
C78: 343 | O78: each | P78: @ | S78: x | W78: 0 | AB78: 0 | AF78: 0
C79: 344 | O79: each | P79: @ | S79: x | W79: 0 | AB79: 0 | AF79: 0
C80: =C79+1 -> 345 | O80: each | P80: @ | S80: x | W80: 0 | AB80: 0 | AF80: 0
C81: 346 | O81: each | P81: @ | S81: x | W81: 0 | AB81: 0 | AF81: 0
C82: 347 | O82: each | P82: @ | S82: x | W82: 0 | AB82: 0 | AF82: 0
C83: 348 | O83: each | P83: @ | S83: x | W83: 0 | AB83: 0 | AF83: 0
C84: 349 | O84: each | P84: @ | S84: x | W84: 0 | AB84: 0 | AF84: 0
C85: 350 | O85: each | P85: @ | S85: x | W85: 0 | AB85: 0 | AF85: 0
C86: 351 | O86: each | P86: @ | S86: x | W86: 0 | AB86: 0 | AF86: 0
C87: 352 | O87: each | P87: @ | S87: x | W87: 0 | AB87: 0 | AF87: 0
C88: 353 | O88: each | P88: @ | S88: x | W88: 0 | AB88: 0 | AF88: 0
C89: 354 | O89: each | P89: @ | S89: x | W89: 0 | AB89: 0 | AF89: 0
C90: 355 | O90: each | P90: @ | S90: x | W90: 0 | AB90: 0 | AF90: 0
C91: 356 | O91: each | P91: @ | S91: x | W91: 0 | AB91: 0 | AF91: 0
C92: 357 | O92: each | P92: @ | S92: x | W92: 0 | AB92: 0 | AF92: 0
C93: 358 | O93: each | P93: @ | S93: x | W93: 0 | AB93: 0 | AF93: 0
C94: 359 | O94: each | P94: @ | S94: x | W94: 0 | AB94: 0 | AF94: 0
C95: 360 | O95: each | P95: @ | S95: x | W95: 0 | AB95: 0 | AF95: 0
C96: 361 | O96: each | P96: @ | S96: x | W96: 0 | AB96: 0 | AF96: 0
C97: 362 | O97: each | P97: @ | S97: x | W97: 0 | AB97: 0 | AF97: 0
C98: 363 | O98: each | P98: @ | S98: x | W98: 0 | AB98: 0 | AF98: 0
C99: 364 | O99: each | P99: @ | S99: x | W99: 0 | AB99: 0 | AF99: 0
C100: 365 | O100: each | P100: @ | S100: x | W100: 0 | AB100: 0 | AF100: 0
C101: 366 | O101: each | P101: @ | S101: x | W101: 0 | AB101: 0 | AF101: 0
C102: 367 | O102: each | P102: @ | S102: x | W102: 0 | AB102: 0 | AF102: 0
C103: 368 | O103: each | P103: @ | S103: x | W103: 0 | AB103: 0 | AF103: 0
C104: 369 | O104: each | P104: @ | S104: x | W104: 0 | AB104: 0 | AF104: 0
C105: 370 | O105: each | P105: @ | S105: x | W105: 0 | AB105: 0 | AF105: 0
C106: 371 | O106: each | P106: @ | S106: x | W106: 0 | AB106: 0 | AF106: 0
C107: 372 | O107: each | P107: @ | S107: x | W107: 0 | AB107: 0 | AF107: 0
C108: 373 | O108: each | P108: @ | S108: x | W108: 0 | AB108: 0 | AF108: 0
C109: 374 | O109: each | P109: @ | S109: x | W109: 0 | AB109: 0 | AF109: 0
C110: 375 | O110: each | P110: @ | S110: x | W110: 0 | AB110: 0 | AF110: 0
C111: 376 | O111: each | P111: @ | S111: x | W111: 0 | AB111: 0 | AF111: 0
C112: 377 | O112: each | P112: @ | S112: x | W112: 0 | AB112: 0 | AF112: 0
C113: 378 | O113: each | P113: @ | S113: x | W113: 0 | AB113: 0 | AF113: 0
C114: 379 | O114: each | P114: @ | S114: x | W114: 0 | AB114: 0 | AF114: 0
C115: 380 | O115: each | P115: @ | S115: x | W115: 0 | AB115: 0 | AF115: 0
C116: 381 | O116: each | P116: @ | S116: x | W116: 0 | AB116: 0 | AF116: 0
C117: 382 | O117: each | P117: @ | S117: x | W117: 0 | AB117: 0 | AF117: 0
C118: 383 | O118: each | P118: @ | S118: x | W118: 0 | AB118: 0 | AF118: 0
C119: 384 | O119: each | P119: @ | S119: x | W119: 0 | AB119: 0 | AF119: 0
C120: 385 | O120: each | P120: @ | S120: x | W120: 0 | AB120: 0 | AF120: 0
C121: 386 | O121: each | P121: @ | S121: x | W121: 0 | AB121: 0 | AF121: 0
C122: 387 | O122: each | P122: @ | S122: x | W122: =N122*Q122*(IF(ISNUMBER(T122),T122,IF(ISNUMBER(N122),1,0))) -> 0 | AB122: 0 | AF122: 0
C123: 388 | O123: each | P123: @ | S123: x | W123: =N123*Q123*(IF(ISNUMBER(T123),T123,IF(ISNUMBER(N123),1,0))) -> 0 | AB123: 0 | AF123: 0
C124: 389 | O124: each | P124: @ | S124: x | W124: =N124*Q124*(IF(ISNUMBER(T124),T124,IF(ISNUMBER(N124),1,0))) -> 0 | AB124: 0 | AF124: 0
C125: 390 | O125: each | P125: @ | S125: x | W125: =N125*Q125*(IF(ISNUMBER(T125),T125,IF(ISNUMBER(N125),1,0))) -> 0 | AB125: 0 | AF125: 0
C126: 391 | O126: each | P126: @ | S126: x | W126: =N126*Q126*(IF(ISNUMBER(T126),T126,IF(ISNUMBER(N126),1,0))) -> 0 | AB126: 0 | AF126: 0
C127: 392 | O127: each | P127: @ | S127: x | W127: 0 | AB127: 0 | AF127: 0
C128: 393 | O128: each | P128: @ | S128: x | W128: 0 | AB128: 0 | AF128: 0
C129: 394 | O129: each | P129: @ | S129: x | W129: 0 | AB129: 0 | AF129: 0
C130: 395 | O130: each | P130: @ | S130: x | W130: 0 | AB130: 0 | AF130: 0
C131: 396 | O131: each | P131: @ | S131: x | W131: 0 | AB131: 0 | AF131: 0
C132: 397 | O132: each | P132: @ | S132: x | W132: =N132*Q132*(IF(ISNUMBER(T132),T132,IF(ISNUMBER(N132),1,0))) -> 0 | AB132: 0 | AF132: =AB132-W132 -> 0
C133: 398 | O133: each | P133: @ | S133: x | W133: =N133*Q133*(IF(ISNUMBER(T133),T133,IF(ISNUMBER(N133),1,0))) -> 0 | AB133: 0 | AF133: =AB133-W133 -> 0
C134: 399 | O134: each | P134: @ | S134: x | W134: =N134*Q134*(IF(ISNUMBER(T134),T134,IF(ISNUMBER(N134),1,0))) -> 0 | AB134: 0 | AF134: 0
O135: Sub Total O | W135: =SUM(W10:W72)+SUM(W75:W134) -> 0 | AB135: =SUM(AB10:AD69) -> 0 | AF135: =AB135-W135 -> 0
O136: Handling O | W136: =W135*AR136 -> 0 | AB136: =W136 -> 0 | AF136: 0 | AJ136: ="Handling Travel" -> Handling Travel | AR136: 0
O137: Total O | W137: =SUM(W135:Z136) -> 0 | AB137: =SUM(AB135:AD136) -> 0 | AF137: 0

Sheet P1. Breakout Expenses
DD1: Blank
C8: P1. | D8: Breakout Expenses
W9: Estimate | AB9: Actual | AF9: Variance
C10: 400 | W10: 0 | AB10: 0 | AF10: =AB10-W10 -> 0
C11: =C10+1 -> 401 | W11: 0 | AB11: 0 | AF11: =AB11-W11 -> 0
C12: =C11+1 -> 402 | W12: 0 | AB12: 0 | AF12: 0
C13: 403 | W13: 0 | AB13: 0 | AF13: 0
C14: 404 | W14: 0 | AB14: 0 | AF14: 0
C15: 405 | W15: 0 | AB15: 0 | AF15: 0
C16: 406 | W16: 0 | AB16: 0 | AF16: 0
C17: 407 | W17: 0 | AB17: 0 | AF17: 0
C18: 408 | W18: 0 | AB18: 0 | AF18: 0
C19: 409 | W19: 0 | AB19: 0 | AF19: 0
C20: 410 | W20: 0 | AB20: 0 | AF20: 0
C21: 411 | W21: 0 | AB21: 0 | AF21: 0
C22: 412 | W22: 0 | AB22: 0 | AF22: 0
C23: 413 | W23: 0 | AB23: 0 | AF23: 0
C24: 414 | W24: 0 | AB24: 0 | AF24: 0
C25: 415 | W25: 0 | AB25: 0 | AF25: 0
C26: 416 | W26: 0 | AB26: 0 | AF26: 0
C27: 417 | W27: 0 | AB27: 0 | AF27: 0
C28: 418 | W28: 0 | AB28: 0 | AF28: 0
C29: 419 | W29: 0 | AB29: 0 | AF29: 0
C30: 420 | W30: 0 | AB30: 0 | AF30: 0
C31: 421 | W31: 0 | AB31: 0 | AF31: 0
C32: 422 | W32: 0 | AB32: 0 | AF32: 0
C33: 423 | W33: 0 | AB33: 0 | AF33: 0
C34: 424 | W34: 0 | AB34: 0 | AF34: 0
C35: 425 | W35: 0 | AB35: 0 | AF35: 0
C36: 426 | W36: 0 | AB36: 0 | AF36: 0
C37: 427 | W37: 0 | AB37: 0 | AF37: 0
C38: 428 | W38: 0 | AB38: 0 | AF38: 0
C39: 429 | W39: 0 | AB39: 0 | AF39: 0
C40: 430 | W40: 0 | AB40: 0 | AF40: 0
C41: 431 | W41: 0 | AB41: 0 | AF41: 0
C42: 432 | W42: 0 | AB42: 0 | AF42: 0
C43: 433 | W43: 0 | AB43: 0 | AF43: 0
C44: 434 | W44: 0 | AB44: 0 | AF44: 0
C45: 435 | W45: 0 | AB45: 0 | AF45: 0
C46: 436 | W46: 0 | AB46: 0 | AF46: 0
C47: 437 | W47: 0 | AB47: 0 | AF47: 0
C48: 438 | W48: 0 | AB48: 0 | AF48: 0
C49: 439 | W49: 0 | AB49: 0 | AF49: 0
C50: 440 | W50: 0 | AB50: 0 | AF50: 0
C51: 441 | W51: 0 | AB51: 0 | AF51: 0
C52: 442 | W52: 0 | AB52: 0 | AF52: 0
C53: 443 | W53: 0 | AB53: 0 | AF53: 0
C54: 444 | W54: 0 | AB54: 0 | AF54: 0
C55: 445 | W55: 0 | AB55: 0 | AF55: 0
C56: 446 | W56: 0 | AB56: 0 | AF56: 0
C57: 447 | W57: 0 | AB57: 0 | AF57: 0
C58: 448 | W58: 0 | AB58: 0 | AF58: 0
C59: 449 | W59: 0 | AB59: 0 | AF59: 0
C60: 450 | W60: 0 | AB60: 0 | AF60: 0
C61: 451 | W61: 0 | AB61: 0 | AF61: 0
C62: 452 | W62: 0 | AB62: 0 | AF62: 0
C63: 453 | W63: 0 | AB63: 0 | AF63: 0
C64: 454 | W64: 0 | AB64: 0 | AF64: 0
C65: 455 | W65: 0 | AB65: 0 | AF65: 0
C66: 456 | W66: 0 | AB66: 0 | AF66: 0
C67: 457 | W67: 0 | AB67: 0 | AF67: 0
C68: 458 | W68: 0 | AB68: 0 | AF68: 0
C69: 459 | W69: 400 | AB69: 0 | AF69: -400
O70: ="Sub Total "&D8 -> Sub Total Breakout Expenses | W70: =SUM(W10:Z69) -> 400 | AB70: =SUM(AB10:AD69) -> 0 | AF70: -400
O71: ="Handling "&D8 -> Handling Breakout Expenses | W71: =W70*thsSheetHandling -> 92 | AB71: =W71 -> 92 | AF71: 0 | AJ71: ="Handling "&D8 -> Handling Breakout Expenses | AR71: 0.23
O72: ="Total "&D8 -> Total Breakout Expenses | W72: =SUM(W70:Z71) -> 492 | AB72: =SUM(AB70:AD71) -> 92 | AF72: -400

Sheet P2. Breakout Labor
DD1: Labor
C8: P2. | D8: Breakout Labor | AJ8: Payroll OT Calculator | AR8: Day Rate to State Law
E9: Description | N9: Days | Q9: Rate | U9: Overtime | X9: Estimate | AB9: Actual | AF9: Variance | AJ9: Base | AL9: Hourly | AN9: State OT | AP9: Fringes | AR9: State | AT9: State Day | AV9: State Day
U10: 1.5 | V10: 2 | AJ10: Hours | AL10: Rate | AN10: Rate | AP10: Rate | AR10: Basis | AT10: Strt Total | AV10: OT Total
C11: 501 | O11: days | P11: @ | S11: x | W11: =IF(ISNUMBER(N11),(N11*Q11*IF(ISNUMBER(T11),T11,1)+(IFERROR(U11*(Q11/AJ11)*1.5,0))+(IFERROR(V11*(Q11/AJ11)*2,0))),0) -> 0 | AB11: 0 | AF11: =AB11-W11 -> 0 | AJ11: 10 | AL11: =IFERROR(Q11/(AJ11+((AJ11-AP$11)*0.5)),0) -> 0 | AN11: =AL11*1.5 -> 0 | AP11: 0.38 | AR11: 8 | AT11: =AL11*ThisSheetState -> 0 | AV11: =(AJ11-ThisSheetState)*AN11 -> 0
C12: =C11+1 -> 502 | O12: days | P12: @ | S12: x | W12: 0 | AB12: 0 | AF12: 0 | AJ12: 10 | AL12: =IFERROR(Q12/(AJ12+((AJ12-AP$11)*0.5)),0) -> 0 | AN12: 0 | AT12: 0 | AV12: 0
C13: =C12+1 -> 503 | O13: days | P13: @ | S13: x | W13: 0 | AB13: 0 | AF13: 0 | AJ13: 10 | AL13: 0 | AN13: 0 | AT13: 0 | AV13: 0
C14: 504 | O14: days | P14: @ | S14: x | W14: 0 | AB14: 0 | AF14: 0 | AJ14: 10 | AL14: 0 | AN14: 0 | AT14: 0 | AV14: 0
C15: 505 | O15: days | P15: @ | S15: x | W15: 0 | AB15: 0 | AF15: 0 | AJ15: 10 | AL15: 0 | AN15: 0 | AT15: 0 | AV15: 0
C16: 506 | O16: days | P16: @ | S16: x | W16: 0 | AB16: 0 | AF16: 0 | AJ16: 10 | AL16: 0 | AN16: 0 | AT16: 0 | AV16: 0
C17: 507 | O17: days | P17: @ | S17: x | W17: 0 | AB17: 0 | AF17: 0 | AJ17: 10 | AL17: 0 | AN17: 0 | AT17: 0 | AV17: 0
C18: 508 | O18: days | P18: @ | S18: x | W18: 0 | AB18: 0 | AF18: 0 | AJ18: 10 | AL18: 0 | AN18: 0 | AT18: 0 | AV18: 0
C19: 509 | O19: days | P19: @ | S19: x | W19: 0 | AB19: 0 | AF19: 0 | AJ19: 10 | AL19: 0 | AN19: 0 | AT19: 0 | AV19: 0
C20: 510 | O20: days | P20: @ | S20: x | W20: 0 | AB20: 0 | AF20: 0 | AJ20: 10 | AL20: 0 | AN20: 0 | AT20: 0 | AV20: 0
C21: 511 | O21: days | P21: @ | S21: x | W21: 0 | AB21: 0 | AF21: 0 | AJ21: 10 | AL21: 0 | AN21: 0 | AT21: 0 | AV21: 0
C22: 512 | O22: days | P22: @ | S22: x | W22: 0 | AB22: 0 | AF22: 0 | AJ22: 10 | AL22: 0 | AN22: 0 | AT22: 0 | AV22: 0
C23: 513 | O23: days | P23: @ | S23: x | W23: 0 | AB23: 0 | AF23: 0 | AJ23: 10 | AL23: 0 | AN23: 0 | AT23: 0 | AV23: 0
C24: 514 | O24: days | P24: @ | S24: x | W24: 0 | AB24: 0 | AF24: 0 | AJ24: 10 | AL24: 0 | AN24: 0 | AT24: 0 | AV24: 0
C25: 515 | O25: days | P25: @ | S25: x | W25: 0 | AB25: 0 | AF25: 0 | AJ25: 10 | AL25: 0 | AN25: 0 | AT25: 0 | AV25: 0
C26: 516 | O26: days | P26: @ | S26: x | W26: 0 | AB26: 0 | AF26: 0 | AJ26: 10 | AL26: 0 | AN26: 0 | AT26: 0 | AV26: 0
C27: 517 | O27: days | P27: @ | S27: x | W27: 0 | AB27: 0 | AF27: 0 | AJ27: 10 | AL27: 0 | AN27: 0 | AT27: 0 | AV27: 0
C28: 518 | O28: days | P28: @ | S28: x | W28: 0 | AB28: 0 | AF28: 0 | AJ28: 10 | AL28: 0 | AN28: 0 | AT28: 0 | AV28: 0
C29: 519 | O29: days | P29: @ | S29: x | W29: 0 | AB29: 0 | AF29: 0 | AJ29: 10 | AL29: 0 | AN29: 0 | AT29: 0 | AV29: 0
C30: 520 | O30: days | P30: @ | S30: x | W30: 0 | AB30: 0 | AF30: 0 | AJ30: 10 | AL30: 0 | AN30: 0 | AT30: 0 | AV30: 0
C31: 521 | O31: days | P31: @ | S31: x | W31: 0 | AB31: 0 | AF31: 0 | AJ31: 10 | AL31: 0 | AN31: 0 | AT31: 0 | AV31: 0
C32: 522 | O32: days | P32: @ | S32: x | W32: 0 | AB32: 0 | AF32: 0 | AJ32: 10 | AL32: 0 | AN32: 0 | AT32: 0 | AV32: 0
C33: 523 | O33: days | P33: @ | S33: x | W33: 0 | AB33: 0 | AF33: 0 | AJ33: 8 | AL33: 0 | AN33: 0 | AT33: 0 | AV33: 0
C34: 524 | O34: days | P34: @ | S34: x | W34: 0 | AB34: 0 | AF34: 0 | AJ34: 8 | AL34: 0 | AN34: 0 | AT34: 0 | AV34: 0
C35: 525 | O35: days | P35: @ | S35: x | W35: 0 | AB35: 0 | AF35: 0 | AJ35: 8 | AL35: 0 | AN35: 0 | AT35: 0 | AV35: 0
C36: 526 | O36: days | P36: @ | S36: x | W36: 0 | AB36: 0 | AF36: 0 | AJ36: 8 | AL36: 0 | AN36: 0 | AT36: 0 | AV36: 0
C37: 527 | O37: days | P37: @ | S37: x | W37: 0 | AB37: 0 | AF37: 0 | AJ37: 8 | AL37: 0 | AN37: 0 | AT37: 0 | AV37: 0
C38: 528 | O38: days | P38: @ | S38: x | W38: 0 | AB38: 0 | AF38: 0 | AJ38: 10 | AL38: 0 | AN38: 0 | AT38: 0 | AV38: 0
C39: 529 | O39: days | P39: @ | S39: x | W39: 0 | AB39: 0 | AF39: 0 | AJ39: 10 | AL39: 0 | AN39: 0 | AT39: 0 | AV39: 0
C40: 530 | O40: days | P40: @ | S40: x | W40: 0 | AB40: 0 | AF40: 0 | AJ40: 10 | AL40: 0 | AN40: 0 | AT40: 0 | AV40: 0
C41: 531 | O41: days | P41: @ | S41: x | W41: 0 | AB41: 0 | AF41: 0 | AJ41: 10 | AL41: 0 | AN41: 0 | AT41: 0 | AV41: 0
C42: 532 | O42: days | P42: @ | S42: x | W42: 0 | AB42: 0 | AF42: 0 | AJ42: 10 | AL42: 0 | AN42: 0 | AT42: 0 | AV42: 0
C43: 533 | O43: days | P43: @ | S43: x | W43: 0 | AB43: 0 | AF43: 0 | AJ43: 10 | AL43: 0 | AN43: 0 | AT43: =AL43*ThisSheetState -> 0 | AV43: =(AJ43-ThisSheetState)*AN43 -> 0
C44: 534 | O44: days | P44: @ | S44: x | W44: 0 | AB44: 0 | AF44: 0 | AJ44: 10 | AL44: 0 | AN44: 0 | AT44: 0 | AV44: 0
C45: 535 | O45: days | P45: @ | S45: x | W45: 0 | AB45: 0 | AF45: 0 | AJ45: 10 | AL45: 0 | AN45: 0 | AT45: 0 | AV45: 0
C46: 536 | O46: days | P46: @ | S46: x | W46: 0 | AB46: 0 | AF46: 0 | AJ46: 10 | AL46: 0 | AN46: 0 | AT46: 0 | AV46: 0
C47: 537 | O47: days | P47: @ | S47: x | W47: 0 | AB47: 0 | AF47: 0 | AJ47: 10 | AL47: 0 | AN47: 0 | AT47: 0 | AV47: 0
C48: 538 | O48: days | P48: @ | S48: x | W48: 0 | AB48: 0 | AF48: 0 | AJ48: 10 | AL48: 0 | AN48: 0 | AT48: 0 | AV48: 0
C49: 539 | N49: 1 | O49: days | P49: @ | Q49: 345 | S49: x | W49: 345 | AB49: 0 | AF49: -345 | AJ49: 10 | AL49: 23.2950709 | AN49: 34.94260635 | AT49: 186.3605672 | AV49: 69.88521269
C50: 540 | O50: days | P50: @ | S50: x | W50: 0 | AB50: 0 | AF50: 0 | AJ50: 10 | AL50: 0 | AN50: 0 | AT50: 0 | AV50: 0
C51: 541 | O51: days | P51: @ | S51: x | W51: 0 | AB51: 0 | AF51: 0 | AJ51: 10 | AL51: 0 | AN51: 0 | AT51: 0 | AV51: 0
C52: 542 | O52: days | P52: @ | S52: x | W52: 0 | AB52: 0 | AF52: 0 | AJ52: 10 | AL52: 0 | AN52: 0 | AT52: 0 | AV52: 0
C53: 543 | O53: days | P53: @ | S53: x | W53: 0 | AB53: 0 | AF53: 0 | AJ53: 10 | AL53: 0 | AN53: 0 | AT53: 0 | AV53: 0
C54: 544 | O54: days | P54: @ | S54: x | W54: 0 | AB54: 0 | AF54: 0 | AJ54: 10 | AL54: 0 | AN54: 0 | AT54: 0 | AV54: 0
C55: 545 | O55: days | P55: @ | S55: x | W55: 0 | AB55: 0 | AF55: 0 | AJ55: 10 | AL55: 0 | AN55: 0 | AT55: 0 | AV55: 0
C56: 546 | O56: days | P56: @ | S56: x | W56: 0 | AB56: 0 | AF56: 0 | AJ56: 10 | AL56: 0 | AN56: 0 | AT56: 0 | AV56: 0
C57: 547 | O57: days | P57: @ | S57: x | W57: 0 | AB57: 0 | AF57: 0 | AJ57: 10 | AL57: 0 | AN57: 0 | AT57: 0 | AV57: 0
C58: 548 | O58: days | P58: @ | S58: x | W58: 0 | AB58: 0 | AF58: 0 | AJ58: 10 | AL58: 0 | AN58: 0 | AT58: 0 | AV58: 0
C59: 549 | O59: days | P59: @ | S59: x | W59: 0 | AB59: 0 | AF59: 0 | AJ59: 10 | AL59: 0 | AN59: 0 | AT59: 0 | AV59: 0
C60: 550 | O60: days | P60: @ | S60: x | W60: 0 | AB60: 0 | AF60: 0 | AJ60: 10 | AL60: 0 | AN60: 0 | AT60: 0 | AV60: 0
O61: ="Sub Total "&P_TITLE -> Sub Total Breakout Labor | W61: =SUM(W11:Z60) -> 345 | AB61: =SUM(AB11:AD60) -> 0 | AF61: =AB61-W61 -> -345
O62: ="Fringes "&P_TITLE -> Fringes Breakout Labor | W62: =IFERROR(W61*AP11,0) -> 131.1 | AB62: 0 | AF62: =AB62-W62 -> -131.1
O63: ="Total "&P_TITLE -> Total Breakout Labor | W63: =W62+W61 -> 476.1 | AB63: =SUM(AB61:AD62) -> 0 | AF63: -476.1

Sheet P3. Breakout Talent
DD1: Talent
C8: P3. | D8: Breakout Talent | AJ8: Payroll OT Calculator | AR8: Day Rate to State Law
E9: Description | N9: Days | Q9: Rate | T9: QTY | U9: Overtime | W9: Estimate | AB9: Actual | AF9: Variance | AJ9: Base | AL9: Hourly | AN9: State OT | AP9: Fringes | AR9: State | AT9: State Day | AV9: State Day
U10: 1.5 | V10: 2 | AJ10: Hours | AL10: Rate | AN10: Rate | AP10: Rate | AR10: Basis | AT10: Strt Total | AV10: OT Total
C11: 100 | E11: O/C Principals | N11: 1 | O11: days | P11: @ | Q11: 1000 | S11: x | U11: 1 | W11: =IF(ISNUMBER(N11),(N11*Q11*IF(ISNUMBER(T11),T11,1)+(IFERROR(U11*(Q11/AJ11)*1.5,0))+(IFERROR(V11*(Q11/AJ11)*2,0))),0) -> 1150 | AB11: 0 | AF11: =AB11-W11 -> -1150 | AJ11: 10 | AL11: =IFERROR(Q11/(AJ11+((AJ11-HourlyState_M)*0.5)),0) -> 66.66666667 | AN11: =AL11*1.5 -> 100 | AP11: 0 | AR11: 8 | AT11: =AL11*ThisSheetState -> 533.3333333 | AV11: =(AJ11-ThisSheetState)*AN11 -> 200
C12: =C11+1 -> 101 | E12: O/C Principals | O12: days | P12: @ | S12: x | W12: =IF(ISNUMBER(N12),(N12*Q12*IF(ISNUMBER(T12),T12,1)+(IFERROR(U12*(Q12/AJ12)*1.5,0))+(IFERROR(V12*(Q12/AJ12)*2,0))),0) -> 0 | AB12: 0 | AF12: 0 | AJ12: 10 | AL12: 0 | AN12: 0 | AT12: =AL12*ThisSheetState -> 0 | AV12: =(AJ12-ThisSheetState)*AN12 -> 0
C13: =C12+1 -> 102 | E13: O/C Principals | O13: days | P13: @ | S13: x | W13: 0 | AB13: 0 | AF13: 0 | AJ13: 10 | AL13: 0 | AN13: 0 | AT13: 0 | AV13: 0
C14: 103 | E14: O/C Principals | N14: 1 | O14: days | P14: @ | Q14: 1000 | S14: x | U14: 1 | W14: 1150 | AB14: 0 | AF14: -1150 | AJ14: 10 | AL14: =IFERROR(Q14/(AJ14+((AJ14-HourlyState_M)*0.5)),0) -> 66.66666667 | AN14: 100 | AT14: 533.3333333 | AV14: 200
C15: 104 | E15: O/C Principals | O15: days | P15: @ | S15: x | W15: 0 | AB15: 0 | AF15: 0 | AJ15: 10 | AL15: 0 | AN15: 0 | AT15: 0 | AV15: 0
C16: 105 | E16: O/C Principals | O16: days | P16: @ | S16: x | W16: 0 | AB16: 0 | AF16: 0 | AJ16: 10 | AL16: 0 | AN16: 0 | AT16: 0 | AV16: 0
C17: 106 | E17: O/C Principals | O17: days | P17: @ | S17: x | W17: 0 | AB17: 0 | AF17: 0 | AJ17: 10 | AL17: 0 | AN17: 0 | AT17: 0 | AV17: 0
C18: 107 | O18: days | P18: @ | S18: x | W18: 0 | AB18: 0 | AF18: 0 | AJ18: 10 | AL18: 0 | AN18: 0 | AT18: 0 | AV18: 0
C19: 108 | E19: Office Extras | O19: days | P19: @ | S19: x | W19: 0 | AB19: 0 | AF19: 0 | AJ19: 10 | AL19: 0 | AN19: 0 | AT19: 0 | AV19: 0
C20: 109 | O20: days | P20: @ | S20: x | W20: 0 | AB20: 0 | AF20: 0 | AJ20: 10 | AL20: 0 | AN20: 0 | AT20: 0 | AV20: 0
C21: 110 | E21: Crowd Extras | O21: days | P21: @ | S21: x | W21: 0 | AB21: 0 | AF21: 0 | AJ21: 10 | AL21: 0 | AN21: 0 | AT21: 0 | AV21: 0
C22: 111 | E22: General Extras | O22: days | P22: @ | S22: x | W22: 0 | AB22: 0 | AF22: 0 | AJ22: 10 | AL22: 0 | AN22: 0 | AT22: 0 | AV22: 0
C23: 112 | E23: General Extras | O23: days | P23: @ | S23: x | W23: 0 | AB23: 0 | AF23: 0 | AJ23: 10 | AL23: 0 | AN23: 0 | AT23: 0 | AV23: 0
C24: 113 | E24: General Extras | O24: days | P24: @ | S24: x | W24: 0 | AB24: 0 | AF24: 0 | AJ24: 10 | AL24: 0 | AN24: 0 | AT24: 0 | AV24: 0
C25: 114 | O25: days | P25: @ | S25: x | W25: 0 | AB25: 0 | AF25: 0 | AJ25: 10 | AL25: 0 | AN25: 0 | AT25: 0 | AV25: 0
C26: 115 | O26: days | P26: @ | S26: x | W26: 0 | AB26: 0 | AF26: 0 | AJ26: 10 | AL26: 0 | AN26: 0 | AT26: 0 | AV26: 0
C27: 116 | O27: days | P27: @ | S27: x | W27: 0 | AB27: 0 | AF27: 0 | AJ27: 10 | AL27: 0 | AN27: 0 | AT27: 0 | AV27: 0
C28: 117 | E28: Hand Models | O28: days | P28: @ | S28: x | W28: 0 | AB28: 0 | AF28: 0 | AJ28: 10 | AL28: 0 | AN28: 0 | AT28: 0 | AV28: 0
C29: 118 | O29: days | P29: @ | S29: x | W29: 0 | AB29: 0 | AF29: 0 | AJ29: 10 | AL29: 0 | AN29: 0 | AT29: 0 | AV29: 0
C30: 119 | O30: days | P30: @ | S30: x | W30: 0 | AB30: 0 | AF30: 0 | AJ30: 10 | AL30: 0 | AN30: 0 | AT30: 0 | AV30: 0
C31: 120 | E31: Voice Over | O31: days | P31: @ | S31: x | W31: 0 | AB31: 0 | AF31: 0 | AJ31: 10 | AL31: 0 | AN31: 0 | AT31: 0 | AV31: 0
C32: 121 | E32: Fitting Fees | O32: days | P32: @ | S32: x | W32: 0 | AB32: 0 | AF32: 0 | AJ32: 10 | AL32: 0 | AN32: 0 | AT32: 0 | AV32: 0
C33: 122 | E33: Fitting Fees | O33: days | P33: @ | S33: x | W33: 0 | AB33: 0 | AF33: 0 | AJ33: 10 | AL33: 0 | AN33: 0 | AT33: 0 | AV33: 0
C34: 123 | O34: days | P34: @ | S34: x | W34: 0 | AB34: 0 | AF34: 0 | AJ34: 10 | AL34: 0 | AN34: =AL34*1.5 -> 0 | AT34: 0 | AV34: 0
C35: 124 | E35: Audition Fees | O35: days | P35: @ | S35: x | W35: 0 | AB35: 0 | AF35: 0 | AJ35: 10 | AL35: 0 | AN35: =AL35*1.5 -> 0 | AT35: 0 | AV35: 0
C36: 125 | E36: Audition Fees | O36: days | P36: @ | S36: x | W36: 0 | AB36: 0 | AF36: 0 | AJ36: 10 | AL36: 0 | AN36: =AL36*1.5 -> 0 | AT36: 0 | AV36: 0
C37: 126 | O37: days | P37: @ | S37: x | W37: 0 | AB37: 0 | AF37: 0 | AJ37: 10 | AL37: 0 | AN37: =AL37*1.5 -> 0 | AT37: 0 | AV37: 0
C38: 127 | O38: days | P38: @ | S38: x | W38: 0 | AB38: 0 | AF38: 0 | AJ38: 10 | AL38: 0 | AN38: =AL38*1.5 -> 0 | AT38: 0 | AV38: 0
O39: ="Sub Total "&P_TITLE -> Sub Total Breakout Talent | W39: =SUM(W11:Z38) -> 2300 | AB39: =SUM(AB11:AD38) -> 0 | AF39: -2300
O40: ="Fringes "&P_TITLE -> Fringes Breakout Talent | W40: =W39*thisSheetFringes -> 0 | AB40: 0 | AF40: 0
E42: Additional Talent Costs | X42: Estimate | AB42: Actual | AF42: Variance | AJ42: Talent Agency & Payroll
C43: =C38+1 -> 128 | E43: Talent Agency Fees | P43: % | W43: =W39*N43*0.01 -> 0 | AB43: 0 | AF43: =AB43-W43 -> 0 | AJ43: Agency Fees | AM43: Payroll Svc.
C44: =C43+1 -> 129 | E44: Talent Payroll Service | P44: % | W44: =W39*N44*0.01 -> 0 | AB44: 0 | AF44: 0 | AJ44: 0 | AM44: 0
C45: =C44+1 -> 130 | E45: Talent Wardrobe Allowance | O45: each | P45: @ | S45: x | W45: =N45*Q45*(IF(ISNUMBER(T45),T45,IF(ISNUMBER(N45),1,0))) -> 0 | AB45: 0 | AF45: 0
C46: 131 | O46: each | P46: @ | S46: x | W46: =N46*Q46*(IF(ISNUMBER(T46),T46,IF(ISNUMBER(N46),1,0))) -> 0 | AB46: 0 | AF46: 0 | AJ46: Handling Fees
C47: 132 | O47: each | P47: @ | S47: x | W47: =N47*Q47*(IF(ISNUMBER(T47),T47,IF(ISNUMBER(N47),1,0))) -> 0 | AB47: 0 | AF47: 0 | AJ47: =C8 -> P3. | AM47: =C51 -> P1b.
O48: ="Handling Fee "&P_TITLE -> Handling Fee Breakout Talent | W48: =(SUM(W43:Z47)+(W39+W40))*AJ48 -> 0 | AB48: =W48 -> 0 | AF48: 0 | AJ48: 0 | AM48: 0
O49: ="Total "&P_TITLE -> Total Breakout Talent | W49: =W48+W40+W39+SUM(W43:Z47) -> 2300 | AB49: =AB48+AB40+AB39+SUM(AB43:AD47) -> 0 | AF49: -2300
C51: P1b. | D51: =P_TITLE&" Expenses" -> Breakout Talent Expenses
E52: Description | N52: QTY | Q52: Rate | T52: Days | X52: Estimate | AB52: Actual | AF52: Variance
C53: =C47+1 -> 133 | E53: Talent Air Fares | O53: each | P53: @ | S53: x | W53: =N53*Q53*(IF(ISNUMBER(T53),T53,IF(ISNUMBER(N53),1,0))) -> 0 | AB53: 0 | AF53: =AB53-W53 -> 0
C54: =C53+1 -> 134 | E54: Talent Per Diem | O54: each | P54: @ | S54: x | W54: 0 | AB54: 0 | AF54: 0
C55: 135 | E55: Talent Gd Transportation | O55: each | P55: @ | S55: x | W55: 0 | AB55: 0 | AF55: 0
C56: 136 | O56: each | P56: @ | S56: x | W56: 0 | AB56: 0 | AF56: 0
C57: 137 | O57: each | P57: @ | S57: x | W57: 0 | AB57: 0 | AF57: 0
C58: 138 | O58: each | P58: @ | S58: x | W58: 0 | AB58: 0 | AF58: 0
O59: ="Sub Total "&D51 -> Sub Total Breakout Talent Expenses | W59: =SUM(W53:Z58) -> 0 | AB59: =SUM(AB53:AD58) -> 0 | AF59: 0
O60: ="Handling Fee "&D51 -> Handling Fee Breakout Talent Expenses | W60: =W59*AM48 -> 0 | AB60: =W60 -> 0 | AF60: 0
O61: ="Total "&D51 -> Total Breakout Talent Expenses | W61: =W59+W60 -> 0 | AB61: =SUM(AB59:AD60) -> 0 | AF61: 0
O63: Total P1 | W63: =W61+W49 -> 2300 | AB63: =AB61+AB49 -> 0 | AF63: =AB63-P_TOT -> -2300

Sheet P4. Breakout Blank
DD1: Blank
C8: P4. | D8: Breakout Blank
W9: Estimate | AB9: Actual | AF9: Variance
C10: 200 | AB10: 0 | AF10: =AB10-W10 -> 0
C11: =C10+1 -> 201 | AB11: 0 | AF11: =AB11-W11 -> 0
C12: =C11+1 -> 202 | AB12: 0 | AF12: 0
C13: 203 | AB13: 0 | AF13: 0
C14: 204 | AB14: 0 | AF14: 0
C15: 205 | AB15: 0 | AF15: 0
C16: 206 | AB16: 0 | AF16: 0
C17: 207 | AB17: 0 | AF17: 0
C18: 208 | AB18: 0 | AF18: 0
C19: 209 | AB19: 0 | AF19: 0
C20: 210 | AB20: 0 | AF20: 0
C21: 211 | AB21: 0 | AF21: 0
C22: 212 | AB22: 0 | AF22: 0
C23: 213 | AB23: 0 | AF23: 0
C24: 214 | AB24: 0 | AF24: 0
C25: 215 | AB25: 0 | AF25: 0
C26: 216 | AB26: 0 | AF26: 0
C27: 217 | AB27: 0 | AF27: 0
C28: 218 | AB28: 0 | AF28: 0
C29: 219 | AB29: 0 | AF29: 0
C30: 220 | AB30: 0 | AF30: 0
C31: 221 | AB31: 0 | AF31: 0
C32: 222 | AB32: 0 | AF32: 0
C33: 223 | AB33: 0 | AF33: 0
C34: 224 | AB34: 0 | AF34: 0
C35: 225 | AB35: 0 | AF35: 0
C36: 226 | AB36: 0 | AF36: 0
C37: 227 | AB37: 0 | AF37: 0
C38: 228 | AB38: 0 | AF38: 0
C39: 229 | AB39: 0 | AF39: 0
C40: 230 | AB40: 0 | AF40: 0
C41: 231 | AB41: 0 | AF41: 0
C42: 232 | AB42: 0 | AF42: 0
C43: 233 | AB43: 0 | AF43: 0
C44: 234 | AB44: 0 | AF44: 0
C45: 235 | AB45: 0 | AF45: 0
C46: 236 | AB46: 0 | AF46: 0
C47: 237 | AB47: 0 | AF47: 0
C48: 238 | AB48: 0 | AF48: 0
C49: 239 | AB49: 0 | AF49: 0
C50: 240 | AB50: 0 | AF50: 0
C51: 241 | AB51: 0 | AF51: 0
C52: 242 | AB52: 0 | AF52: 0
C53: 243 | AB53: 0 | AF53: 0
C54: 244 | AB54: 0 | AF54: 0
C55: 245 | AB55: 0 | AF55: 0
C56: 246 | AB56: 0 | AF56: 0
C57: 247 | AB57: 0 | AF57: 0
C58: 248 | AB58: 0 | AF58: 0
C59: 249 | AB59: 0 | AF59: 0
C60: 250 | AB60: 0 | AF60: 0
C61: 251 | AB61: 0 | AF61: 0
C62: 252 | AB62: 0 | AF62: 0
C63: 253 | AB63: 0 | AF63: 0
C64: 254 | AB64: 0 | AF64: 0
C65: 255 | AB65: 0 | AF65: 0
C66: 256 | AB66: 0 | AF66: 0
C67: 257 | AB67: 0 | AF67: 0
C68: 258 | AB68: 0 | AF68: 0
C69: 259 | AB69: 0 | AF69: 0
O70: ="Sub Total "&D8 -> Sub Total Breakout Blank | W70: =SUM(W10:Z69) -> 0 | AB70: =SUM(AB10:AD69) -> 0 | AF70: 0
O71: ="Handling "&D8 -> Handling Breakout Blank | W71: =W70*AR71 -> 0 | AB71: =W71 -> 0 | AF71: 0 | AJ71: ="Handling "&D8 -> Handling Breakout Blank | AR71: 0
O72: ="Total "&D8 -> Total Breakout Blank | W72: =SUM(W70:Z71) -> 0 | AB72: =SUM(AB70:AD71) -> 0 | AF72: 0

Sheet Q (hidden)
C5: Q. | D5: Editorial
E6: Description | O6: Days | R6: Rate | U6: QTY | X6: Estimate | AB6: Actual | AF6: Variance | AJ6: Q Markup | AM6: MU | AN6: Line MU | AR6: Q Tax | AU6: TX | AV6: Line TX
C7: 2010 | E7: File Conversion & Transcoding | P7: hours | R7: @ | U7: x | W7: =O7*S7*(IF(ISNUMBER(V7),V7,IF(ISNUMBER(O7),1,0))) -> 0 | AB7: 0 | AF7: =AB7-W7 -> 0 | AJ7: 0 | AN7: =IF(AM7="X",W7*Q_MU,0) -> 0 | AR7: 0 | AV7: =IF(AU7="X",W7*Q_TX,0) -> 0
C8: 2020 | E8: Breakdown | P8: hours | R8: @ | U8: x | W8: =O8*S8*(IF(ISNUMBER(V8),V8,IF(ISNUMBER(O8),1,0))) -> 0 | AB8: 0 | AF8: =AB8-W8 -> 0 | AN8: 0 | AV8: 0
C9: 2030 | E9: Stock Footage Search | P9: hours | R9: @ | U9: x | W9: 0 | AB9: 0 | AF9: 0 | AN9: 0 | AV9: 0
C10: 2040 | E10: Digital Dalies Transfer | P10: hours | R10: @ | U10: x | W10: 0 | AB10: 0 | AF10: 0 | AN10: 0 | AV10: 0
C11: 2050 | E11: Transcription / Translation | P11: allow | R11: @ | U11: x | W11: 0 | AB11: 0 | AF11: 0 | AN11: 0 | AV11: 0
C12: 2060 | R12: @ | U12: x | W12: 0 | AB12: 0 | AF12: 0 | AN12: 0 | AV12: 0
C13: 2070 | R13: @ | U13: x | W13: 0 | AB13: 0 | AF13: 0 | AN13: 0 | AV13: 0
C14: 2080 | R14: @ | U14: x | W14: 0 | AB14: 0 | AF14: 0 | AN14: 0 | AV14: 0
C15: 2090 | R15: @ | U15: x | W15: 0 | AB15: 0 | AF15: 0 | AN15: 0 | AV15: 0
C16: 2110 | E16: Offline Edit System | P16: days | R16: @ | U16: x | W16: 0 | AB16: 0 | AF16: 0 | AN16: 0 | AV16: 0
C17: 2120 | E17: Off-Line Graphics System | P17: days | R17: @ | U17: x | W17: 0 | AB17: 0 | AF17: 0 | AN17: 0 | AV17: 0
C18: 2130 | E18: Data Backup / Restore | P18: allow | R18: @ | U18: x | W18: 0 | AB18: 0 | AF18: 0 | AN18: 0 | AV18: 0
C19: 2140 | E19: Conform | P19: hours | R19: @ | U19: x | W19: 0 | AB19: 0 | AF19: 0 | AN19: 0 | AV19: 0
C20: 2150 | E20: Hi-Res Conform | P20: hours | R20: @ | U20: x | W20: 0 | AB20: 0 | AF20: 0 | AN20: 0 | AV20: 0
C21: 2160 | R21: @ | U21: x | W21: 0 | AB21: 0 | AF21: 0 | AN21: 0 | AV21: 0
C22: 2170 | R22: @ | U22: x | W22: 0 | AB22: 0 | AF22: 0 | AN22: 0 | AV22: 0
C23: 2180 | R23: @ | U23: x | W23: 0 | AB23: 0 | AF23: 0 | AN23: 0 | AV23: 0
C24: 2190 | R24: @ | U24: x | W24: 0 | AB24: 0 | AF24: 0 | AN24: 0 | AV24: 0
C25: 2210 | E25: Mix Prep | P25: flat | R25: @ | U25: x | W25: 0 | AB25: 0 | AF25: 0 | AN25: 0 | AV25: 0
C26: 2220 | E26: Color Prep | P26: flat | R26: @ | U26: x | W26: 0 | AB26: 0 | AF26: 0 | AN26: 0 | AV26: 0
C27: 2230 | E27: Conform Prep | P27: flat | R27: @ | U27: x | W27: 0 | AB27: 0 | AF27: 0 | AN27: 0 | AV27: 0
C28: 2240 | E28: Graphics Prep | P28: flat | R28: @ | U28: x | W28: 0 | AB28: 0 | AF28: 0 | AN28: 0 | AV28: 0
C29: 2250 | R29: @ | U29: x | W29: 0 | AB29: 0 | AF29: 0 | AN29: 0 | AV29: 0
C30: 2260 | R30: @ | U30: x | W30: 0 | AB30: 0 | AF30: 0 | AN30: 0 | AV30: 0
C31: 2270 | R31: @ | U31: x | W31: 0 | AB31: 0 | AF31: 0 | AN31: 0 | AV31: 0
C32: 2280 | R32: @ | U32: x | W32: 0 | AB32: 0 | AF32: 0 | AN32: 0 | AV32: 0
C33: 2290 | R33: @ | U33: x | W33: 0 | AB33: 0 | AF33: 0 | AN33: 0 | AV33: 0
C34: 2310 | E34: Remote Off-Line Edit Suite | P34: days | R34: @ | U34: x | W34: 0 | AB34: 0 | AF34: 0 | AN34: 0 | AV34: 0
C35: 2320 | E35: Digital Media | P35: flat | R35: @ | U35: x | W35: 0 | AB35: 0 | AF35: 0 | AN35: 0 | AV35: 0
C36: 2330 | E36: Offline Posting | P36: flat | R36: @ | U36: x | W36: 0 | AB36: 0 | AF36: 0 | AN36: 0 | AV36: 0
C37: 2340 | E37: Backup / Restore | P37: flat | R37: @ | U37: x | W37: 0 | AB37: 0 | AF37: 0 | AN37: 0 | AV37: 0
C38: 2350 | E38: Archiving | P38: flat | R38: @ | U38: x | W38: 0 | AB38: 0 | AF38: 0 | AN38: 0 | AV38: 0
C39: 2360 | R39: @ | U39: x | W39: 0 | AB39: 0 | AF39: 0 | AN39: =IF(AM39="X",W39*Q_MU,0) -> 0 | AV39: =IF(AU39="X",W39*Q_TX,0) -> 0
C40: 2370 | R40: @ | U40: x | W40: 0 | AB40: 0 | AF40: 0 | AN40: 0 | AV40: 0
C41: 2380 | R41: @ | U41: x | W41: 0 | AB41: 0 | AF41: 0 | AN41: 0 | AV41: 0
C42: 2390 | R42: @ | U42: x | W42: 0 | AB42: 0 | AF42: 0 | AN42: 0 | AV42: 0
C43: 2410 | P43: allow | R43: @ | U43: x | W43: 0 | AB43: 0 | AF43: 0 | AN43: 0 | AV43: 0
C44: 2420 | P44: allow | R44: @ | U44: x | W44: 0 | AB44: 0 | AF44: 0 | AN44: 0 | AV44: 0
C45: 2430 | P45: flat | R45: @ | U45: x | W45: 0 | AB45: 0 | AF45: 0 | AN45: 0 | AV45: 0
C46: 2440 | P46: allow | R46: @ | U46: x | W46: 0 | AB46: 0 | AF46: 0 | AN46: 0 | AV46: 0
C47: 2450 | P47: allow | R47: @ | U47: x | W47: 0 | AB47: 0 | AF47: 0 | AN47: 0 | AV47: 0
C48: 2460 | R48: @ | U48: x | W48: 0 | AB48: 0 | AF48: 0 | AN48: 0 | AV48: 0
C49: 2470 | R49: @ | U49: x | W49: 0 | AB49: 0 | AF49: 0 | AN49: 0 | AV49: 0
C50: 2480 | R50: @ | U50: x | W50: 0 | AB50: 0 | AF50: 0 | AN50: 0 | AV50: 0
C51: 2490 | R51: @ | U51: x | W51: 0 | AB51: 0 | AF51: 0 | AN51: 0 | AV51: 0
C52: 2510 | P52: each | R52: @ | U52: x | W52: 0 | AB52: 0 | AF52: 0 | AN52: 0 | AV52: 0
C53: 2520 | P53: days | R53: @ | U53: x | W53: 0 | AB53: 0 | AF53: 0 | AN53: 0 | AV53: 0
C54: 2530 | P54: days | R54: @ | U54: x | W54: 0 | AB54: 0 | AF54: 0 | AN54: 0 | AV54: 0
C55: 2540 | P55: allow | R55: @ | U55: x | W55: 0 | AB55: 0 | AF55: 0 | AN55: 0 | AV55: 0
C56: 2550 | P56: allow | R56: @ | U56: x | W56: 0 | AB56: 0 | AF56: 0 | AN56: 0 | AV56: 0
C57: 2560 | P57: allow | W57: =O57*S57*(IF(ISNUMBER(V57),V57,IF(ISNUMBER(O57),1,0))) -> 0 | AB57: 0 | AF57: 0 | AN57: 0 | AV57: 0
C58: 2570 | P58: allow | R58: @ | U58: x | W58: =O58*S58*(IF(ISNUMBER(V58),V58,IF(ISNUMBER(O58),1,0))) -> 0 | AB58: 0 | AF58: 0 | AN58: 0 | AV58: 0
C59: 2580 | P59: allow | W59: =O59*S59*(IF(ISNUMBER(V59),V59,IF(ISNUMBER(O59),1,0))) -> 0 | AB59: 0 | AF59: 0 | AN59: 0 | AV59: 0
C60: 2590 | P60: days | W60: =O60*S60*(IF(ISNUMBER(V60),V60,IF(ISNUMBER(O60),1,0))) -> 0 | AB60: 0 | AF60: 0 | AN60: 0 | AV60: 0
O61: Total Q | W61: =SUM(W7:Z60) -> 0 | AB61: =SUM(AB7:AD60) -> 0 | AF61: =AB61-W61 -> 0 | AM61: Markup Q: | AN61: =SUM(AN7:AP60) -> 0 | AU61: Tax Q: | AV61: =SUM(AV7:AX60) -> 0

Sheet R (hidden)
C5: R. | D5: Social Versions
E6: Description | O6: Days | R6: Rate | U6: QTY | X6: Estimate | AB6: Actual | AF6: Variance | AJ6: R Markup | AM6: MU | AN6: Line MU | AR6: R Tax | AU6: TX | AV6: Line TX
C7: 3010 | E7: Aditional Cleanup | P7: hours | R7: @ | U7: x | W7: =O7*S7*(IF(ISNUMBER(V7),V7,IF(ISNUMBER(O7),1,0))) -> 0 | AB7: 0 | AF7: =AB7-W7 -> 0 | AJ7: 0 | AN7: =IF(AM7="X",W7*R_MU,0) -> 0 | AR7: 0 | AV7: =IF(AU7="X",W7*R_TX,0) -> 0
C8: 3020 | E8: Re-position / Re-composite | P8: hours | R8: @ | U8: x | W8: =O8*S8*(IF(ISNUMBER(V8),V8,IF(ISNUMBER(O8),1,0))) -> 0 | AB8: 0 | AF8: =AB8-W8 -> 0 | AN8: 0 | AV8: 0
C9: 3030 | E9: Re-animate | P9: hours | R9: @ | U9: x | W9: 0 | AB9: 0 | AF9: 0 | AN9: 0 | AV9: 0
C10: 3040 | E10: Frame Extension | P10: hours | R10: @ | U10: x | W10: 0 | AB10: 0 | AF10: 0 | AN10: 0 | AV10: 0
C11: 3050 | E11: Pre-Roll Versions | P11: flat | R11: @ | U11: x | W11: 0 | AB11: 0 | AF11: 0 | AN11: 0 | AV11: 0
C12: 3060 | R12: @ | U12: x | W12: 0 | AB12: 0 | AF12: 0 | AN12: 0 | AV12: 0
C13: 3070 | R13: @ | U13: x | W13: 0 | AB13: 0 | AF13: 0 | AN13: 0 | AV13: 0
C14: 3080 | R14: @ | U14: x | W14: 0 | AB14: 0 | AF14: 0 | AN14: 0 | AV14: 0
C15: 3090 | R15: @ | U15: x | W15: 0 | AB15: 0 | AF15: 0 | AN15: 0 | AV15: 0
C16: 3110 | E16: Additional Grading | P16: hours | R16: @ | U16: x | W16: 0 | AB16: 0 | AF16: 0 | AN16: 0 | AV16: 0
C17: 3120 | E17: File Versioning / Compression | P17: hours | R17: @ | U17: x | W17: 0 | AB17: 0 | AF17: 0 | AN17: 0 | AV17: 0
C18: 3130 | E18: Reformatting 1 x 1 | P18: hours | R18: @ | U18: x | W18: 0 | AB18: 0 | AF18: 0 | AN18: 0 | AV18: 0
C19: 3140 | E19: Reformatting 9 x 16 | P19: hours | R19: @ | U19: x | W19: 0 | AB19: 0 | AF19: 0 | AN19: 0 | AV19: 0
C20: 3150 | E20: Reformatting 4 x 3 | P20: hours | R20: @ | U20: x | W20: 0 | AB20: 0 | AF20: 0 | AN20: 0 | AV20: 0
C21: 3160 | E21: Reformatting 5 x 4 | P21: hours | R21: @ | U21: x | W21: 0 | AB21: 0 | AF21: 0 | AN21: 0 | AV21: 0
C22: 3170 | P22: hours | R22: @ | U22: x | W22: 0 | AB22: 0 | AF22: 0 | AN22: 0 | AV22: 0
C23: 3180 | R23: @ | U23: x | W23: 0 | AB23: 0 | AF23: 0 | AN23: 0 | AV23: 0
C24: 3190 | R24: @ | U24: x | W24: 0 | AB24: 0 | AF24: 0 | AN24: 0 | AV24: 0
C25: 3210 | E25: Reframing 1 x 1 | P25: hours | R25: @ | U25: x | W25: 0 | AB25: 0 | AF25: 0 | AN25: 0 | AV25: 0
C26: 3220 | E26: Reframing 9 x 16 | P26: hours | R26: @ | U26: x | W26: 0 | AB26: 0 | AF26: 0 | AN26: 0 | AV26: 0
C27: 3230 | E27: Reframing 4 x 3 | P27: hours | R27: @ | U27: x | W27: 0 | AB27: 0 | AF27: 0 | AN27: 0 | AV27: 0
C28: 3240 | E28: Reframing 5 x 4 | P28: hours | R28: @ | U28: x | W28: 0 | AB28: 0 | AF28: 0 | AN28: 0 | AV28: 0
C29: 3250 | R29: @ | U29: x | W29: 0 | AB29: 0 | AF29: 0 | AN29: 0 | AV29: 0
C30: 3260 | R30: @ | U30: x | W30: 0 | AB30: 0 | AF30: 0 | AN30: 0 | AV30: 0
C31: 3270 | R31: @ | U31: x | W31: 0 | AB31: 0 | AF31: 0 | AN31: 0 | AV31: 0
C32: 3280 | R32: @ | U32: x | W32: 0 | AB32: 0 | AF32: 0 | AN32: 0 | AV32: 0
C33: 3290 | R33: @ | U33: x | W33: 0 | AB33: 0 | AF33: 0 | AN33: 0 | AV33: 0
C34: 3310 | E34: Social mixes | P34: hours | R34: @ | U34: x | W34: 0 | AB34: 0 | AF34: 0 | AN34: 0 | AV34: 0
C35: 3320 | E35: Social Music Edits | P35: hours | R35: @ | U35: x | W35: 0 | AB35: 0 | AF35: 0 | AN35: 0 | AV35: 0
C36: 3330 | E36: Additional VO Record | P36: hours | R36: @ | U36: x | W36: 0 | AB36: 0 | AF36: 0 | AN36: 0 | AV36: 0
C37: 3340 | R37: @ | U37: x | W37: 0 | AB37: 0 | AF37: 0 | AN37: 0 | AV37: 0
C38: 3350 | R38: @ | U38: x | W38: 0 | AB38: 0 | AF38: 0 | AN38: 0 | AV38: 0
C39: 3360 | R39: @ | U39: x | W39: 0 | AB39: 0 | AF39: 0 | AN39: =IF(AM39="X",W39*R_MU,0) -> 0 | AV39: =IF(AU39="X",W39*R_TX,0) -> 0
C40: 3370 | R40: @ | U40: x | W40: 0 | AB40: 0 | AF40: 0 | AN40: 0 | AV40: 0
C41: 3380 | R41: @ | U41: x | W41: 0 | AB41: 0 | AF41: 0 | AN41: 0 | AV41: 0
C42: 3390 | R42: @ | U42: x | W42: 0 | AB42: 0 | AF42: 0 | AN42: 0 | AV42: 0
C43: 3410 | E43: Additional Drives | P43: each | R43: @ | U43: x | W43: 0 | AB43: 0 | AF43: 0 | AN43: 0 | AV43: 0
C44: 3420 | E44: Postings / Digital Delivery / QC | P44: allow | R44: @ | U44: x | W44: 0 | AB44: 0 | AF44: 0 | AN44: 0 | AV44: 0
C45: 3430 | R45: @ | U45: x | W45: 0 | AB45: 0 | AF45: 0 | AN45: 0 | AV45: 0
C46: 3440 | R46: @ | U46: x | W46: 0 | AB46: 0 | AF46: 0 | AN46: 0 | AV46: 0
C47: 3450 | R47: @ | U47: x | W47: 0 | AB47: 0 | AF47: 0 | AN47: 0 | AV47: 0
C48: 3460 | R48: @ | U48: x | W48: 0 | AB48: 0 | AF48: 0 | AN48: 0 | AV48: 0
C49: 3470 | R49: @ | U49: x | W49: 0 | AB49: 0 | AF49: 0 | AN49: 0 | AV49: 0
C50: 3480 | R50: @ | U50: x | W50: 0 | AB50: 0 | AF50: 0 | AN50: 0 | AV50: 0
C51: 3490 | R51: @ | U51: x | W51: 0 | AB51: 0 | AF51: 0 | AN51: 0 | AV51: 0
C52: 3510 | E52: Additional Drives | P52: each | R52: @ | U52: x | W52: 0 | AB52: 0 | AF52: 0 | AN52: 0 | AV52: 0
C53: 3520 | E53: Postings / Digital Delivery / QC | P53: allow | R53: @ | U53: x | W53: 0 | AB53: 0 | AF53: 0 | AN53: 0 | AV53: 0
C54: 3530 | R54: @ | U54: x | W54: 0 | AB54: 0 | AF54: 0 | AN54: 0 | AV54: 0
C55: 3540 | R55: @ | U55: x | W55: 0 | AB55: 0 | AF55: 0 | AN55: 0 | AV55: 0
C56: 3550 | R56: @ | U56: x | W56: 0 | AB56: 0 | AF56: 0 | AN56: 0 | AV56: 0
C57: 3560 | R57: @ | U57: x | W57: 0 | AB57: 0 | AF57: 0 | AN57: 0 | AV57: 0
C58: 3570 | R58: @ | U58: x | W58: 0 | AB58: 0 | AF58: 0 | AN58: 0 | AV58: 0
C59: 3580 | R59: @ | U59: x | W59: 0 | AB59: 0 | AF59: 0 | AN59: 0 | AV59: 0
C60: 3590 | R60: @ | U60: x | W60: 0 | AB60: 0 | AF60: 0 | AN60: 0 | AV60: 0
O61: Total R | W61: =SUM(W7:W60) -> 0 | AB61: =SUM(AB7:AD60) -> 0 | AF61: 0 | AM61: Markup R: | AN61: =SUM(AN7:AP60) -> 0 | AU61: Tax R: | AV61: =SUM(AV7:AX60) -> 0

Sheet S (hidden)
C5: S. | D5: Audio
E6: Description | O6: Units | R6: Rate | X6: Estimate | AB6: Actual | AF6: Variance | AJ6: S Markup | AM6: MU | AN6: Line MU | AR6: S Tax | AU6: TX | AV6: Line TX
C7: 4010 | E7: Pre-Load, Encode and Mix Prep | P7: hours | R7: @ | U7: x | W7: =O7*S7*(IF(ISNUMBER(V7),V7,IF(ISNUMBER(O7),1,0))) -> 0 | AB7: 0 | AF7: =AB7-W7 -> 0 | AJ7: 0 | AN7: =IF(AM7="X",W7*S_MU,0) -> 0 | AR7: 0 | AV7: =IF(AU7="X",W7*S_TX,0) -> 0
C8: 4020 | E8: Sound Effects / Music Search | P8: hours | R8: @ | U8: x | W8: =O8*S8*(IF(ISNUMBER(V8),V8,IF(ISNUMBER(O8),1,0))) -> 0 | AB8: 0 | AF8: =AB8-W8 -> 0 | AN8: 0 | AV8: 0
C9: 4030 | E9: Voice Casting | P9: hours | R9: @ | U9: x | W9: 0 | AB9: 0 | AF9: 0 | AN9: 0 | AV9: 0
C10: 4040 | E10: Transcription / Translation | P10: hours | R10: @ | U10: x | W10: 0 | AB10: 0 | AF10: 0 | AN10: 0 | AV10: 0
C11: 4050 | R11: @ | U11: x | W11: 0 | AB11: 0 | AF11: 0 | AN11: 0 | AV11: 0
C12: 4060 | R12: @ | U12: x | W12: 0 | AB12: 0 | AF12: 0 | AN12: 0 | AV12: 0
C13: 4070 | R13: @ | U13: x | W13: 0 | AB13: 0 | AF13: 0 | AN13: 0 | AV13: 0
C14: 4110 | E14: VO Record | P14: hours | R14: @ | U14: x | W14: 0 | AB14: 0 | AF14: 0 | AN14: 0 | AV14: 0
C15: 4120 | E15: ADR | P15: hours | R15: @ | U15: x | W15: 0 | AB15: 0 | AF15: 0 | AN15: 0 | AV15: 0
C16: 4130 | E16: 5.1 Mix | P16: hours | R16: @ | U16: x | W16: 0 | AB16: 0 | AF16: 0 | AN16: 0 | AV16: 0
C17: 4140 | E17: Other Format Mixing | P17: hours | R17: @ | U17: x | W17: 0 | AB17: 0 | AF17: 0 | AN17: 0 | AV17: 0
C18: 4150 | E18: Record and Mix | P18: hours | R18: @ | U18: x | W18: 0 | AB18: 0 | AF18: 0 | AN18: 0 | AV18: 0
C19: 4160 | E19: Scratch Record | P19: hours | R19: @ | U19: x | W19: 0 | AB19: 0 | AF19: 0 | AN19: 0 | AV19: 0
C20: 4170 | E20: Record and Mix - Overtime | P20: hours | R20: @ | U20: x | W20: 0 | AB20: 0 | AF20: 0 | AN20: 0 | AV20: 0
C21: 4180 | R21: @ | U21: x | W21: 0 | AB21: 0 | AF21: 0 | AN21: 0 | AV21: 0
C22: 4190 | R22: @ | U22: x | W22: 0 | AB22: 0 | AF22: 0 | AN22: 0 | AV22: 0
C23: 4210 | E23: Music Licensing (Stock/Original) | P23: allow | R23: @ | U23: x | W23: 0 | AB23: 0 | AF23: 0 | AN23: 0 | AV23: 0
C24: 4220 | E24: Sound Effects | P24: hours | R24: @ | U24: x | W24: 0 | AB24: 0 | AF24: 0 | AN24: 0 | AV24: 0
C25: 4230 | E25: Sound Design | P25: allow | R25: @ | U25: x | W25: 0 | AB25: 0 | AF25: 0 | AN25: 0 | AV25: 0
C26: 4240 | E26: Digital Edit | P26: hours | R26: @ | U26: x | W26: 0 | AB26: 0 | AF26: 0 | AN26: 0 | AV26: 0
C27: 4250 | R27: @ | U27: x | W27: 0 | AB27: 0 | AF27: 0 | AN27: 0 | AV27: 0
C28: 4260 | R28: @ | U28: x | W28: 0 | AB28: 0 | AF28: 0 | AN28: 0 | AV28: 0
C29: 4270 | R29: @ | U29: x | W29: 0 | AB29: 0 | AF29: 0 | AN29: 0 | AV29: 0
C30: 4310 | E30: Remote Studio Costs | P30: hours | R30: @ | U30: x | W30: 0 | AB30: 0 | AF30: 0 | AN30: 0 | AV30: 0
C31: 4320 | E31: Digital Patch: ISDN | P31: hours | R31: @ | U31: x | W31: 0 | AB31: 0 | AF31: 0 | AN31: 0 | AV31: 0
C32: 4330 | E32: Digital Patch: ISDN INT'L | P32: hours | R32: @ | U32: x | W32: 0 | AB32: 0 | AF32: 0 | AN32: 0 | AV32: 0
C33: 4340 | E33: Digital Patch: Source Connect | P33: hours | R33: @ | U33: x | W33: 0 | AB33: 0 | AF33: 0 | AN33: 0 | AV33: 0
C34: 4350 | E34: Digital Patch: Skype / Phone | P34: hours | R34: @ | U34: x | W34: 0 | AB34: 0 | AF34: 0 | AN34: 0 | AV34: 0
C35: 4360 | E35: Field Recording | P35: days | R35: @ | U35: x | W35: 0 | AB35: 0 | AF35: 0 | AN35: 0 | AV35: 0
C36: 4370 | R36: @ | U36: x | W36: 0 | AB36: 0 | AF36: 0 | AN36: 0 | AV36: 0
C37: 4380 | R37: @ | U37: x | W37: 0 | AB37: 0 | AF37: 0 | AN37: 0 | AV37: 0
C38: 4390 | R38: @ | U38: x | W38: 0 | AB38: 0 | AF38: 0 | AN38: 0 | AV38: 0
C39: 4410 | E39: Media | P39: allow | R39: @ | U39: x | W39: 0 | AB39: 0 | AF39: 0 | AN39: =IF(AM39="X",W39*S_MU,0) -> 0 | AV39: =IF(AU39="X",W39*S_TX,0) -> 0
C40: 4420 | E40: Digital File Creation | P40: allow | R40: @ | U40: x | W40: 0 | AB40: 0 | AF40: 0 | AN40: 0 | AV40: 0
C41: 4430 | E41: Uploads & Machine Room | P41: allow | R41: @ | U41: x | W41: 0 | AB41: 0 | AF41: 0 | AN41: 0 | AV41: 0
C42: 4440 | E42: Archive | P42: allow | R42: @ | U42: x | W42: 0 | AB42: 0 | AF42: 0 | AN42: 0 | AV42: 0
C43: 4450 | E43: Audio Relay | P43: each | R43: @ | U43: x | W43: 0 | AB43: 0 | AF43: 0 | AN43: 0 | AV43: 0
C44: 4460 | E44: Facility Overtime | P44: hours | R44: @ | U44: x | W44: 0 | AB44: 0 | AF44: 0 | AN44: 0 | AV44: 0
C45: 4470 | E45: Weekend Key Fee | P45: days | R45: @ | U45: x | W45: 0 | AB45: 0 | AF45: 0 | AN45: 0 | AV45: 0
C46: 4480 | E46: Transfer & Stock | P46: allow | R46: @ | U46: x | W46: 0 | AB46: 0 | AF46: 0 | AN46: 0 | AV46: 0
C47: 4490 | R47: @ | U47: x | W47: 0 | AB47: 0 | AF47: 0 | AN47: 0 | AV47: 0
C48: 4510 | E48: Deliveries & Messengers | P48: allow | R48: @ | U48: x | W48: 0 | AB48: 0 | AF48: 0 | AN48: 0 | AV48: 0
C49: 4520 | E49: Shipping | P49: allow | R49: @ | U49: x | W49: 0 | AB49: 0 | AF49: 0 | AN49: 0 | AV49: 0
C50: 4530 | E50: Inventory/Packing | P50: allow | R50: @ | U50: x | W50: 0 | AB50: 0 | AF50: 0 | AN50: 0 | AV50: 0
C51: 4540 | E51: Shipping to Storage | P51: allow | R51: @ | U51: x | W51: 0 | AB51: 0 | AF51: 0 | AN51: 0 | AV51: 0
C52: 4550 | R52: @ | U52: x | W52: 0 | AB52: 0 | AF52: 0 | AN52: 0 | AV52: 0
C53: 4610 | P53: each | R53: @ | U53: x | W53: 0 | AB53: 0 | AF53: 0 | AN53: 0 | AV53: 0
C54: 4620 | P54: days | R54: @ | U54: x | W54: 0 | AB54: 0 | AF54: 0 | AN54: 0 | AV54: 0
C55: 4630 | P55: days | R55: @ | U55: x | W55: 0 | AB55: 0 | AF55: 0 | AN55: 0 | AV55: 0
C56: 4640 | P56: allow | R56: @ | U56: x | W56: 0 | AB56: 0 | AF56: 0 | AN56: 0 | AV56: 0
C57: 4650 | P57: allow | R57: @ | U57: x | W57: 0 | AB57: 0 | AF57: 0 | AN57: 0 | AV57: 0
C58: 4660 | R58: @ | U58: x | W58: 0 | AB58: 0 | AF58: 0 | AN58: 0 | AV58: 0
C59: 4670 | R59: @ | U59: x | W59: 0 | AB59: 0 | AF59: 0 | AN59: 0 | AV59: 0
C60: 4680 | R60: @ | U60: x | W60: 0 | AB60: 0 | AF60: 0 | AN60: 0 | AV60: 0
O61: Total S | W61: =SUM(W7:Z60) -> 0 | AB61: =SUM(AB7:AD60) -> 0 | AF61: 0 | AK61: Markup S | AN61: =SUM(AN7:AN60) -> 0 | AS61: Tax S | AV61: =SUM(AV7:AV60) -> 0

Sheet T (hidden)
C5: T. | D5: Finishing
E6: Description | O6: Units | R6: Rate | X6: Estimate | AB6: Actual | AF6: Variance | AJ6: T Markup | AM6: MU | AN6: Line MU | AR6: T Tax | AU6: TX | AV6: Line TX
C7: 5010 | E7: Color Grading Prep | P7: hrs | R7: @ | U7: x | W7: =O7*S7*(IF(ISNUMBER(V7),V7,IF(ISNUMBER(O7),1,0))) -> 0 | AB7: 0 | AF7: =AB7-W7 -> 0 | AJ7: 0 | AN7: =IF(AM7="X",W7*T_MU,0) -> 0 | AR7: 0 | AV7: =IF(AU7="X",W7*T_TX,0) -> 0
C8: 5020 | E8: Color Grading | P8: hrs | R8: @ | U8: x | W8: =O8*S8*(IF(ISNUMBER(V8),V8,IF(ISNUMBER(O8),1,0))) -> 0 | AB8: 0 | AF8: =AB8-W8 -> 0 | AN8: 0 | AV8: 0
C9: 5030 | E9: Pre Load/Scanning | P9: each | R9: @ | U9: x | W9: 0 | AB9: 0 | AF9: 0 | AN9: 0 | AV9: 0
C10: 5040 | E10: Data I/O | P10: each | R10: @ | U10: x | W10: 0 | AB10: 0 | AF10: 0 | AN10: 0 | AV10: 0
C11: 5050 | E11: Transfers | P11: each | R11: @ | U11: x | W11: 0 | AB11: 0 | AF11: 0 | AN11: 0 | AV11: 0
C12: 5060 | E12: Remote Set Up | P12: each | R12: @ | U12: x | W12: 0 | AB12: 0 | AF12: 0 | AN12: 0 | AV12: 0
C13: 5070 | E13: Remote Room | P13: each | R13: @ | U13: x | W13: 0 | AB13: 0 | AF13: 0 | AN13: 0 | AV13: 0
C14: 5080 | E14: Additional Machines | P14: each | R14: @ | U14: x | W14: 0 | AB14: 0 | AF14: 0 | AN14: 0 | AV14: 0
C15: 5090 | P15: each | R15: @ | U15: x | W15: 0 | AB15: 0 | AF15: 0 | AN15: 0 | AV15: 0
C16: 5110 | E16: Final Conform | P16: hrs | R16: @ | U16: x | W16: 0 | AB16: 0 | AF16: 0 | AN16: 0 | AV16: 0
C17: 5120 | E17: Compositing / VFX | P17: each | R17: @ | U17: x | W17: 0 | AB17: 0 | AF17: 0 | AN17: 0 | AV17: 0
C18: 5130 | E18: Flame Assistant - Roto | P18: each | R18: @ | U18: x | W18: 0 | AB18: 0 | AF18: 0 | AN18: 0 | AV18: 0
C19: 5140 | E19: 2D GFX / Design | P19: each | R19: @ | U19: x | W19: 0 | AB19: 0 | AF19: 0 | AN19: 0 | AV19: 0
C20: 5150 | E20: Motion Graphics | P20: hrs | R20: @ | U20: x | W20: 0 | AB20: 0 | AF20: 0 | AN20: 0 | AV20: 0
C21: 5160 | E21: Color Correction | P21: hrs | R21: @ | U21: x | W21: 0 | AB21: 0 | AF21: 0 | AN21: 0 | AV21: 0
C22: 5170 | E22: 3D Animation | P22: each | R22: @ | U22: x | W22: 0 | AB22: 0 | AF22: 0 | AN22: 0 | AV22: 0
C23: 5180 | E23: 3D Modeling | P23: each | R23: @ | U23: x | W23: 0 | AB23: 0 | AF23: 0 | AN23: 0 | AV23: 0
C24: 5190 | P24: each | R24: @ | U24: x | W24: 0 | AB24: 0 | AF24: 0 | AN24: 0 | AV24: 0
C25: 5210 | E25: Archiving | P25: each | R25: @ | U25: x | W25: 0 | AB25: 0 | AF25: 0 | AN25: 0 | AV25: 0
C26: 5220 | E26: Uncompressed Files | P26: each | R26: @ | U26: x | W26: 0 | AB26: 0 | AF26: 0 | AN26: 0 | AV26: 0
C27: 5230 | E27: Retouching | P27: each | R27: @ | U27: x | W27: 0 | AB27: 0 | AF27: 0 | AN27: 0 | AV27: 0
C28: 5240 | E28: Standards Conversions | P28: each | R28: @ | U28: x | W28: 0 | AB28: 0 | AF28: 0 | AN28: 0 | AV28: 0
C29: 5250 | P29: each | R29: @ | U29: x | W29: 0 | AB29: 0 | AF29: 0 | AN29: 0 | AV29: 0
C30: 5260 | P30: each | R30: @ | U30: x | W30: 0 | AB30: 0 | AF30: 0 | AN30: 0 | AV30: 0
C31: 5270 | P31: each | R31: @ | U31: x | W31: 0 | AB31: 0 | AF31: 0 | AN31: 0 | AV31: 0
C32: 5280 | P32: each | R32: @ | U32: x | W32: 0 | AB32: 0 | AF32: 0 | AN32: 0 | AV32: 0
C33: 5290 | P33: each | R33: @ | U33: x | W33: 0 | AB33: 0 | AF33: 0 | AN33: 0 | AV33: 0
C34: 5310 | E34: Additional Machines | P34: each | R34: @ | U34: x | W34: 0 | AB34: 0 | AF34: 0 | AN34: 0 | AV34: 0
C35: 5320 | E35: Drives / Media | P35: each | R35: @ | U35: x | W35: 0 | AB35: 0 | AF35: 0 | AN35: 0 | AV35: 0
C36: 5330 | E36: Generic Master | P36: each | R36: @ | U36: x | W36: 0 | AB36: 0 | AF36: 0 | AN36: 0 | AV36: 0
C37: 5340 | E37: Master | P37: each | R37: @ | U37: x | W37: 0 | AB37: 0 | AF37: 0 | AN37: 0 | AV37: 0
C38: 5350 | E38: Deliverables | P38: each | R38: @ | U38: x | W38: 0 | AB38: 0 | AF38: 0 | AN38: 0 | AV38: 0
C39: 5360 | E39: Additional Outputs | P39: each | R39: @ | U39: x | W39: 0 | AB39: 0 | AF39: 0 | AN39: =IF(AM39="X",W39*T_MU,0) -> 0 | AV39: =IF(AU39="X",W39*T_TX,0) -> 0
C40: 5370 | E40: Archiving Storage Device | P40: each | R40: @ | U40: x | W40: 0 | AB40: 0 | AF40: 0 | AN40: 0 | AV40: 0
C41: 5380 | E41: Compressed File Dubs | P41: each | R41: @ | U41: x | W41: 0 | AB41: 0 | AF41: 0 | AN41: 0 | AV41: 0
C42: 5390 | E42: Postings | P42: each | R42: @ | U42: x | W42: 0 | AB42: 0 | AF42: 0 | AN42: 0 | AV42: 0
C43: 5410 | E43: Deliveries & Messengers | P43: days | R43: @ | U43: x | W43: 0 | AB43: 0 | AF43: 0 | AN43: 0 | AV43: 0
C44: 5420 | E44: Shipping | P44: days | R44: @ | U44: x | W44: 0 | AB44: 0 | AF44: 0 | AN44: 0 | AV44: 0
C45: 5430 | E45: Inventory/Packing | P45: days | R45: @ | U45: x | W45: 0 | AB45: 0 | AF45: 0 | AN45: 0 | AV45: 0
C46: 5440 | E46: Shipping to Storage | P46: days | R46: @ | U46: x | W46: 0 | AB46: 0 | AF46: 0 | AN46: 0 | AV46: 0
C47: 5450 | P47: days | R47: @ | U47: x | W47: 0 | AB47: 0 | AF47: 0 | AN47: 0 | AV47: 0
C48: 5460 | P48: days | R48: @ | U48: x | W48: 0 | AB48: 0 | AF48: 0 | AN48: 0 | AV48: 0
C49: 5470 | P49: days | R49: @ | U49: x | W49: 0 | AB49: 0 | AF49: 0 | AN49: 0 | AV49: 0
C50: 5480 | P50: days | R50: @ | U50: x | W50: 0 | AB50: 0 | AF50: 0 | AN50: 0 | AV50: 0
C51: 5490 | P51: days | R51: @ | U51: x | W51: 0 | AB51: 0 | AF51: 0 | AN51: 0 | AV51: 0
C52: 5510 | P52: flights | R52: @ | U52: x | W52: 0 | AB52: 0 | AF52: 0 | AN52: 0 | AV52: 0
C53: 5520 | P53: days | R53: @ | U53: x | W53: 0 | AB53: 0 | AF53: 0 | AN53: 0 | AV53: 0
C54: 5530 | W54: 0 | AB54: 0 | AF54: 0 | AN54: 0 | AV54: 0
C55: 5540 | P55: days | R55: @ | U55: x | W55: 0 | AB55: 0 | AF55: 0 | AN55: 0 | AV55: 0
C56: 5550 | W56: 0 | AB56: 0 | AF56: 0 | AN56: 0 | AV56: 0
C57: 5560 | P57: days | R57: @ | U57: x | W57: 0 | AB57: 0 | AF57: 0 | AN57: 0 | AV57: 0
C58: 5570 | P58: days | R58: @ | U58: x | W58: 0 | AB58: 0 | AF58: 0 | AN58: 0 | AV58: 0
C59: 5580 | W59: 0 | AB59: 0 | AF59: 0 | AN59: 0 | AV59: 0
C60: 5590 | P60: days | R60: @ | U60: x | W60: 0 | AB60: 0 | AF60: 0 | AN60: 0 | AV60: 0
O61: Total T | W61: =SUM(W7:Z60) -> 0 | AB61: =SUM(AB7:AD60) -> 0 | AF61: 0 | AK61: Markup T | AN61: =SUM(AN7:AP60) -> 0 | AS61: Tax T | AV61: =SUM(AV7:AX60) -> 0

Sheet VW (hidden)
C5: V. | D5: Miscellaneous Editorial
E6: Description | S6: Rate | V6: QTY | X6: Estimate | AB6: Actual | AF6: Variance | AJ6: V Markup | AM6: MU | AN6: Line MU | AR6: V Tax | AU6: TX | AV6: Line TX
C7: 7010 | E7: Storage Devices | P7: each | R7: @ | U7: x | W7: =O7*S7*(IF(ISNUMBER(V7),V7,IF(ISNUMBER(O7),1,0))) -> 0 | AB7: 0 | AF7: =AB7-W7 -> 0 | AJ7: 0 | AN7: =IF(AM7="X",W7*V_MU,0) -> 0 | AR7: 0 | AV7: =IF(AU7="X",W7*V_TX,0) -> 0
C8: 7020 | E8: Archiving/LTO | P8: allow | R8: @ | U8: x | W8: 0 | AB8: 0 | AF8: =AB8-W8 -> 0 | AN8: =IF(AM8="X",W8*T_MU,0) -> 0 | AV8: =IF(AU8="X",W8*T_TX,0) -> 0
C9: 7030 | E9: Archive Storage Devices | P9: each | R9: @ | U9: x | W9: 0 | AB9: 0 | AF9: 0 | AN9: =IF(AM9="X",W9*T_MU,0) -> 0 | AV9: =IF(AU9="X",W9*T_TX,0) -> 0
C10: 7040 | E10: Tape-to-Film Transfer | P10: hours | R10: @ | U10: x | W10: 0 | AB10: 0 | AF10: 0 | AN10: =IF(AM10="X",W10*T_MU,0) -> 0 | AV10: =IF(AU10="X",W10*T_TX,0) -> 0
C11: 7050 | E11: Standards Conversion | P11: hours | R11: @ | U11: x | W11: 0 | AB11: 0 | AF11: 0 | AN11: =IF(AM11="X",W11*T_MU,0) -> 0 | AV11: =IF(AU11="X",W11*T_TX,0) -> 0
C12: 7060 | E12: Stock Footage | P12: allow | R12: @ | U12: x | W12: 0 | AB12: 0 | AF12: 0
C13: 7070 | E13: Satellite/Digital Transmission | P13: hours | R13: @ | U13: x | W13: 0 | AB13: 0 | AF13: 0 | AN13: =IF(AM13="X",W13*T_MU,0) -> 0 | AV13: =IF(AU13="X",W13*T_TX,0) -> 0
C14: 7080 | E14: Data Transmission Charge | P14: flat | R14: @ | U14: x | W14: 0 | AB14: 0 | AF14: 0 | AN14: 0 | AV14: 0
C15: 7090 | R15: @ | U15: x | W15: 0 | AB15: 0 | AF15: 0 | AN15: 0 | AV15: 0
C16: 7110 | E16: Deliveries & Messengers | P16: allow | R16: @ | U16: x | W16: 0 | AB16: 0 | AF16: 0 | AN16: 0 | AV16: 0
C17: 7120 | E17: Shipping | P17: allow | R17: @ | U17: x | W17: 0 | AB17: 0 | AF17: 0 | AN17: 0 | AV17: 0
C18: 7130 | E18: Inventory/Packing | P18: allow | R18: @ | U18: x | W18: 0 | AB18: 0 | AF18: 0 | AN18: 0 | AV18: 0
C19: 7140 | E19: Shipping to Storage | P19: allow | R19: @ | U19: x | W19: 0 | AB19: 0 | AF19: 0 | AN19: 0 | AV19: 0
C20: 7150 | E20: Additional Machines | P20: allow | R20: @ | U20: x | W20: 0 | AB20: 0 | AF20: 0 | AN20: 0 | AV20: 0
C21: 7160 | R21: @ | U21: x | W21: 0 | AB21: 0 | AF21: 0 | AN21: 0 | AV21: 0
C22: 7170 | R22: @ | U22: x | W22: 0 | AB22: 0 | AF22: 0 | AN22: 0 | AV22: 0
C23: 7180 | R23: @ | U23: x | W23: 0 | AB23: 0 | AF23: 0 | AN23: 0 | AV23: 0
C24: 7190 | R24: @ | U24: x | W24: 0 | AB24: 0 | AF24: 0 | AN24: 0 | AV24: 0
C25: 7210 | E25: Airfare | P25: each | R25: @ | U25: x | W25: 0 | AB25: 0 | AF25: 0 | AN25: 0 | AV25: 0
C26: 7220 | E26: Hotel | P26: each | R26: @ | U26: x | W26: 0 | AB26: 0 | AF26: 0 | AN26: 0 | AV26: 0
C27: 7230 | E27: Per Diem | P27: days | R27: @ | U27: x | W27: 0 | AB27: 0 | AF27: 0 | AN27: 0 | AV27: 0
C28: 7240 | E28: Transportation | P28: allow | R28: @ | U28: x | W28: 0 | AB28: 0 | AF28: 0 | AN28: 0 | AV28: 0
C29: 7250 | E29: Assistant Editor Travel | P29: allow | R29: @ | U29: x | W29: 0 | AB29: 0 | AF29: 0 | AN29: 0 | AV29: 0
C30: 7260 | R30: @ | U30: x | W30: 0 | AB30: 0 | AF30: 0 | AN30: 0 | AV30: 0
C31: 7270 | R31: @ | U31: x | W31: 0 | AB31: 0 | AF31: 0 | AN31: 0 | AV31: 0
C32: 7280 | R32: @ | U32: x | W32: 0 | AB32: 0 | AF32: 0 | AN32: 0 | AV32: 0
C33: 7290 | R33: @ | U33: x | W33: 0 | AB33: 0 | AF33: 0 | AN33: 0 | AV33: 0
C34: 7310 | E34: Editorial Supplies | P34: allow | R34: @ | U34: x | W34: 0 | AB34: 0 | AF34: 0 | AN34: 0 | AV34: 0
C35: 7320 | E35: Equipment Rental | P35: allow | R35: @ | U35: x | W35: 0 | AB35: 0 | AF35: 0 | AN35: 0 | AV35: 0
C36: 7330 | E36: Working Meals | P36: allow | R36: @ | U36: x | W36: 0 | AB36: 0 | AF36: 0 | AN36: 0 | AV36: 0
C37: 7340 | E37: Weekend Fee | P37: flat | R37: @ | U37: x | W37: 0 | AB37: 0 | AF37: 0 | AN37: 0 | AV37: 0
C38: 7350 | R38: @ | U38: x | W38: 0 | AB38: 0 | AF38: 0 | AN38: 0 | AV38: 0
C39: 7360 | R39: @ | U39: x | W39: 0 | AB39: 0 | AF39: 0 | AN39: 0 | AV39: 0
C40: 7370 | R40: @ | U40: x | W40: 0 | AB40: 0 | AF40: 0 | AN40: 0 | AV40: 0
P41: Total V | W41: =SUM(W7:Z40) -> 0 | AB41: =SUM(AB7:AD40) -> 0 | AF41: 0 | AK41: Markup V | AN41: =SUM(AN7:AP40) -> 0 | AS41: Tax V | AV41: =SUM(AV7:AX40) -> 0
C43: W. | D43: Editorial Labor & Creative Fees
E44: Description | S44: Rate | V44: QTY | X44: Estimate | AB44: Actual | AF44: Variance
C45: 8010 | E45: Pre-Production Labor | P45: days | R45: @ | U45: x | W45: =IF(ISNUMBER(S45),(O45*S45*IF(ISNUMBER(V45),V45,1)),0) -> 0 | AB45: 0 | AF45: =AB45-W45 -> 0
C46: 8020 | E46: Editor Labor | P46: days | R46: @ | U46: x | W46: 0 | AB46: 0 | AF46: 0
C47: 8030 | E47: Editor OT/Weekend | P47: days | R47: @ | U47: x | W47: 0 | AB47: 0 | AF47: 0
C48: 8040 | E48: Assistant Labor | P48: days | R48: @ | U48: x | W48: 0 | AB48: 0 | AF48: 0
C49: 8050 | E49: Assistant OT/Weekend | P49: days | R49: @ | U49: x | W49: 0 | AB49: 0 | AF49: 0
C50: 8060 | E50: Session Supervisory Fee | P50: days | R50: @ | U50: x | W50: 0 | AB50: 0 | AF50: 0
C51: 8070 | E51: Producer/ Coordinator | P51: days | R51: @ | U51: x | W51: 0 | AB51: 0 | AF51: 0
C52: 8080 | E52: Set Supervision | P52: days | R52: @ | U52: x | W52: 0 | AB52: 0 | AF52: 0
C53: 8090 | R53: @ | U53: x | W53: 0 | AB53: 0 | AF53: 0
C54: 8100 | E54: Creative Fees | P54: flat | R54: @ | U54: x | W54: 0 | AB54: 0 | AF54: 0
C55: 8100 | R55: @ | U55: x | W55: 0 | AB55: 0 | AF55: 0
C56: 8100 | R56: @ | U56: x | W56: 0 | AB56: 0 | AF56: 0
C57: 8100 | R57: @ | U57: x | W57: 0 | AB57: 0 | AF57: 0
C58: 8100 | R58: @ | U58: x | W58: 0 | AB58: 0 | AF58: 0
P59: Total W | W59: =SUM(W45:Z58) -> 0 | AB59: 0 | AF59: 0

Sheet X (hidden)
D2: ADD A SECTION | H2: REMOVE A SECTION
C6: X. | D6: Visual Effects, Design & Animation, Interactive
C7: 10000 | E7: Section Title | Z7: =
E8: Section Description
E11: Description | O11: Days | R11: Rate | U11: QTY | X11: Estimate | AB11: Actual | AF11: Variance | AJ11: + | AK11: ="Add Line in Section "&C7 -> Add Line in Section 10000
C12: 1 | O12: days | Q12: @ | T12: x | X12: =N12*R12*(IF(ISNUMBER(U12),U12,IF(ISNUMBER(N12),1,0))) -> 0 | AB12: 0 | AF12: =AB12-X12 -> 0 | AJ12: - | AK12: ="Remove Line "&TEXT(C12,"00#")&" "&E12 -> Remove Line 001
C13: 2 | O13: days | Q13: @ | T13: x | X13: 0 | AB13: 0 | AF13: 0 | AJ13: - | AK13: ="Remove Line "&TEXT(C13,"00#")&" "&E13 -> Remove Line 002
C14: 3 | O14: days | Q14: @ | T14: x | X14: =N14*R14*(IF(ISNUMBER(U14),U14,IF(ISNUMBER(N14),1,0))) -> 0 | AB14: 0 | AF14: =AB14-X14 -> 0 | AJ14: - | AK14: ="Remove Line "&TEXT(C14,"00#")&" "&E14 -> Remove Line 003
C15: 4 | O15: days | Q15: @ | T15: x | X15: =N15*R15*(IF(ISNUMBER(U15),U15,IF(ISNUMBER(N15),1,0))) -> 0 | AB15: 0 | AF15: =AB15-X15 -> 0 | AJ15: - | AK15: ="Remove Line "&TEXT(C15,"00#")&" "&E15 -> Remove Line 004
O16: ="Total "&E7 -> Total Section Title | X16: =SUM(INDIRECT("X"&ROW(X_10000Bef)+1&":X"&ROW()-1)) -> 0 | AB16: =SUM(INDIRECT("AB"&ROW(X_10000Bef)+1&":AB"&ROW()-1)) -> 0 | AF16: 0
C18: 10001 | E18: Section Title | Z18: =
E19: Section Description
E22: Description | O22: Days | R22: Rate | U22: QTY | X22: Estimate | AB22: Actual | AF22: Variance | AJ22: + | AK22: ="Add Line in Section "&C18 -> Add Line in Section 10001
C23: 1 | O23: days | Q23: @ | T23: x | X23: =N23*R23*(IF(ISNUMBER(U23),U23,IF(ISNUMBER(N23),1,0))) -> 0 | AB23: 0 | AF23: =AB23-X23 -> 0 | AJ23: - | AK23: ="Remove Line "&TEXT(C23,"00#")&" "&E23 -> Remove Line 001
C24: 2 | O24: pcs | Q24: @ | T24: x | X24: 0 | AB24: 0 | AF24: =AB24-X24 -> 0 | AJ24: - | AK24: ="Remove Line "&TEXT(C24,"00#")&" "&E24 -> Remove Line 002
C25: 3 | O25: days | Q25: @ | T25: x | X25: =N25*R25*(IF(ISNUMBER(U25),U25,IF(ISNUMBER(N25),1,0))) -> 0 | AB25: 0 | AF25: =AB25-X25 -> 0 | AJ25: - | AK25: ="Remove Line "&TEXT(C25,"00#")&" "&E25 -> Remove Line 003
C26: 4 | O26: days | Q26: @ | T26: x | X26: =N26*R26*(IF(ISNUMBER(U26),U26,IF(ISNUMBER(N26),1,0))) -> 0 | AB26: 0 | AF26: =AB26-X26 -> 0 | AJ26: - | AK26: ="Remove Line "&TEXT(C26,"00#")&" "&E26 -> Remove Line 004
O27: ="Total "&E18 -> Total Section Title | X27: =SUM(INDIRECT("X"&ROW(X_10001Bef)+1&":X"&ROW()-1)) -> 0 | AB27: =SUM(INDIRECT("AB"&ROW(X_10001Bef)+1&":AB"&ROW()-1)) -> 0 | AF27: 0
C29: 10002 | E29: Section Title | Z29: =
E30: Section Description
E33: Description | O33: Days | R33: Rate | U33: QTY | X33: Estimate | AB33: Actual | AF33: Variance | AJ33: + | AK33: ="Add Line in Section "&C29 -> Add Line in Section 10002
C34: 1 | O34: days | Q34: @ | T34: x | X34: =N34*R34*(IF(ISNUMBER(U34),U34,IF(ISNUMBER(N34),1,0))) -> 0 | AB34: 0 | AF34: =AB34-X34 -> 0 | AJ34: - | AK34: ="Remove Line "&TEXT(C34,"00#")&" "&E34 -> Remove Line 001
C35: 2 | O35: days | Q35: @ | T35: x | X35: =N35*R35*(IF(ISNUMBER(U35),U35,IF(ISNUMBER(N35),1,0))) -> 0 | AB35: 0 | AF35: =AB35-X35 -> 0 | AJ35: - | AK35: ="Remove Line "&TEXT(C35,"00#")&" "&E35 -> Remove Line 002
C36: 3 | O36: days | Q36: @ | T36: x | X36: =N36*R36*(IF(ISNUMBER(U36),U36,IF(ISNUMBER(N36),1,0))) -> 0 | AB36: 0 | AF36: =AB36-X36 -> 0 | AJ36: - | AK36: Remove Line 003
C37: 4 | O37: days | Q37: @ | T37: x | X37: =N37*R37*(IF(ISNUMBER(U37),U37,IF(ISNUMBER(N37),1,0))) -> 0 | AB37: 0 | AF37: =AB37-X37 -> 0 | AJ37: - | AK37: Remove Line 004
O38: ="Total "&E29 -> Total Section Title | X38: =SUM(INDIRECT("X"&ROW(X_10002Bef)+1&":X"&ROW()-1)) -> 0 | AB38: =SUM(INDIRECT("AB"&ROW(X_10002Bef)+1&":AB"&ROW()-1)) -> 0 | AF38: =AB38-X38 -> 0
C40: 10003 | E40: Section Title | Z40: =
E41: Section Description
E44: Description | O44: Days | R44: Rate | U44: QTY | X44: Estimate | AB44: Actual | AF44: Variance | AJ44: + | AK44: ="Add Line in Section "&C40 -> Add Line in Section 10003
C45: 1 | O45: days | Q45: @ | T45: x | X45: =N45*R45*(IF(ISNUMBER(U45),U45,IF(ISNUMBER(N45),1,0))) -> 0 | AB45: 0 | AF45: =AB45-X45 -> 0 | AJ45: - | AK45: ="Remove Line "&TEXT(C45,"00#")&" "&E45 -> Remove Line 001
C46: 2 | O46: days | Q46: @ | T46: x | X46: =N46*R46*(IF(ISNUMBER(U46),U46,IF(ISNUMBER(N46),1,0))) -> 0 | AB46: 0 | AF46: =AB46-X46 -> 0 | AJ46: - | AK46: ="Remove Line "&TEXT(C46,"00#")&" "&E46 -> Remove Line 002
C47: 3 | O47: days | Q47: @ | T47: x | X47: =N47*R47*(IF(ISNUMBER(U47),U47,IF(ISNUMBER(N47),1,0))) -> 0 | AB47: 0 | AF47: =AB47-X47 -> 0 | AJ47: - | AK47: Remove Line 003
C48: 4 | O48: days | Q48: @ | T48: x | X48: =N48*R48*(IF(ISNUMBER(U48),U48,IF(ISNUMBER(N48),1,0))) -> 0 | AB48: 0 | AF48: =AB48-X48 -> 0 | AJ48: - | AK48: Remove Line 004
O49: ="Total "&E40 -> Total Section Title | X49: =SUM(INDIRECT("X"&ROW(X_10003Bef)+1&":X"&ROW()-1)) -> 0 | AB49: =SUM(INDIRECT("AB"&ROW(X_10003Bef)+1&":AB"&ROW()-1)) -> 0 | AF49: =AB49-X49 -> 0
C51: 10004 | E51: Section Title | Z51: =
E52: Section Description
E55: Description | O55: Days | R55: Rate | U55: QTY | X55: Estimate | AB55: Actual | AF55: Variance | AJ55: + | AK55: ="Add Line in Section "&C51 -> Add Line in Section 10004
C56: 1 | O56: days | Q56: @ | T56: x | X56: =N56*R56*(IF(ISNUMBER(U56),U56,IF(ISNUMBER(N56),1,0))) -> 0 | AB56: 0 | AF56: =AB56-X56 -> 0 | AJ56: - | AK56: ="Remove Line "&TEXT(C56,"00#")&" "&E56 -> Remove Line 001
C57: 2 | O57: days | Q57: @ | T57: x | X57: =N57*R57*(IF(ISNUMBER(U57),U57,IF(ISNUMBER(N57),1,0))) -> 0 | AB57: 0 | AF57: =AB57-X57 -> 0 | AJ57: - | AK57: ="Remove Line "&TEXT(C57,"00#")&" "&E57 -> Remove Line 002
C58: 3 | O58: days | Q58: @ | T58: x | X58: =N58*R58*(IF(ISNUMBER(U58),U58,IF(ISNUMBER(N58),1,0))) -> 0 | AB58: 0 | AF58: =AB58-X58 -> 0 | AJ58: - | AK58: Remove Line 003
C59: 4 | O59: days | Q59: @ | T59: x | X59: =N59*R59*(IF(ISNUMBER(U59),U59,IF(ISNUMBER(N59),1,0))) -> 0 | AB59: 0 | AF59: =AB59-X59 -> 0 | AJ59: - | AK59: Remove Line 004
O60: ="Total "&E51 -> Total Section Title | X60: =SUM(INDIRECT("X"&ROW(X_10004Bef)+1&":X"&ROW()-1)) -> 0 | AB60: =SUM(INDIRECT("AB"&ROW(X_10004Bef)+1&":AB"&ROW()-1)) -> 0 | AF60: =AB60-X60 -> 0
C62: 10005 | E62: Section Title | Z62: =
E63: Section Description
E66: Description | O66: Days | R66: Rate | U66: QTY | X66: Estimate | AB66: Actual | AF66: Variance | AJ66: + | AK66: ="Add Line in Section "&C62 -> Add Line in Section 10005
C67: 1 | O67: days | Q67: @ | T67: x | X67: =N67*R67*(IF(ISNUMBER(U67),U67,IF(ISNUMBER(N67),1,0))) -> 0 | AB67: 0 | AF67: =AB67-X67 -> 0 | AJ67: - | AK67: ="Remove Line "&TEXT(C67,"00#")&" "&E67 -> Remove Line 001
C68: 2 | O68: days | Q68: @ | T68: x | X68: =N68*R68*(IF(ISNUMBER(U68),U68,IF(ISNUMBER(N68),1,0))) -> 0 | AB68: 0 | AF68: =AB68-X68 -> 0 | AJ68: - | AK68: ="Remove Line "&TEXT(C68,"00#")&" "&E68 -> Remove Line 002
C69: 3 | O69: days | Q69: @ | T69: x | X69: =N69*R69*(IF(ISNUMBER(U69),U69,IF(ISNUMBER(N69),1,0))) -> 0 | AB69: 0 | AF69: =AB69-X69 -> 0 | AJ69: - | AK69: Remove Line 003
C70: 4 | O70: days | Q70: @ | T70: x | X70: =N70*R70*(IF(ISNUMBER(U70),U70,IF(ISNUMBER(N70),1,0))) -> 0 | AB70: 0 | AF70: =AB70-X70 -> 0 | AJ70: - | AK70: Remove Line 004
O71: ="Total "&E62 -> Total Section Title | X71: =SUM(INDIRECT("X"&ROW(X_10005Bef)+1&":X"&ROW()-1)) -> 0 | AB71: =SUM(INDIRECT("AB"&ROW(X_10005Bef)+1&":AB"&ROW()-1)) -> 0 | AF71: =AB71-X71 -> 0
C73: 10006 | E73: Section Title | Z73: =
E74: Section Description
E77: Description | O77: Days | R77: Rate | U77: QTY | X77: Estimate | AB77: Actual | AF77: Variance | AJ77: + | AK77: ="Add Line in Section "&C73 -> Add Line in Section 10006
C78: 1 | O78: days | Q78: @ | T78: x | X78: =N78*R78*(IF(ISNUMBER(U78),U78,IF(ISNUMBER(N78),1,0))) -> 0 | AB78: 0 | AF78: =AB78-X78 -> 0 | AJ78: - | AK78: ="Remove Line "&TEXT(C78,"00#")&" "&E78 -> Remove Line 001
C79: 2 | O79: days | Q79: @ | T79: x | X79: =N79*R79*(IF(ISNUMBER(U79),U79,IF(ISNUMBER(N79),1,0))) -> 0 | AB79: 0 | AF79: =AB79-X79 -> 0 | AJ79: - | AK79: ="Remove Line "&TEXT(C79,"00#")&" "&E79 -> Remove Line 002
C80: 3 | O80: days | Q80: @ | T80: x | X80: =N80*R80*(IF(ISNUMBER(U80),U80,IF(ISNUMBER(N80),1,0))) -> 0 | AB80: 0 | AF80: =AB80-X80 -> 0 | AJ80: - | AK80: Remove Line 003
C81: 4 | O81: days | Q81: @ | T81: x | X81: =N81*R81*(IF(ISNUMBER(U81),U81,IF(ISNUMBER(N81),1,0))) -> 0 | AB81: 0 | AF81: =AB81-X81 -> 0 | AJ81: - | AK81: Remove Line 004
O82: ="Total "&E73 -> Total Section Title | X82: =SUM(INDIRECT("X"&ROW(X_10006Bef)+1&":X"&ROW()-1)) -> 0 | AB82: =SUM(INDIRECT("AB"&ROW(X_10006Bef)+1&":AB"&ROW()-1)) -> 0 | AF82: =AB82-X82 -> 0
C84: 10007 | E84: Section Title | Z84: =
E85: Section Description
E88: Description | O88: Days | R88: Rate | U88: QTY | X88: Estimate | AB88: Actual | AF88: Variance | AJ88: + | AK88: ="Add Line in Section "&C84 -> Add Line in Section 10007
C89: 1 | O89: days | Q89: @ | T89: x | X89: =N89*R89*(IF(ISNUMBER(U89),U89,IF(ISNUMBER(N89),1,0))) -> 0 | AB89: 0 | AF89: =AB89-X89 -> 0 | AJ89: - | AK89: ="Remove Line "&TEXT(C89,"00#")&" "&E89 -> Remove Line 001
C90: 2 | O90: days | Q90: @ | T90: x | X90: =N90*R90*(IF(ISNUMBER(U90),U90,IF(ISNUMBER(N90),1,0))) -> 0 | AB90: 0 | AF90: =AB90-X90 -> 0 | AJ90: - | AK90: ="Remove Line "&TEXT(C90,"00#")&" "&E90 -> Remove Line 002
C91: 3 | O91: days | Q91: @ | T91: x | X91: =N91*R91*(IF(ISNUMBER(U91),U91,IF(ISNUMBER(N91),1,0))) -> 0 | AB91: 0 | AF91: =AB91-X91 -> 0 | AJ91: - | AK91: Remove Line 003
C92: 4 | O92: days | Q92: @ | T92: x | X92: =N92*R92*(IF(ISNUMBER(U92),U92,IF(ISNUMBER(N92),1,0))) -> 0 | AB92: 0 | AF92: =AB92-X92 -> 0 | AJ92: - | AK92: Remove Line 004
O93: ="Total "&E84 -> Total Section Title | X93: =SUM(INDIRECT("X"&ROW(X_10007Bef)+1&":X"&ROW()-1)) -> 0 | AB93: =SUM(INDIRECT("AB"&ROW(X_10007Bef)+1&":AB"&ROW()-1)) -> 0 | AF93: =AB93-X93 -> 0
O95: Total X | X95: =SUM(Total_10000+Total_10001+Total_10002+Total_10003+Total_10004+Total_10005+Total_10006+Total_10007) -> 0 | AB95: =SUM(Actual_10000+Actual_10001+Actual_10002+Actual_10003+Actual_10004+Actual_10005+Actual_10006+Actual_10007) -> 0

Sheet FAQ (hidden)
A1: =COUNTA(B:B) -> 117
B2: Assistant Director | C2: The 1st assistant director works with both the production manager and the director to make the shooting schedule efficient as possible. The 1st A.D. breaks the script down into a shooting schedule and also helps manage the scheduling of talent, crew and equipment needed for each shooting day. This person sometimes helps direct the background extras in a scene.
B3: Director of Photography | C3: The director of photography (D.P.) is in charge of the overall visual look of the film, as seen through the camera. They recommend which cameras and lenses to use for the production. They design the shot’s framing, and the camera movements in conjunction with the director. They are also in charge of the camera crew, lighting design and collaborating with the gaffer.
B4: 1st Assistant Camera | C4: The 1st AC is the chief assistant to the camera operator. The 1st assistant camera person is in charge of measuring and pulling focus during filming. The 1st AC also threads the film through the camera when a new magazine is loaded. This person also helps setup and build the camera, as well as maintain and clean the camera and lenses.
B5: 2nd Assistant Camera | C5: The 2nd AC is also known as the loader. The 2nd assistant camera person is primarily responsible for loading and unloading the new rolls of film into the different magazines, as well as maintaining and filling out all the camera reports for the film lab. This person also runs the slate or clapper to maintain sync and the correct labeling for each and every shot.
B6: DIT | C6: This is another new job position that was created in response to the popular use of high-end digital video formats. The digital imaging technician uses various image manipulation methods to achieve the highest possible image quality during the production. This person usually manages the transferring and storage of the image data as well.
B7: Prop Master | C7: The prop master acquires, organizes, maintains and accounts for all the various props needed for the production. A prop is basically any set decoration piece that can be moved readily easily. This includes many items like guns, knives, books, phones, dish-ware, food, musical instruments, pets or any other item that needs to be present to fulfill the story line.
B8: Camera Op | C8: The camera operator physically controls and operates the camera during filming, under the direction of the D.P. (Director of Photography). The camera operator works closely with both A.C.’s as well. The camera operator controls the shot’s framing, and the camera movements as instructed by the director of photography.
B9: Gaffer | C9: The gaffer is also known as the chief lighting technician. This person is primarily responsible for developing a lighting plan according to the desires of the Director of Photography. The gaffer informs the best boy and key grip on where and which lights are to be placed. The gaffer is in charge of creating the best possible lighting scenario according to the camera framing.
B10: Best Boy Electric | C10: The best boy is the lead electrician on set and is in charge of all the other electricians, similar to how the key grip is in charge of all the grips. The best boy usually operates, adjusts and balances the electrical load on the generator where required. This person is also responsible for distributing the electrical cabling properly providing the required power to each of the lights.
B11: Electrics | C11: The electricians (or juicers) essentially set up and operate all the lighting instruments and cabling as instructed by the best boy or gaffer. This is a physically demanding job due to the large number of heavy lights and cabling often required. Electricians must be knowledgeable of tungsten and HMI lighting as well as changing and installing bulbs properly.
B12: Prep/Strike/Pre Rig Crew | C12: Crew which is distinct from the crew on the shoot, and which is brought in specifically to set up for the shoot or pack up after the shoot.
B13: Key Grip | C13: The key grip is the lead grip on a film set and in charge of all the other grips. The key grip and best boy collaborate with the gaffer and D.P. to formulate the best tactic for accomplishing a given shot. The key grip oversees the proper camera rigging mechanisms as well as manages the light blocking and diffusing techniques.
B14: Grips | C14: Grips essentially “shape the light” that is provided by the electricians. This includes creating pattern and shadow effects, coloring light, diffusing light or blocking light. While electricians set up the lights and cabling, grips provide everything else that is built around the lights to create the quality of light that the gaffer desires. They also provide a variety of special rigging, securing and safety measures on set.
B15: Crane Tech | C15: Some cranes, such as technocranes, require dedicated operators. These technicians often accompany the crane rental and are referred by the equioment rental facility.
B16: Crane Head Tech | C16: This technician operates the remote control for crane heads which provide camera movement while the camera is mounted on a crane
B17: Choreographer | C17: The choreographer is responsible for designing and guiding execution of coordinated movement by actors
B18: Script Supervisor | C18: The script supervisor works closely with the director by taking detailed notes concerning what has been shot, needs to be shot, and also notes any deviations from take to take. He/she also makes sure that the dialogue corresponds with the script. The script supervisor also takes logging notes that are essential in the post production editing process, such as locating shots and finding the best takes. Many times the script supervisor assumes the role of continuity, ensuring the consistency between scenes and shots.
B19: Boom Operator | C19: This person is responsible for properly positioning the microphone boom pole during the actual filming. The boom operator is the assistant to the sound mixer. Many times the boom operator is required to hold the boom pole for several minutes at a time, which can be physically demanding. The boom operator must also be able to follow the actors movements while staying clear of the camera and lights. This makes it a challenging job for achieving the best possible audio.
B20: Sound Mixer | C20: The sound mixer for film is head of the sound department and is responsible for leveling, monitoring and recording of audio during production. The sound mixer decides which microphones to use as well as placements of the microphones. This person can also mix the various sound tracks and audio signals in real time. A film sound mixer supervises the boom operator and/or sound utility person.
B21: VTR Operator | C21: The video assist person operates the VTR (Video Tape Recorder) during production. Most film cameras include a video tap that allows the VTR to record and instantly playback what was just filmed. Since you can’t review 35mm film without it getting processed in the laboratory first, this can be an especially useful tool on set. Video assist is the term used to describe this record and playback process. Reviewing the footage instantly allows the director to confirm performances, camera focus, framing, choreography and other elements for accuracy.
B22: Stunt Coordinator | C22: The stunt coordinator manages and coordinates all the dangerous action sequences in a movie that require a stuntman or stunt performer. The stunt coordinator always follows the appropriate safety regulations during filming to ensure the safety of every stunt performer. Types of stunts may include jumping, flipping, diving, free-falling, crashing cars, catching fire, underwater stunts and other dangerous action sequences where stunt doubles are needed.
B23: Safety Officer | C23: A Safety Ofiicer is necessary whenever dangerous stunts, pyrotechnics or other practical visual effects are part of the shoot
B24: Site Rep | C24: The Site Rep is whoever the owner of a location has designated as their representative to be the responsible party on location during the shoot
B25: Storyboard Artist | C25: The storyboard artist creates a series of illustrations and sketches based on the director’s vision during pre-production. Each sketch represents a different camera set-up. These drawings usually include camera angles, characters and set design. The illustrations are then used to assist the other head departments in understanding their tasks.
B26: Location Scout | C26: Quite often the location scout is one of the first crew members to be contacted on a production. The location scout assists in finding the various filming locations according to the producer and director’s desires. Location scouts often have a large database of location photographs to show before traveling to the actual location for filming.
B27: 2nd AD | C27: The 2nd A.D. works directly with the 1st A.D. to accomplish their duties. The call sheets for each shooting day are created by the 2nd assistant director. The 2nd A.D. also helps manage the scheduling of talent, crew and equipment that is needed for each day. This person also assists in directing the background extras in a movie scene.
B28: Medic | C28: The medic is on set to facillitate any emergency medical care which may be needed.
B29: Craft Service | C29: Craft Services are the various snacks and beverages that are provided to the film crew throughout the day. This is separate from catering. The person in charge of craft service sets up and maintains a station near production that provides these snacks and beverages. The craft service person is given a budget prior to attaining all the refreshments.
B30: Firefighter/Police Officers/Ranger/CHP | C30: These Professionals are required for specific locations, events, props, effects or stunts on set. Police and CHP (California Highway Patrol) often facillitate traffic control or road blockages; Firefighters supervise pyrotechnics and hydrant openings; Rangers are responsible for state, municiple or national parks and other properties
B31: Welfare/Teacher | C31: Teachers and/or welfare workers are required in most states whenever children are present on set.
B32: Gang Boss | C32: The transportation coordinator, or gang boss, organizes and provides a variety of vehicles and transportation for all crew, equipment and actors to and from the filming locations. The transportation coordinator/captain deploys the appropriate vehicles and drivers at the proper times to keep the production on schedule and on budget. They also work closely with the locations manager in attaining the proper parking permits and parking locations for all vehicles.
B33: Teamster Drivers / Animal Wranglers | C33: The transportation driver works under the supervision of the transportation captain. Transportation drivers physically drive and operate all provided production vehicles to and from the filming locations. This includes the transport of all crew, equipment and actors safely to and from the film set while staying on schedule. Types of production vehicles may include cube trucks, passenger vans, stake beds, flatbeds, limos, cars or any other needed production vehicle.
B34: Production Supervisor | C34: The production manager works closely with the production coordinator. This person helps supervise the organization and distribution of the production budget, crew & equipment scheduling, salaries, day rates, and other office related paperwork. This person reports budget needs to the line producer, while trying to keep the production under budget on a day to day basis.
B35: Production Coordinator | C35: A production coordinator is responsible for coordinating the “behind the scenes” logistics, which can include renting equipment, hiring crew members, and coordinating talent. In addition, this crew member may handle the paperwork needed to organize the production. For this reason, the production coordinator is an important crew member in ensuring a production’s goals are on budget and on time.
B36: Production Assistant | C36: Many individuals start their careers in the film industry as a production assistant. A production assistant usually does any general duty or minor task that the production heads may need. Basic duties may include dispersing walkie-talkies, setting up pop-up tents and tables, running basic errands as needed or attaining any other last-minute item that the production might need. It is essential that the P.A. has their own transportation to perform these various errands.
B37: Per Diems | C37: Monies dispersed to crew while travelling
B38: Scouting Expenses | C38: Gas, tolls, supplies and materials used by location scouts while surveying potential locations
B39: Casting Director | C39: The Casting Director is responsible for locating appropriate talent, managing casting calls and running auditions at the direction of the director and director's production team.
B40: Casting Facility | C40: The Casting facility is where casting sessions are held.
B41: Home Econ Supplies | C41: Supplies necessary for food prep on, or for set
B42: Location Fees | C42: Monies paid by production for the use of any property required for the production. This can be property which is filmed, and also property used as holding areas for talent, parking for vehicles, etc.
B43: Permits | C43: Paid permits are often required to use public areas such as roadways and parks
B44: Talent Trailer / Honeywagon | C44: A mobile home used for actors when not on set
B45: Kit Rental | C45: Kit rentals are paid to crew who provide tools and other supplies of their own to aid in production
B46: Sustainable Practices | C46: Sustainable practices refers to actions undertaken in order to conduct environmentally conscious production practices such as recycling of props, electronics, food service items, costs associated with energy efficiency initiatives and practicesetc.
B47: Picture Vehicles | C47: Picture Vehicles are any vehicles which will appear in the filmed imagery. These are often period cars or other specialty vehicles, but can also simply being used as background elements.
B48: Animals & Handlers | C48: Any animal used in the production requires specific, trained handlers who will have responsibility for the animal's welfare and may guide the animal's behaviour while on camera.
B49: Theatrical Makeup | C49: Theatrical makeup refers to any makeup used to change the appearance of an actor.
B50: Product Prep / Color Correct | C50: Labeling and artwork on products often need to be adjusted prior to their being filmed in order for them to appear as they do in a natural setting. Additionally, they may need to be cleaned, reparied or otherwise dressed.
B51: Greens | C51: Plants and other natural set dressing items
B52: Build Days | C52: Build Days are days needed to create or prepare a set for photography - for example building sets on a stage, or dressing a location.
B53: Pre-Lite Days | C53: Pre-Lite Days are any days required for technicians to prep a set or location for photography
B54: Shoot Days | C54: Any days on which the camera will roll.
B55: Strike Days | C55: Strike Days are days after shooting which are required to restore a location or stage to the condition in which it was found.
B56: Generator | C56: Portable power source for shooting n location
B57: Stage Manager | C57: The Stage Manager is the contact at the stage who is responsible for handling any issues related to the facility
B58: Scissor Lift | C58: A Scissor Lift is a powered, raisable scaffld for crew to use when hanging lights or rigging elements which must be hung from a height on stage
B59: Condor | C59: A Condor is a large crane with a platform to accommodate crew, lights and other gear when shooting on location. The largest version has a working height f 170 feet.
B60: Steeldeck | C60: Raised, weight-bearing platform for building raised set surfaces
B61: Leadman / Leadperson | C61: Leadperson: The member of the art department who is in charge of swing gangs and/or set dressers and reports to the set decorator.
B62: Set Dresser | C62: Set Decorator: A person who has total charge of decorating the set with all furnishings, drapery, interior plants, and anything seen on indoor or outdoor sets. The set decorator has authority over a leadman.
B63: Scenic | C63: A crew member in charge of background art on set. Can include painting backgrounds.
B64: Outside Construction | C64: Any building work performed by sub-contractors
B65: Car Prep | C65: Work required to render a car ready for photography. Generally only necessary when car is featured as a product and performed by specialists often certified by client.
B66: VTR | C66: Video equipment for use during shoot to provide video playback and realtime display of footage as it is captured through camera, both for client and agency as well as for crew (including Director)
B67: Dolly | C67: Mechanical moving platform which can accept both gear and crew (most often camera, Camera operator and/ or director). Used to create smooth moving camera shots.
B68: SteadiCam | C68: The steadicam is a camera mounting device that utilizes a mechanical arm attached to a body harness to provide extremely smooth hand-held shots. The steadicam operator is responsible for setting up and operating the steadicam during production.
B69: Camera Car | C69: Car on which a camera rig is mounted for shooting while driving. Often used for car commercials.
B70: Expendables | C70: Assorted supplies which are often discarded after use - light gels and bounces, Luan, adhesive tapes etc
B71: Process | C71: Cost to develop film.
B72: Dailies | C72: Media and labor to creat review material in common formats from shoot.
B73: Special Insurance | C73: Special insurance is generally needed for pyrotechnics, stunts or other specific activity with liability not normally included in the coverage provided by standard production packages
B74: Fringes | C74: Aditions to pay for labor that are above and beyond the base rates for crew or talent ,such as taxes, withholding, any union dues or guild payments
B75: O/C Principals | C75: On Camera Principles are actors who are necessarily featured by vitue of the use of their likeness or specific action in picture . Generally identified as either: receiving direction directly from the director (as opposed to the 1st AD); speaking on camera; performing specific, scripted actions, or being clearly identifiable within frame.
B76: General Extras | C76: Extras are used to fill a scene, performing general actions and not directly interacting with principle actors. Extras may only take direction from the 1st AD. Once an actor is given any instruction directly by the director, they become a principal.
B77: Hand Models/ Parts Models | C77: Any actor/ performer whose only actions involve their extremities (hands, feet etc) for the purpose of displaying or interacting with a product or prop.
B78: Voice Over | C78: Voice performance by an actor who does not appear visually within the commercial.
B79: Fitting Fees | C79: Payment to talent for wardrobe fitting sessions
B80: Audition Fees | C80: Payment to talent for auditions
B81: Talent Agency Fees | C81: Fees to agents who represent talent.
B82: Talent Payroll Service | C82: Cost to run payroll through a professional payroll service for the purpose of withholding fringes. Can apply to any performer or crew member.
B83: File Conversion/Transcoding | C83: The conversion or transcoding of media files, typically from the camera's file format to the format required for the non-linear editing system.
B84: Ingest Media from Files or Tape | C84: Transferring media files to the non-linear editing system or file server in preparation for editing. Typically from hard drives or digitizing and transferring selected media from tape to the hard drives .
B85: Pre-Edit Color Correction | C85: The color correction of certain camera file formats (Cineon, .r3d) prior to editing.
B86: LUT Creation | C86: The creation of a LUT for a given set of camera media. Certain cameras record data in 4:4:4 RGB with logarithmic color space. They need a conversion file or Look up Table (LUT) to be read correctly on edit systems. An LUT can be provided by the production company or director of photography or created by the post house.
B87: Dailies Logging | C87: Screening all material at the beginning of a project while selecting and logging the preferred material for use in the edit.
B88: Off-Line Edit Suite, Bay or Room | C88: A dedicated room equipped with a non-linear or time-code-based editing system and essential support equipment where the creative, off-line editing takes place.
B89: Off-Line Graphics | C89: The time spent creating titles, backgrounds, graphic and animation elements for the off-line edit. Off-Line graphics may not be of sufficient quality for the on-line finish.
B90: High Resolution Re-conforming | C90: The time spent to re-digitize media at the highest possible resolution on a computer-based edit system. Typically for final conform.
B91: Rough Cut Review Material | C91: The materials used in the off-line edit session to create rough cut review media for the agency and their clients, including DVDs, Blu Ray discs, data DVDs and CDs.
B92: Off-Line Work Material | C92: Materials generated during the editing process for archiving purposes.
B93: Off-Line Color | C93: The cost to color grade and visually balance a project, scene-to-scene. May include repositioning, selective correction within a frame in preparation for the Final Edit. Generally for non-broadcast use or challenged budgets.
B94: EDL Prep | C94: Preparing an edit decision list, prior to audio and online edit sessions.
B95: Graphic Development | C95: The exploration and development of initial graphic design ideas.
B96: Digital Load/Prep | C96: The time spent loading and organizing all graphics elements into the workstation prior to the session.
B97: Mix/Sound Design Prep | C97: Loading and organizing all audio elements prior to the mix.
B98: Dialog Replacement (ADR) | C98: Re-recording synchronous dialogue for a scene where the original recording was impaired or the voice of the actor needs to be changed.
B99: Digital Editing (Audio) | C99: Use of a digital audio workstation to edit and line up dialog, narration, music and sound effects tracks in preparation for a sound design session or a mix.
B100: Transfer & Stock | C100: Transfer time and/or stock used to move media or data from one format to another.
B101: Visually Coded Media | C101: The preparation of media with visual code (e.g. time code) often required for music sessions, narration recording, sound design sessions or mixing.
B102: Pre-load/Archiving | C102: Pre-loading and/or archiving media or data to or from a digital multi-track audio system before or after a sound design or mix session.
B103: Scratch Record/Mix | C103: Recording a temporary voice over and balancing and equalizing multiple preliminary tracks for presentation at the rough-cut stage.
B104: Audio Relay (Re-track) | C104: Synchronously re-recording an audio track either at the rough cut stage, when a new track is supplied or a new mix is done for presentation, or at the finishing stage, when a project is mixed (or remixed) after the initial on-line conform.
B105: Digital Patch/Remote Studio | C105: Use of a satellite or digital line to record a voice in one studio while simultaneously monitoring and recording it in another studio. Usually includes the cost of both studios and transmission charges, unless otherwise noted in the estimate.
B106: Color Grading/Telecine Prep | C106: The creation of an EDL (or XML) of the approved edit in order to match back to the raw (original) media in preparation for transfer and color grading.
B107: File Preparation for Color Grading | C107: The creation of digital files of the approved cut(s) for the final color grading session. Applies to certain file-based formats.
B108: Pre Load/Scanning | C108: The preparation and injesting of material into the color grading or scanning system in preparation for the Color Grading/Film to Tape Transfer process.
B109: HD Up-Res/Downconvert | C109: The creation of a high definition (HD) version of a project from standard definition (SD) media or the creation of a standard definition (SD) version of a project from high definition (HD) media.
B110: Generic Master | C110: First generation master which is complete except for titles or logos. For use when
B111: Edited Master | C111: Completed master with color bars, slate and tone, titles and logos ready for air.
B112: Protection Master | C112: A copy of the Edited Master with identical time code from which dubs are made.
B113: Dubs/Duplicates | C113: Copies of the finished Edited Master.
B114: Archiving/LTO | C114: The preparation and duplication of all of the project's media and data to hard drives and/or LTO tape for long term archiving and storage.
B115: Archive Storage Devices | C115: Hard drives, disks, data tapes, etc. used for long term media and data storage.
B116: Uncompressed Files | C116: The creation of final uncompressed file deliverables.
B117: Standards Conversion | C117: Transferring and converting media from one broadcast format to another (NTSC, PAL, SECAM, etc.).
B118: Data Transmission Charge | C118: Transmitting computer data between two locations

Sheet Sheet1 (hidden)
A1: 1 | C1: Line Producer | L1: =C1 -> Line Producer | P1: =A1&" "&C1 -> 1 Line Producer
A2: 2 | C2: Assistant Director | L2: =C2 -> Assistant Director | P2: =A2&" "&C2 -> 2 Assistant Director
A3: 3 | C3: Director of Photography | L3: Director of Photography | P3: 3 Director of Photography
A4: 4 | C4: 1st Assistant Camera | L4: 1st Assistant Camera | P4: 4 1st Assistant Camera
A5: 5 | C5: 2nd Assistant Camera | L5: 2nd Assistant Camera | P5: 5 2nd Assistant Camera
A6: 6 | C6: DIT | L6: DIT | P6: 6 DIT
A7: 7 | C7: Prop Master | L7: Prop Master | P7: 7 Prop Master
A8: 8 | C8: Asst Props | L8: Asst Props | P8: 8 Asst Props
A9: 9 | C9: Local Production Super | L9: Local Production Super | P9: 9 Local Production Super
A10: 10 | C10: Camera Op | L10: Camera Op | P10: 10 Camera Op
A11: 11 | C11: Gaffer | L11: Gaffer | P11: 11 Gaffer
A12: 12 | C12: Best Boy Electric | L12: Best Boy Electric | P12: 12 Best Boy Electric
A13: 13 | C13: 3rd Electric | L13: 3rd Electric | P13: 13 3rd Electric
A14: 14 | C14: Electric/Driver | L14: Electric/Driver | P14: 14 Electric/Driver
A15: 15 | C15: Prep/Strike/Pre Rig Crew | L15: Prep/Strike/Pre Rig Crew | P15: 15 Prep/Strike/Pre Rig Crew
A16: 16 | C16: Key Grip | L16: Key Grip | P16: 16 Key Grip
A17: 17 | C17: Best Boy Grip | L17: Best Boy Grip | P17: 17 Best Boy Grip
A18: 18 | C18: 3rd Grip | L18: 3rd Grip | P18: 18 3rd Grip
A19: 19 | C19: Grip/Driver | L19: Grip/Driver | P19: 19 Grip/Driver
A20: 20 | C20: Crane Tech 2x | L20: Crane Tech 2x | P20: 20 Crane Tech 2x
A21: 21 | C21: Crane Head Tech | L21: Crane Head Tech | P21: 21 Crane Head Tech
A22: 22 | C22: Steadi Cam Op | L22: Steadi Cam Op | P22: 22 Steadi Cam Op
A23: 23 | C23: Choreographer | L23: Choreographer | P23: 23 Choreographer
A24: 24 | C24: Make-Up/Hair | L24: Make-Up/Hair | P24: 24 Make-Up/Hair
A25: 25 | C25: Make-Up/Hair Asst | L25: Make-Up/Hair Asst | P25: 25 Make-Up/Hair Asst
A26: 26 | C26: Wardrobe Stylist | L26: Wardrobe Stylist | P26: 26 Wardrobe Stylist
A27: 27 | C27: Asst Wardrobe | L27: Asst Wardrobe | P27: 27 Asst Wardrobe
A28: 28 | C28: Script Supervisor | L28: Script Supervisor | P28: 28 Script Supervisor
A29: 29 | C29: Boom Operator | L29: Boom Operator | P29: 29 Boom Operator
A30: 30 | C30: Sound Mixer | L30: Sound Mixer | P30: 30 Sound Mixer
A31: 31 | C31: VTR Operator | L31: VTR Operator | P31: 31 VTR Operator
A32: 32 | C32: Stunt Coordinator | L32: Stunt Coordinator | P32: 32 Stunt Coordinator
A33: 33 | C33: Safety Officer | L33: Safety Officer | P33: 33 Safety Officer
A34: 34 | C34: Site Rep | L34: Site Rep | P34: 34 Site Rep
A35: 35 | C35: Storyboard Artist | L35: Storyboard Artist | P35: 35 Storyboard Artist
A36: 36 | C36: Catering Crew | L36: Catering Crew | P36: 36 Catering Crew
A37: 37 | C37: Location Scout | L37: Location Scout | P37: 37 Location Scout
A38: 38 | C38: Asst Locations | L38: Asst Locations | P38: 38 Asst Locations
A39: 39 | C39: 2nd AD | L39: 2nd AD | P39: 39 2nd AD
A40: 40 | C40: Medic | L40: Medic | P40: 40 Medic
A41: 41 | C41: Craft Service | L41: Craft Service | P41: 41 Craft Service
A42: 42 | C42: Firefighter | L42: Firefighter | P42: 42 Firefighter
A43: 43 | C43: Police Officers/Ranger/CHP | L43: Police Officers/Ranger/CHP | P43: 43 Police Officers/Ranger/CHP
A44: 44 | C44: Welfare/Teacher | L44: Welfare/Teacher | P44: 44 Welfare/Teacher
A45: 45 | C45: Gang Boss | L45: Gang Boss | P45: 45 Gang Boss
A46: 46 | C46: Teamster Drivers / Animal Wranglers | L46: Teamster Drivers / Animal Wranglers | P46: 46 Teamster Drivers / Animal Wranglers
A47: 47 | C47: Production Supervisor | L47: Production Supervisor | P47: 47 Production Supervisor
A48: 48 | C48: Production Coordinator | L48: Production Coordinator | P48: 48 Production Coordinator
A49: 49 | C49: Production Assistant | L49: Production Assistant | P49: 49 Production Assistant
A50: 101 | C50: Craft Service | L50: =C50 -> Craft Service | P50: 101 Craft Service
A51: 102 | C51: Per Diems | L51: =C51 -> Per Diems | P51: 102 Per Diems
A52: 103 | C52: Hotels | L52: Hotels | P52: 103 Hotels
A53: 104 | C53: Scouting Expenses | L53: Scouting Expenses | P53: 104 Scouting Expenses
A54: 105 | C54: Deliveries & Taxi | L54: Deliveries & Taxi | P54: 105 Deliveries & Taxi
A55: 106 | C55: Car Rental | L55: Car Rental | P55: 106 Car Rental
A56: 107 | C56: Trucking | L56: Trucking | P56: 107 Trucking
A57: 108 | C57: Casting Director | L57: Casting Director | P57: 108 Casting Director
A58: 109 | C58: Casting Facility | L58: Casting Facility | P58: 109 Casting Facility
A59: 110 | C59: Home Econ Supplies | L59: Home Econ Supplies | P59: 110 Home Econ Supplies
A60: 111 | C60: Telephone & Cable | L60: Telephone & Cable | P60: 111 Telephone & Cable
A61: 112 | C61: Working Meals | L61: Working Meals | P61: 112 Working Meals
A62: 113 | C62: Messengers | L62: Messengers | P62: 113 Messengers
A63: 114 | C63: Location Fees | L63: Location Fees | P63: 114 Location Fees
A64: 115 | C64: Permits | L64: Permits | P64: 115 Permits
A65: 116 | C65: Lane Closures | L65: Lane Closures | P65: 116 Lane Closures
A66: 117 | C66: Set Security | L66: Set Security | P66: =A66&" "&C66 -> 117 Set Security
A67: 118 | C67: Cargo Van | L67: Cargo Van | P67: 118 Cargo Van
A68: 119 | C68: Production Trucking | L68: Production Trucking | P68: 119 Production Trucking
A69: 120 | C69: Camera Truck | L69: Camera Truck | P69: 120 Camera Truck
A70: 121 | C70: Car Rentals | L70: Car Rentals | P70: 121 Car Rentals
A71: 122 | C71: Bus Rentals | L71: Bus Rentals | P71: 122 Bus Rentals
A72: 123 | C72: Limousines (Celebrities) | L72: Limousines (Celebrities) | P72: 123 Limousines (Celebrities)
A73: 124 | C73: Dressing Room Vehicles | L73: Dressing Room Vehicles | P73: 124 Dressing Room Vehicles
A74: 125 | C74: Talent Trailer / Honeywagon | L74: Talent Trailer / Honeywagon | P74: 125 Talent Trailer / Honeywagon
A75: 126 | C75: Other Vehicles | L75: Other Vehicles | P75: 126 Other Vehicles
A76: 127 | C76: Parking/Tolls/Gas | L76: Parking/Tolls/Gas | P76: 127 Parking/Tolls/Gas
A77: 128 | C77: Excess Bags/Homeland Security | L77: Excess Bags/Homeland Security | P77: 128 Excess Bags/Homeland Security
A78: 129 | C78: Air Fares | L78: Air Fares | P78: 129 Air Fares
A79: 130 | C79: Hotels | L79: Hotels | P79: 130 Hotels
A80: 131 | C80: Per Diems | L80: Per Diems | P80: 131 Per Diems
A81: 132 | C81: Talent Meals | L81: Talent Meals | P81: 132 Talent Meals
A82: 133 | C82: Breakfast | L82: Breakfast | P82: 133 Breakfast
A83: 134 | C83: Lunch | L83: Lunch | P83: 134 Lunch
A84: 135 | C84: Dinner | L84: Dinner | P84: 135 Dinner
A85: 136 | C85: Cabs/ Ubers/ Other Transportation | L85: Cabs/ Ubers/ Other Transportation | P85: 136 Cabs/ Ubers/ Other Transportation
A86: 137 | C86: Kit Rental | L86: Kit Rental | P86: 137 Kit Rental
A87: 138 | C87: Art Work | L87: Art Work | P87: 138 Art Work
A88: 139 | C88: Sustainable Practices | L88: Sustainable Practices | P88: 139 Sustainable Practices
A89: 140 | C89: Prop Rental | L89: Prop Rental | P89: 140 Prop Rental
A90: 141 | C90: Prop Purchase | L90: Prop Purchase | P90: 141 Prop Purchase
A91: 142 | C91: Prop Fabrication | L91: Prop Fabrication | P91: 142 Prop Fabrication
A92: 143 | C92: Wardrobe Rental | L92: Wardrobe Rental | P92: 143 Wardrobe Rental
A93: 144 | C93: Wardrobe Purchase | L93: Wardrobe Purchase | P93: 144 Wardrobe Purchase
A94: 145 | C94: Costumes | L94: Costumes | P94: 145 Costumes
A95: 146 | C95: Picture Vehicles | L95: Picture Vehicles | P95: 146 Picture Vehicles
A96: 147 | C96: Animals & Handlers | L96: Animals & Handlers | P96: 147 Animals & Handlers
A97: 148 | C97: Theatrical Makeup | L97: Theatrical Makeup | P97: 148 Theatrical Makeup
A98: 149 | C98: Product Prep / Color Correct | L98: Product Prep / Color Correct | P98: 149 Product Prep / Color Correct
A99: 150 | C99: Greens | L99: Greens | P99: 150 Greens
A100: 151 | C100: Rental For Build Days | L100: Rental For Build Days | P100: 151 Rental For Build Days
A101: 152 | C101: Build OT Hours | L101: Build OT Hours | P101: 152 Build OT Hours
A102: 153 | C102: Rental for Pre-Lite Days | L102: Rental for Pre-Lite Days | P102: 153 Rental for Pre-Lite Days
A103: 154 | C103: Pre-Lite OT Hours | L103: Pre-Lite OT Hours | P103: 154 Pre-Lite OT Hours
A104: 155 | C104: Rental for Shoot Days | L104: Rental for Shoot Days | P104: 155 Rental for Shoot Days
A105: 156 | C105: Shoot OT Hours | L105: Shoot OT Hours | P105: 156 Shoot OT Hours
A106: 157 | C106: Rental for Strike Days | L106: Rental for Strike Days | P106: 157 Rental for Strike Days
A107: 158 | C107: Strike OT Hours | L107: Strike OT Hours | P107: 158 Strike OT Hours
A108: 159 | C108: Generator and Operator | L108: Generator and Operator | P108: 159 Generator and Operator
A109: 160 | C109: Stage Manager/Studio Security | L109: Stage Manager/Studio Security | P109: 160 Stage Manager/Studio Security
A110: 161 | C110: Power Charges | L110: Power Charges | P110: 161 Power Charges
A111: 162 | C111: Misc Studio Charges | L111: Misc Studio Charges | P111: 162 Misc Studio Charges
A112: 163 | C112: Meals for Crew & Talent | L112: Meals for Crew & Talent | P112: 163 Meals for Crew & Talent
A113: 164 | C113: Air Conditioning | L113: Air Conditioning | P113: 164 Air Conditioning
A114: 165 | C114: Crew Parking | L114: Crew Parking | P114: 165 Crew Parking
A115: 166 | C115: Condor/Scissor Lift | L115: =C115 -> Condor/Scissor Lift | P115: 166 Condor/Scissor Lift
A116: 167 | C116: Steeldeck | L116: Steeldeck | P116: 167 Steeldeck
A117: 168 | C117: Production Designer/Art Director | L117: Production Designer/Art Director | P117: 168 Production Designer/Art Director
A118: 170 | C118: Set Decorator | L118: Set Decorator | P118: 170 Set Decorator
A119: 171 | C119: Art Dept Coordinator | L119: Art Dept Coordinator | P119: 171 Art Dept Coordinator
A120: 172 | C120: Prop Master | L120: Prop Master | P120: 172 Prop Master
A121: 173 | C121: Asst Props | L121: Asst Props | P121: 173 Asst Props
A122: 174 | C122: Swing | L122: Swing | P122: 174 Swing
A123: 175 | C123: Leadman | L123: Leadman | P123: 175 Leadman
A124: 176 | C124: Set Dresser | L124: Set Dresser | P124: 176 Set Dresser
A125: 177 | C125: Scenics | L125: Scenics | P125: 177 Scenics
A126: 178 | C126: Grips / Riggers | L126: Grips / Riggers | P126: 178 Grips / Riggers
A127: 179 | C127: Art PA's | L127: Art PA's | P127: 179 Art PA's
A128: 181 | C128: Set Dressing Rentals | L128: Set Dressing Rentals | P128: 181 Set Dressing Rentals
A129: 182 | C129: Set Dressing Purchases | L129: Set Dressing Purchases | P129: 182 Set Dressing Purchases
A130: 183 | C130: Art Dept Prod Supplies | L130: Art Dept Prod Supplies | P130: =A130&" "&C130 -> 183 Art Dept Prod Supplies
A131: 184 | C131: Art Dept Kit Rental | L131: Art Dept Kit Rental | P131: 184 Art Dept Kit Rental
A132: 185 | C132: Special Effects Rental | L132: Special Effects Rental | P132: 185 Special Effects Rental
A133: 186 | C133: Art Dept Trucking | L133: Art Dept Trucking | P133: 186 Art Dept Trucking
A134: 187 | C134: Outside Construction | L134: Outside Construction | P134: 187 Outside Construction
A135: 188 | C135: Car Prep | L135: Car Prep | P135: 188 Car Prep
A136: 189 | C136: Art Dept Meals | L136: Art Dept Meals | P136: 189 Art Dept Meals
A137: 190 | C137: Messengers/Deliveries | L137: Messengers/Deliveries | P137: 190 Messengers/Deliveries
A138: 193 | C138: Camera Rental | L138: Camera Rental | P138: 193 Camera Rental
A139: 194 | C139: Sound Rental | L139: Sound Rental | P139: 194 Sound Rental
A140: 195 | C140: Lighting Rental | L140: Lighting Rental | P140: 195 Lighting Rental
A141: 196 | C141: Grip Rental | L141: Grip Rental | P141: 196 Grip Rental
A142: 197 | C142: Generator Rental | L142: Generator Rental | P142: 197 Generator Rental
A143: 198 | C143: Crane Rental | L143: Crane Rental | P143: 198 Crane Rental
A144: 199 | C144: VTR Rental | L144: VTR Rental | P144: 199 VTR Rental
A145: 200 | C145: Walkie Talkie Rental | L145: Walkie Talkie Rental | P145: 200 Walkie Talkie Rental
A146: 201 | C146: Dolly Rental | L146: Dolly Rental | P146: 201 Dolly Rental
A147: 202 | C147: SteadiCam | L147: SteadiCam | P147: 202 SteadiCam
A148: 203 | C148: Helicopter | L148: Helicopter | P148: 203 Helicopter
A149: 204 | C149: Production Supplies | L149: Production Supplies | P149: 204 Production Supplies
A150: 205 | C150: Condor/Scissor Lift | L150: Condor/Scissor Lift | P150: 205 Condor/Scissor Lift
A151: 206 | C151: Crane Head | L151: Crane Head | P151: 206 Crane Head
A152: 207 | C152: Camera Car | L152: Camera Car | P152: 207 Camera Car
A153: 208 | C153: Expendables | L153: Expendables | P153: 208 Expendables
A154: 209 | C154: Lenses | L154: Lenses | P154: 209 Lenses
A155: 210 | C155: Cinedrives | L155: Cinedrives | P155: 210 Cinedrives
A156: 211 | C156: Media / Drives | L156: Media / Drives | P156: 211 Media / Drives
A157: 212 | C157: Film | L157: Film | P157: 212 Film
A158: 213 | C158: Transcode / Transfer | L158: Transcode / Transfer | P158: 213 Transcode / Transfer
A159: 214 | C159: Process | L159: Process | P159: 214 Process
A160: 215 | C160: Dailies | L160: Dailies | P160: 215 Dailies
A161: 217 | C161: Petty Cash | L161: Petty Cash | P161: 217 Petty Cash
A162: 218 | C162: Air Shipping and Carriers | L162: Air Shipping and Carriers | P162: 218 Air Shipping and Carriers
A163: 219 | C163: Phones and Cables | L163: Phones and Cables | P163: 219 Phones and Cables
A164: 220 | C164: Cash Under $15 Each | L164: Cash Under $15 Each | P164: 220 Cash Under $15 Each
A165: 221 | C165: External Billing Costs | L165: External Billing Costs | P165: 221 External Billing Costs
A166: 222 | C166: Special Insurance | L166: Special Insurance | P166: 222 Special Insurance
A167: 223 | C167: Cell Phones | L167: Cell Phones | P167: 223 Cell Phones
A168: 224 | C168: Foreign Production Service Co | L168: Foreign Production Service Co | P168: 224 Foreign Production Service Co
A169: 227 | C169: Director Prep | L169: Director Prep | P169: 227 Director Prep
A170: 228 | C170: Director Travel | L170: Director Travel | P170: 228 Director Travel
A171: 229 | C171: Director Shoot | L171: Director Shoot | P171: 229 Director Shoot
A172: 230 | C172: Director Post | L172: Director Post | P172: 230 Director Post
A173: 231 | C173: Fringes | L173: Fringes | P173: 231 Fringes
A174: 234 | C174: O/C Principals | L174: O/C Principals | P174: 234 O/C Principals
A175: 247 | C175: General Extras | L175: General Extras | P175: 247 General Extras
A176: 255 | C176: Hand Models | L176: Hand Models | P176: 255 Hand Models
A177: 258 | C177: Voice Over | L177: Voice Over | P177: 258 Voice Over
A178: 259 | C178: Fitting Fees | L178: Fitting Fees | P178: 259 Fitting Fees
A179: 262 | C179: Audition Fees | L179: =C179 -> Audition Fees | P179: 262 Audition Fees
A180: 266 | C180: Talent Agency Fees | L180: Talent Agency Fees | P180: 266 Talent Agency Fees
A181: 267 | C181: Talent Payroll Service | L181: Talent Payroll Service | P181: 267 Talent Payroll Service
A182: 268 | C182: Talent Wardrobe Allowance | L182: Talent Wardrobe Allowance | P182: 268 Talent Wardrobe Allowance
A183: 271 | C183: Talent Air Fares | L183: Talent Air Fares | P183: 271 Talent Air Fares
A184: 272 | C184: Talent Per Diem | L184: Talent Per Diem | P184: 272 Talent Per Diem
A185: 273 | C185: Talent Gd Transportation | L185: Talent Gd Transportation | P185: 273 Talent Gd Transportation
C186: Travel | L186: Travel | P186: Travel
P187: 2001 File Conversion/Transcoding
P188: 2002 Ingest Media from Files or Tape
P189: 2003 Pre-Edit Color Correction
P190: 2004 LUT Creation
P191: 2005 Dailies Logging
P192: 2010 Off-Line Edit Suite, Bay or Room
P193: 2030 Off-Line Graphics
P194: 2040 High Resolution Re-conforming
P195: 2050 Rough Cut Review Material
P196: 2060 Hard Drive Rental or Purchase
P197: 2070 Data Backup/Restore
P198: 2080 Off-Line Work Material
P199: 2090 File Creation & Posting
P200: 2100 Off-Line Color
... 73 more rows

Sheet XTemplate (hidden)
C2: 10000 | E2: Section Title | Z2: =
E3: Section Description
E6: Description | O6: Days | R6: Rate | U6: QTY | X6: Estimate | AB6: Actual | AF6: Variance | AJ6: + | AK6: ="Add Line in Section "&C2 -> Add Line in Section 10000
C7: 1 | O7: days | Q7: @ | T7: x | X7: =N7*R7*(IF(ISNUMBER(U7),U7,IF(ISNUMBER(N7),1,0))) -> 0 | AB7: 0 | AF7: =AB7-X7 -> 0 | AJ7: - | AK7: ="Remove Line "&TEXT(C7,"00#")&" "&E7 -> Remove Line 001
C8: 2 | O8: days | Q8: @ | T8: x | X8: =N8*R8*(IF(ISNUMBER(U8),U8,IF(ISNUMBER(N8),1,0))) -> 0 | AB8: 0 | AF8: =AB8-X8 -> 0 | AJ8: - | AK8: ="Remove Line "&TEXT(C8,"00#")&" "&E8 -> Remove Line 002
C9: 3 | O9: days | Q9: @ | T9: x | X9: =N9*R9*(IF(ISNUMBER(U9),U9,IF(ISNUMBER(N9),1,0))) -> 0 | AB9: 0 | AF9: =AB9-X9 -> 0 | AJ9: - | AK9: Remove Line 003
C10: 4 | O10: days | Q10: @ | T10: x | X10: =N10*R10*(IF(ISNUMBER(U10),U10,IF(ISNUMBER(N10),1,0))) -> 0 | AB10: 0 | AF10: =AB10-X10 -> 0 | AJ10: - | AK10: Remove Line 004
O11: ="Total "&E2 -> Total Section Title | AB11: =SUM(INDIRECT("AB"&ROW(C7)&":AB"&ROW()-1)) -> 0 | AF11: =AB11-X11 -> 0

Sheet P_Template (hidden)
C8: P1. | D8: Blank
D9: Description | K9: Days | Q9: Rate | T9: No. | X9: Estimate | AB9: Actual | AF9: Variance
K10: Rehearsal | N10: Shoot
C11: 0 | L11: days | O11: days | P11: @ | S11: x | W11: =((K11*Q11)+(N11*Q11))*(IF(ISNUMBER(T11),T11,1)) -> 0 | AB11: 0 | AF11: =AB11-W11 -> 0
C12: =C11+1 -> 1 | L12: days | O12: days | P12: @ | S12: x | W12: =((K12*Q12)+(N12*Q12))*(IF(ISNUMBER(T12),T12,1)) -> 0 | AB12: 0 | AF12: =AB12-W12 -> 0
C13: =C12+1 -> 2 | L13: days | O13: days | P13: @ | S13: x | W13: 0 | AB13: 0 | AF13: 0
C14: 3 | L14: days | O14: days | P14: @ | S14: x | W14: 0 | AB14: 0 | AF14: 0
C15: 4 | L15: days | O15: days | P15: @ | S15: x | W15: 0 | AB15: 0 | AF15: 0
C16: 5 | L16: days | O16: days | P16: @ | S16: x | W16: 0 | AB16: 0 | AF16: 0
C17: 6 | L17: days | O17: days | P17: @ | S17: x | W17: 0 | AB17: 0 | AF17: 0
C18: 7 | L18: days | O18: days | P18: @ | S18: x | W18: 0 | AB18: 0 | AF18: 0
C19: 8 | L19: days | O19: days | P19: @ | S19: x | W19: 0 | AB19: 0 | AF19: 0
C20: 9 | L20: days | O20: days | P20: @ | S20: x | W20: 0 | AB20: 0 | AF20: 0
C21: 10 | L21: days | O21: days | P21: @ | S21: x | W21: 0 | AB21: 0 | AF21: 0
C22: 11 | L22: days | O22: days | P22: @ | S22: x | W22: 0 | AB22: 0 | AF22: 0
C23: 12 | L23: days | O23: days | P23: @ | S23: x | W23: 0 | AB23: 0 | AF23: 0
C24: 13 | L24: days | O24: days | P24: @ | S24: x | W24: 0 | AB24: 0 | AF24: 0
C25: 14 | L25: days | O25: days | P25: @ | S25: x | W25: 0 | AB25: 0 | AF25: 0
C26: 15 | L26: days | O26: days | P26: @ | S26: x | W26: 0 | AB26: 0 | AF26: 0
C27: 16 | L27: days | O27: days | P27: @ | S27: x | W27: 0 | AB27: 0 | AF27: 0
C28: 17 | L28: days | O28: days | P28: @ | S28: x | W28: 0 | AB28: 0 | AF28: 0
C29: 18 | L29: days | O29: days | P29: @ | S29: x | W29: 0 | AB29: 0 | AF29: 0
C30: 19 | L30: days | O30: days | P30: @ | S30: x | W30: 0 | AB30: 0 | AF30: 0
C31: 20 | L31: days | O31: days | P31: @ | S31: x | W31: 0 | AB31: 0 | AF31: 0
C32: 21 | L32: days | O32: days | P32: @ | S32: x | W32: 0 | AB32: 0 | AF32: 0
C33: 22 | L33: days | O33: days | P33: @ | S33: x | W33: 0 | AB33: 0 | AF33: 0
C34: 23 | L34: days | O34: days | P34: @ | S34: x | W34: 0 | AB34: 0 | AF34: 0
C35: 24 | L35: days | O35: days | P35: @ | S35: x | W35: 0 | AB35: 0 | AF35: 0
C36: 25 | L36: days | O36: days | P36: @ | S36: x | W36: 0 | AB36: 0 | AF36: 0
C37: 26 | L37: days | O37: days | P37: @ | S37: x | W37: 0 | AB37: 0 | AF37: 0
C38: 27 | L38: days | O38: days | P38: @ | S38: x | W38: 0 | AB38: 0 | AF38: 0
C39: 28 | L39: days | O39: days | P39: @ | S39: x | W39: 0 | AB39: 0 | AF39: 0
C40: 29 | L40: days | O40: days | P40: @ | S40: x | W40: 0 | AB40: 0 | AF40: 0
C41: 30 | L41: days | O41: days | P41: @ | S41: x | W41: 0 | AB41: 0 | AF41: 0
C42: 31 | L42: days | O42: days | P42: @ | S42: x | W42: 0 | AB42: 0 | AF42: 0
C43: 32 | L43: days | O43: days | P43: @ | S43: x | W43: 0 | AB43: 0 | AF43: 0
C44: 33 | L44: days | O44: days | P44: @ | S44: x | W44: 0 | AB44: 0 | AF44: 0
C45: 34 | L45: days | O45: days | P45: @ | S45: x | W45: 0 | AB45: 0 | AF45: 0
C46: 35 | L46: days | O46: days | P46: @ | S46: x | W46: 0 | AB46: 0 | AF46: 0
C47: 36 | L47: days | O47: days | P47: @ | S47: x | W47: 0 | AB47: 0 | AF47: 0
C48: 37 | L48: days | O48: days | P48: @ | S48: x | W48: 0 | AB48: 0 | AF48: 0
C49: 38 | L49: days | O49: days | P49: @ | S49: x | W49: 0 | AB49: 0 | AF49: 0
C50: 39 | L50: days | O50: days | P50: @ | S50: x | W50: 0 | AB50: 0 | AF50: 0
C51: 40 | L51: days | O51: days | P51: @ | S51: x | W51: 0 | AB51: 0 | AF51: 0
C52: 41 | L52: days | O52: days | P52: @ | S52: x | W52: 0 | AB52: 0 | AF52: 0
C53: 42 | L53: days | O53: days | P53: @ | S53: x | W53: 0 | AB53: 0 | AF53: 0
C54: 43 | L54: days | O54: days | P54: @ | S54: x | W54: 0 | AB54: 0 | AF54: 0
C55: 44 | L55: days | O55: days | P55: @ | S55: x | W55: 0 | AB55: 0 | AF55: 0
C56: 45 | L56: days | O56: days | P56: @ | S56: x | W56: 0 | AB56: 0 | AF56: 0
C57: 46 | L57: days | O57: days | P57: @ | S57: x | W57: 0 | AB57: 0 | AF57: 0
C58: 47 | L58: days | O58: days | P58: @ | S58: x | W58: 0 | AB58: 0 | AF58: 0
C59: 48 | L59: days | O59: days | P59: @ | S59: x | W59: 0 | AB59: 0 | AF59: 0
C60: 49 | L60: days | O60: days | P60: @ | S60: x | W60: 0 | AB60: 0 | AF60: 0
C61: ="Sub Total "&D8 -> Sub Total Blank | W61: =SUM(W11:W60) -> 0 | AB61: =SUM(AB11:AD60) -> 0 | AF61: =AB61-W61 -> 0
C62: ="Handling "&D8 -> Handling Blank | W62: =W61*thisSheetHandling -> 0 | AB62: =W62 -> 0 | AF62: =AB62-W62 -> 0 | AJ62: ="Handling "&D8 -> Handling Blank | AR62: 0
C63: ="Total "&D8 -> Total Blank | W63: =SUM(W61:Z62) -> 0 | AB63: =SUM(AB61:AD62) -> 0 | AF63: =AB63-W63 -> 0

Sheet Labor_Template (hidden)
DD1: Labor
C8: P1. | D8: Labor | AJ8: Payroll OT Calculator
E9: Description | N9: Days | Q9: Rate | U9: Overtime | X9: Estimate | AB9: Actual | AF9: Variance | AJ9: Base | AL9: Hourly | AN9: OT | AP9: Fringes | AR9: State | AT9: State | AV9: State
U10: 1.5 | V10: 2 | AJ10: Hours | AL10: Rate | AN10: Rate | AP10: Rate | AR10: Basis | AT10: Day Total | AV10: OT Total
C11: 0 | O11: days | P11: @ | S11: x | W11: =IF(ISNUMBER(N11),(N11*Q11*IF(ISNUMBER(T11),T11,1)+(IFERROR(U11*(Q11/AJ11)*1.5,0))+(IFERROR(V11*(Q11/AJ11)*2,0))),0) -> 0 | AB11: 0 | AF11: =AB11-W11 -> 0 | AJ11: 10 | AL11: =IFERROR(Q11/(AJ11+((AJ11-AP$11)*0.5)),0) -> 0 | AN11: =AL11*1.5 -> 0 | AP11: 0 | AR11: 8 | AT11: =AL11*ThisSheetState -> 0 | AV11: =(AJ11-ThisSheetState)*AN11 -> 0
C12: =C11+1 -> 1 | O12: days | P12: @ | S12: x | W12: 0 | AB12: 0 | AF12: 0 | AJ12: 10 | AL12: =IFERROR(Q12/(AJ12+((AJ12-AP$11)*0.5)),0) -> 0 | AN12: 0 | AT12: 0 | AV12: 0
C13: =C12+1 -> 2 | O13: days | P13: @ | S13: x | W13: 0 | AB13: 0 | AF13: 0 | AJ13: 10 | AL13: 0 | AN13: 0 | AT13: 0 | AV13: 0
C14: 3 | O14: days | P14: @ | S14: x | W14: 0 | AB14: 0 | AF14: 0 | AJ14: 10 | AL14: 0 | AN14: 0 | AT14: 0 | AV14: 0
C15: 4 | O15: days | P15: @ | S15: x | W15: 0 | AB15: 0 | AF15: 0 | AJ15: 10 | AL15: 0 | AN15: 0 | AT15: 0 | AV15: 0
C16: 5 | O16: days | P16: @ | S16: x | W16: 0 | AB16: 0 | AF16: 0 | AJ16: 10 | AL16: 0 | AN16: 0 | AT16: 0 | AV16: 0
C17: 6 | O17: days | P17: @ | S17: x | W17: 0 | AB17: 0 | AF17: 0 | AJ17: 10 | AL17: 0 | AN17: 0 | AT17: 0 | AV17: 0
C18: 7 | O18: days | P18: @ | S18: x | W18: 0 | AB18: 0 | AF18: 0 | AJ18: 10 | AL18: 0 | AN18: 0 | AT18: 0 | AV18: 0
C19: 8 | O19: days | P19: @ | S19: x | W19: 0 | AB19: 0 | AF19: 0 | AJ19: 10 | AL19: 0 | AN19: 0 | AT19: 0 | AV19: 0
C20: 9 | O20: days | P20: @ | S20: x | W20: 0 | AB20: 0 | AF20: 0 | AJ20: 10 | AL20: 0 | AN20: 0 | AT20: 0 | AV20: 0
C21: 10 | O21: days | P21: @ | S21: x | W21: 0 | AB21: 0 | AF21: 0 | AJ21: 10 | AL21: 0 | AN21: 0 | AT21: 0 | AV21: 0
C22: 11 | O22: days | P22: @ | S22: x | W22: 0 | AB22: 0 | AF22: 0 | AJ22: 10 | AL22: 0 | AN22: 0 | AT22: 0 | AV22: 0
C23: 12 | O23: days | P23: @ | S23: x | W23: 0 | AB23: 0 | AF23: 0 | AJ23: 10 | AL23: 0 | AN23: 0 | AT23: 0 | AV23: 0
C24: 13 | O24: days | P24: @ | S24: x | W24: 0 | AB24: 0 | AF24: 0 | AJ24: 10 | AL24: 0 | AN24: 0 | AT24: 0 | AV24: 0
C25: 14 | O25: days | P25: @ | S25: x | W25: 0 | AB25: 0 | AF25: 0 | AJ25: 10 | AL25: 0 | AN25: 0 | AT25: 0 | AV25: 0
C26: 15 | O26: days | P26: @ | S26: x | W26: 0 | AB26: 0 | AF26: 0 | AJ26: 10 | AL26: 0 | AN26: 0 | AT26: 0 | AV26: 0
C27: 16 | O27: days | P27: @ | S27: x | W27: 0 | AB27: 0 | AF27: 0 | AJ27: 10 | AL27: 0 | AN27: 0 | AT27: 0 | AV27: 0
C28: 17 | O28: days | P28: @ | S28: x | W28: 0 | AB28: 0 | AF28: 0 | AJ28: 10 | AL28: 0 | AN28: 0 | AT28: 0 | AV28: 0
C29: 18 | O29: days | P29: @ | S29: x | W29: 0 | AB29: 0 | AF29: 0 | AJ29: 10 | AL29: 0 | AN29: 0 | AT29: 0 | AV29: 0
C30: 19 | O30: days | P30: @ | S30: x | W30: 0 | AB30: 0 | AF30: 0 | AJ30: 10 | AL30: 0 | AN30: 0 | AT30: 0 | AV30: 0
C31: 20 | O31: days | P31: @ | S31: x | W31: 0 | AB31: 0 | AF31: 0 | AJ31: 10 | AL31: 0 | AN31: 0 | AT31: 0 | AV31: 0
C32: 21 | O32: days | P32: @ | S32: x | W32: 0 | AB32: 0 | AF32: 0 | AJ32: 10 | AL32: 0 | AN32: 0 | AT32: 0 | AV32: 0
C33: 22 | O33: days | P33: @ | S33: x | W33: 0 | AB33: 0 | AF33: 0 | AJ33: 8 | AL33: 0 | AN33: 0 | AT33: 0 | AV33: 0
C34: 23 | O34: days | P34: @ | S34: x | W34: 0 | AB34: 0 | AF34: 0 | AJ34: 8 | AL34: 0 | AN34: 0 | AT34: 0 | AV34: 0
C35: 24 | O35: days | P35: @ | S35: x | W35: 0 | AB35: 0 | AF35: 0 | AJ35: 8 | AL35: 0 | AN35: 0 | AT35: 0 | AV35: 0
C36: 25 | O36: days | P36: @ | S36: x | W36: 0 | AB36: 0 | AF36: 0 | AJ36: 8 | AL36: 0 | AN36: 0 | AT36: 0 | AV36: 0
C37: 26 | O37: days | P37: @ | S37: x | W37: 0 | AB37: 0 | AF37: 0 | AJ37: 8 | AL37: 0 | AN37: 0 | AT37: 0 | AV37: 0
C38: 27 | O38: days | P38: @ | S38: x | W38: 0 | AB38: 0 | AF38: 0 | AJ38: 10 | AL38: 0 | AN38: 0 | AT38: 0 | AV38: 0
C39: 28 | O39: days | P39: @ | S39: x | W39: 0 | AB39: 0 | AF39: 0 | AJ39: 10 | AL39: 0 | AN39: 0 | AT39: 0 | AV39: 0
C40: 29 | O40: days | P40: @ | S40: x | W40: 0 | AB40: 0 | AF40: 0 | AJ40: 10 | AL40: 0 | AN40: 0 | AT40: 0 | AV40: 0
C41: 30 | O41: days | P41: @ | S41: x | W41: 0 | AB41: 0 | AF41: 0 | AJ41: 10 | AL41: 0 | AN41: 0 | AT41: 0 | AV41: 0
C42: 31 | O42: days | P42: @ | S42: x | W42: 0 | AB42: 0 | AF42: 0 | AJ42: 10 | AL42: 0 | AN42: 0 | AT42: 0 | AV42: 0
C43: 32 | O43: days | P43: @ | S43: x | W43: 0 | AB43: 0 | AF43: 0 | AJ43: 10 | AL43: 0 | AN43: 0 | AT43: =AL43*ThisSheetState -> 0 | AV43: =(AJ43-ThisSheetState)*AN43 -> 0
C44: 33 | O44: days | P44: @ | S44: x | W44: 0 | AB44: 0 | AF44: 0 | AJ44: 10 | AL44: 0 | AN44: 0 | AT44: 0 | AV44: 0
C45: 34 | O45: days | P45: @ | S45: x | W45: 0 | AB45: 0 | AF45: 0 | AJ45: 10 | AL45: 0 | AN45: 0 | AT45: 0 | AV45: 0
C46: 35 | O46: days | P46: @ | S46: x | W46: 0 | AB46: 0 | AF46: 0 | AJ46: 10 | AL46: 0 | AN46: 0 | AT46: 0 | AV46: 0
C47: 36 | O47: days | P47: @ | S47: x | W47: 0 | AB47: 0 | AF47: 0 | AJ47: 10 | AL47: 0 | AN47: 0 | AT47: 0 | AV47: 0
C48: 37 | O48: days | P48: @ | S48: x | W48: 0 | AB48: 0 | AF48: 0 | AJ48: 10 | AL48: 0 | AN48: 0 | AT48: 0 | AV48: 0
C49: 38 | O49: days | P49: @ | S49: x | W49: 0 | AB49: 0 | AF49: 0 | AJ49: 10 | AL49: 0 | AN49: 0 | AT49: 0 | AV49: 0
C50: 39 | O50: days | P50: @ | S50: x | W50: 0 | AB50: 0 | AF50: 0 | AJ50: 10 | AL50: 0 | AN50: 0 | AT50: 0 | AV50: 0
C51: 40 | O51: days | P51: @ | S51: x | W51: 0 | AB51: 0 | AF51: 0 | AJ51: 10 | AL51: 0 | AN51: 0 | AT51: 0 | AV51: 0
C52: 41 | O52: days | P52: @ | S52: x | W52: 0 | AB52: 0 | AF52: 0 | AJ52: 10 | AL52: 0 | AN52: 0 | AT52: 0 | AV52: 0
C53: 42 | O53: days | P53: @ | S53: x | W53: 0 | AB53: 0 | AF53: 0 | AJ53: 10 | AL53: 0 | AN53: 0 | AT53: 0 | AV53: 0
C54: 43 | O54: days | P54: @ | S54: x | W54: 0 | AB54: 0 | AF54: 0 | AJ54: 10 | AL54: 0 | AN54: 0 | AT54: 0 | AV54: 0
C55: 44 | O55: days | P55: @ | S55: x | W55: 0 | AB55: 0 | AF55: 0 | AJ55: 10 | AL55: 0 | AN55: 0 | AT55: 0 | AV55: 0
C56: 45 | O56: days | P56: @ | S56: x | W56: 0 | AB56: 0 | AF56: 0 | AJ56: 10 | AL56: 0 | AN56: 0 | AT56: 0 | AV56: 0
C57: 46 | O57: days | P57: @ | S57: x | W57: 0 | AB57: 0 | AF57: 0 | AJ57: 10 | AL57: 0 | AN57: 0 | AT57: 0 | AV57: 0
C58: 47 | O58: days | P58: @ | S58: x | W58: 0 | AB58: 0 | AF58: 0 | AJ58: 10 | AL58: 0 | AN58: 0 | AT58: 0 | AV58: 0
C59: 48 | O59: days | P59: @ | S59: x | W59: 0 | AB59: 0 | AF59: 0 | AJ59: 10 | AL59: 0 | AN59: 0 | AT59: 0 | AV59: 0
C60: 49 | O60: days | P60: @ | S60: x | W60: 0 | AB60: 0 | AF60: 0 | AJ60: 10 | AL60: 0 | AN60: 0 | AT60: 0 | AV60: 0
O61: ="Sub Total "&P_TITLE -> Sub Total Labor | W61: =SUM(W11:Z60) -> 0 | AB61: =SUM(AB11:AD60) -> 0 | AF61: =AB61-W61 -> 0
O62: ="Fringes "&P_TITLE -> Fringes Labor | W62: =IFERROR(W61*AP11,0) -> 0 | AB62: 0 | AF62: =AB62-W62 -> 0
O63: ="Total "&P_TITLE -> Total Labor | W63: =W62+W61 -> 0 | AB63: =SUM(AB61:AD62) -> 0 | AF63: 0

Sheet Talent_Template (hidden)
DD1: Talent
C8: P1a. | D8: Talent | AJ8: Payroll OT Calculator | AR8: Day Rate to State Law
E9: Description | N9: Days | Q9: Rate | T9: QTY | U9: Overtime | W9: Estimate | AB9: Actual | AF9: Variance | AJ9: Base | AL9: Hourly | AN9: State OT | AP9: Fringes | AR9: State | AT9: State Day | AV9: State Day
U10: 1.5 | V10: 2 | AJ10: Hours | AL10: Rate | AN10: Rate | AP10: Rate | AR10: Basis | AT10: Strt Total | AV10: OT Total
C11: 0 | E11: O/C Principals | N11: 1 | O11: days | P11: @ | Q11: 1000 | S11: x | U11: 1 | V11: 1 | W11: =IF(ISNUMBER(N11),(N11*Q11*IF(ISNUMBER(T11),T11,1)+(IFERROR(U11*(Q11/AJ11)*1.5,0))+(IFERROR(V11*(Q11/AJ11)*2,0))),0) -> 1350 | AB11: 0 | AF11: =AB11-W11 -> -1350 | AJ11: 10 | AL11: =IFERROR(Q11/(AJ11+((AJ11-HourlyState_M)*0.5)),0) -> 66.66666667 | AN11: =AL11*1.5 -> 100 | AP11: 0 | AR11: 8 | AT11: =AL11*ThisSheetState -> 533.3333333 | AV11: =(AJ11-ThisSheetState)*AN11 -> 200
C12: =C11+1 -> 1 | E12: O/C Principals | O12: days | P12: @ | S12: x | W12: =IF(ISNUMBER(N12),(N12*Q12*IF(ISNUMBER(T12),T12,1)+(IFERROR(U12*(Q12/AJ12)*1.5,0))+(IFERROR(V12*(Q12/AJ12)*2,0))),0) -> 0 | AB12: 0 | AF12: 0 | AJ12: 10 | AL12: 0 | AN12: =AL12*1.5 -> 0 | AT12: =AL12*ThisSheetState -> 0 | AV12: =(AJ12-ThisSheetState)*AN12 -> 0
C13: =C12+1 -> 2 | E13: O/C Principals | N13: 1 | O13: days | P13: @ | Q13: 1000 | S13: x | U13: 1 | W13: 1150 | AB13: 0 | AF13: -1150 | AJ13: 10 | AL13: =IFERROR(Q13/(AJ13+((AJ13-HourlyState_M)*0.5)),0) -> 66.66666667 | AN13: 100 | AT13: 533.3333333 | AV13: 200
C14: 3 | E14: O/C Principals | O14: days | P14: @ | S14: x | W14: 0 | AB14: 0 | AF14: 0 | AJ14: 10 | AL14: 0 | AN14: 0 | AT14: 0 | AV14: 0
C15: 4 | E15: O/C Principals | O15: days | P15: @ | S15: x | W15: 0 | AB15: 0 | AF15: 0 | AJ15: 10 | AL15: 0 | AN15: 0 | AT15: 0 | AV15: 0
C16: 5 | E16: O/C Principals | O16: days | P16: @ | S16: x | W16: 0 | AB16: 0 | AF16: 0 | AJ16: 10 | AL16: 0 | AN16: 0 | AT16: 0 | AV16: 0
C17: 6 | E17: O/C Principals | O17: days | P17: @ | S17: x | W17: 0 | AB17: 0 | AF17: 0 | AJ17: 10 | AL17: 0 | AN17: 0 | AT17: 0 | AV17: 0
C18: =C17+1 -> 7 | O18: days | P18: @ | S18: x | W18: 0 | AB18: 0 | AF18: 0 | AJ18: 10 | AL18: 0 | AN18: 0 | AT18: 0 | AV18: 0
C19: 8 | E19: Office Extras | O19: days | P19: @ | S19: x | W19: 0 | AB19: 0 | AF19: 0 | AJ19: 10 | AL19: 0 | AN19: 0 | AT19: 0 | AV19: 0
C20: 9 | O20: days | P20: @ | S20: x | W20: 0 | AB20: 0 | AF20: 0 | AJ20: 10 | AL20: 0 | AN20: 0 | AT20: 0 | AV20: 0
C21: 10 | E21: Crowd Extras | O21: days | P21: @ | S21: x | W21: 0 | AB21: 0 | AF21: 0 | AJ21: 10 | AL21: 0 | AN21: 0 | AT21: 0 | AV21: 0
C22: 11 | E22: General Extras | O22: days | P22: @ | S22: x | W22: 0 | AB22: 0 | AF22: 0 | AJ22: 10 | AL22: 0 | AN22: 0 | AT22: 0 | AV22: 0
C23: 12 | E23: General Extras | O23: days | P23: @ | S23: x | W23: 0 | AB23: 0 | AF23: 0 | AJ23: 10 | AL23: 0 | AN23: 0 | AT23: 0 | AV23: 0
C24: 13 | E24: General Extras | O24: days | P24: @ | S24: x | W24: 0 | AB24: 0 | AF24: 0 | AJ24: 10 | AL24: 0 | AN24: 0 | AT24: 0 | AV24: 0
C25: 14 | O25: days | P25: @ | S25: x | W25: 0 | AB25: 0 | AF25: 0 | AJ25: 10 | AL25: 0 | AN25: 0 | AT25: 0 | AV25: 0
C26: 15 | O26: days | P26: @ | S26: x | W26: 0 | AB26: 0 | AF26: 0 | AJ26: 10 | AL26: 0 | AN26: 0 | AT26: 0 | AV26: 0
C27: 16 | O27: days | P27: @ | S27: x | W27: 0 | AB27: 0 | AF27: 0 | AJ27: 10 | AL27: 0 | AN27: 0 | AT27: 0 | AV27: 0
C28: 17 | E28: Hand Models | O28: days | P28: @ | S28: x | W28: 0 | AB28: 0 | AF28: 0 | AJ28: 10 | AL28: 0 | AN28: 0 | AT28: 0 | AV28: 0
C29: 18 | O29: days | P29: @ | S29: x | W29: 0 | AB29: 0 | AF29: 0 | AJ29: 10 | AL29: 0 | AN29: 0 | AT29: 0 | AV29: 0
C30: 19 | O30: days | P30: @ | S30: x | W30: 0 | AB30: 0 | AF30: 0 | AJ30: 10 | AL30: 0 | AN30: 0 | AT30: 0 | AV30: 0
C31: 20 | E31: Voice Over | O31: days | P31: @ | S31: x | W31: 0 | AB31: 0 | AF31: 0 | AJ31: 10 | AL31: 0 | AN31: 0 | AT31: 0 | AV31: 0
C32: 21 | E32: Fitting Fees | O32: days | P32: @ | S32: x | W32: 0 | AB32: 0 | AF32: 0 | AJ32: 10 | AL32: 0 | AN32: 0 | AT32: 0 | AV32: 0
C33: 22 | E33: Fitting Fees | O33: days | P33: @ | S33: x | W33: 0 | AB33: 0 | AF33: 0 | AJ33: 10 | AL33: 0 | AN33: 0 | AT33: 0 | AV33: 0
C34: 23 | O34: days | P34: @ | S34: x | W34: 0 | AB34: 0 | AF34: 0 | AJ34: 10 | AL34: 0 | AN34: =AL34*1.5 -> 0 | AT34: 0 | AV34: 0
C35: 24 | E35: Audition Fees | O35: days | P35: @ | S35: x | W35: 0 | AB35: 0 | AF35: 0 | AJ35: 10 | AL35: 0 | AN35: =AL35*1.5 -> 0 | AT35: 0 | AV35: 0
C36: 25 | E36: Audition Fees | O36: days | P36: @ | S36: x | W36: 0 | AB36: 0 | AF36: 0 | AJ36: 10 | AL36: 0 | AN36: =AL36*1.5 -> 0 | AT36: 0 | AV36: 0
C37: 26 | N37: 1 | O37: days | P37: @ | Q37: 1000 | S37: x | T37: 1 | U37: 1 | V37: 1 | W37: 1350 | AB37: 0 | AF37: -1350 | AJ37: 10 | AL37: 66.66666667 | AN37: =AL37*1.5 -> 100 | AT37: 533.3333333 | AV37: 200
C38: 27 | O38: days | P38: @ | S38: x | W38: 0 | AB38: 0 | AF38: 0 | AJ38: 10 | AL38: 0 | AN38: =AL38*1.5 -> 0 | AT38: 0 | AV38: 0
O39: ="Sub Total "&P_TITLE -> Sub Total Talent | W39: =SUM(W11:Z38) -> 3850 | AB39: =SUM(AB11:AD38) -> 0 | AF39: -3850
O40: ="Fringes "&P_TITLE -> Fringes Talent | W40: =W39*thisSheetFringes -> 0 | AB40: 0 | AF40: 0
E42: Additional Talent Costs | X42: Estimate | AB42: Actual | AF42: Variance | AJ42: Talent Agency & Payroll
C43: =C38+1 -> 28 | E43: Talent Agency Fees | P43: % | W43: =W39*N43*0.01 -> 0 | AB43: 0 | AF43: =AB43-W43 -> 0 | AJ43: Agency Fees | AM43: Payroll Svc.
C44: =C43+1 -> 29 | E44: Talent Payroll Service | P44: % | W44: =W39*N44*0.01 -> 0 | AB44: 0 | AF44: 0 | AJ44: 0 | AM44: 0
C45: =C44+1 -> 30 | E45: Talent Wardrobe Allowance | O45: each | P45: @ | S45: x | W45: =N45*Q45*(IF(ISNUMBER(T45),T45,IF(ISNUMBER(N45),1,0))) -> 0 | AB45: 0 | AF45: 0
C46: 31 | O46: each | P46: @ | S46: x | W46: =N46*Q46*(IF(ISNUMBER(T46),T46,IF(ISNUMBER(N46),1,0))) -> 0 | AB46: 0 | AF46: 0 | AJ46: Handling Fees
C47: 32 | O47: each | P47: @ | S47: x | W47: =N47*Q47*(IF(ISNUMBER(T47),T47,IF(ISNUMBER(N47),1,0))) -> 0 | AB47: 0 | AF47: 0 | AJ47: =C8 -> P1a. | AM47: =C51 -> P1b.
O48: ="Handling Fee "&P_TITLE -> Handling Fee Talent | W48: =(SUM(W43:Z47)+(W39+W40))*AJ48 -> 0 | AB48: =W48 -> 0 | AF48: 0 | AJ48: 0 | AM48: 0
O49: ="Total "&P_TITLE -> Total Talent | W49: =W48+W40+W39+SUM(W43:Z47) -> 3850 | AB49: =AB48+AB40+AB39+SUM(AB43:AD47) -> 0 | AF49: -3850
C51: P1b. | D51: =P_TITLE&" Expenses" -> Talent Expenses
E52: Description | N52: QTY | Q52: Rate | T52: Days | X52: Estimate | AB52: Actual | AF52: Variance
C53: =C47+1 -> 33 | E53: Talent Air Fares | O53: each | P53: @ | S53: x | W53: =N53*Q53*(IF(ISNUMBER(T53),T53,IF(ISNUMBER(N53),1,0))) -> 0 | AB53: 0 | AF53: =AB53-W53 -> 0
C54: =C53+1 -> 34 | E54: Talent Per Diem | O54: each | P54: @ | S54: x | W54: 0 | AB54: 0 | AF54: 0
C55: 35 | E55: Talent Gd Transportation | O55: each | P55: @ | S55: x | W55: 0 | AB55: 0 | AF55: 0
C56: 36 | O56: each | P56: @ | S56: x | W56: 0 | AB56: 0 | AF56: 0
C57: 37 | O57: each | P57: @ | S57: x | W57: 0 | AB57: 0 | AF57: 0
C58: 38 | O58: each | P58: @ | S58: x | W58: 0 | AB58: 0 | AF58: 0
O59: ="Sub Total "&D51 -> Sub Total Talent Expenses | W59: =SUM(W53:Z58) -> 0 | AB59: =SUM(AB53:AD58) -> 0 | AF59: 0
O60: ="Handling Fee "&D51 -> Handling Fee Talent Expenses | W60: =W59*AM48 -> 0 | AB60: =W60 -> 0 | AF60: 0
O61: ="Total "&D51 -> Total Talent Expenses | W61: =W59+W60 -> 0 | AB61: =SUM(AB59:AD60) -> 0 | AF61: 0
O63: Total P1 | W63: =W61+W49 -> 3850 | AB63: =AB61+AB49 -> 0 | AF63: =AB63-P_TOT -> -3850

Sheet Blank_Template (hidden)
DD1: Blank
C8: P1. | D8: Blank
W9: Estimate | AB9: Actual | AF9: Variance
C10: 0 | AB10: 0 | AF10: =AB10-W10 -> 0
C11: =C10+1 -> 1 | AB11: 0 | AF11: =AB11-W11 -> 0
C12: =C11+1 -> 2 | AB12: 0 | AF12: 0
C13: 3 | AB13: 0 | AF13: 0
C14: 4 | AB14: 0 | AF14: 0
C15: 5 | AB15: 0 | AF15: 0
C16: 6 | AB16: 0 | AF16: 0
C17: 7 | AB17: 0 | AF17: 0
C18: 8 | AB18: 0 | AF18: 0
C19: 9 | AB19: 0 | AF19: 0
C20: 10 | AB20: 0 | AF20: 0
C21: 11 | AB21: 0 | AF21: 0
C22: 12 | AB22: 0 | AF22: 0
C23: =C22+1 -> 13 | AB23: 0 | AF23: 0
C24: 14 | AB24: 0 | AF24: 0
C25: 15 | AB25: 0 | AF25: 0
C26: 16 | AB26: 0 | AF26: 0
C27: 17 | AB27: 0 | AF27: 0
C28: 18 | AB28: 0 | AF28: 0
C29: 19 | AB29: 0 | AF29: 0
C30: 20 | AB30: 0 | AF30: 0
C31: 21 | AB31: 0 | AF31: 0
C32: 22 | AB32: 0 | AF32: 0
C33: 23 | AB33: 0 | AF33: 0
C34: 24 | AB34: 0 | AF34: 0
C35: 25 | AB35: 0 | AF35: 0
C36: 26 | AB36: 0 | AF36: 0
C37: 27 | AB37: 0 | AF37: 0
C38: 28 | AB38: 0 | AF38: 0
C39: 29 | AB39: 0 | AF39: 0
C40: 30 | AB40: 0 | AF40: 0
C41: 31 | AB41: 0 | AF41: 0
C42: 32 | AB42: 0 | AF42: 0
C43: 33 | AB43: 0 | AF43: 0
C44: 34 | AB44: 0 | AF44: 0
C45: 35 | AB45: 0 | AF45: 0
C46: 36 | AB46: 0 | AF46: 0
C47: 37 | AB47: 0 | AF47: 0
C48: 38 | AB48: 0 | AF48: 0
C49: 39 | AB49: 0 | AF49: 0
C50: 40 | AB50: 0 | AF50: 0
C51: 41 | AB51: 0 | AF51: 0
C52: 42 | AB52: 0 | AF52: 0
C53: 43 | AB53: 0 | AF53: 0
C54: 44 | AB54: 0 | AF54: 0
C55: 45 | AB55: 0 | AF55: 0
C56: 46 | AB56: 0 | AF56: 0
C57: 47 | AB57: 0 | AF57: 0
C58: 48 | AB58: 0 | AF58: 0
C59: 49 | AB59: 0 | AF59: 0
C60: 50 | AB60: 0 | AF60: 0
C61: 51 | AB61: 0 | AF61: 0
C62: 52 | AB62: 0 | AF62: 0
C63: 53 | AB63: 0 | AF63: 0
C64: 54 | AB64: 0 | AF64: 0
C65: 55 | AB65: 0 | AF65: 0
C66: 56 | AB66: 0 | AF66: 0
C67: 57 | AB67: 0 | AF67: 0
C68: 58 | AB68: 0 | AF68: 0
C69: 59 | AB69: 0 | AF69: 0
O70: ="Sub Total "&D8 -> Sub Total Blank | W70: =SUM(W10:Z69) -> 0 | AB70: =SUM(AB10:AD69) -> 0 | AF70: 0
O71: ="Handling "&D8 -> Handling Blank | W71: =W70*AR71 -> 0 | AB71: =W71 -> 0 | AF71: 0 | AJ71: ="Handling "&D8 -> Handling Blank | AR71: 0
O72: ="Total "&D8 -> Total Blank | W72: =SUM(W70:Z71) -> 0 | AB72: =SUM(AB70:AD71) -> 0 | AF72: 0

Sheet AICP (hidden)
A1: Line No | B1: Line Title | C1: Units | D1: Unit Type | E1: Rate | F1: QTY | G1: Estimate | H1: A | I1: =IF(_xlfn.NUMBERVALUE(K1,".",",")>0,Q1,"") ->  | J1: First P | K1: =INDIRECT("Cover!Z"&(Q1+ROW()-1)) -> 0 | M1: Total | N1: =TotalProdPost -> 0 | P1: First P | Q1: =ROW(OTop)+1 -> 52 | R1: Last P | S1: =ROW(OBottom)-1 -> 55
A2: =A!C13 -> 1 | B2: =A!E13 -> Line Producer | C2: =A!N13 -> 0 | D2: =A!O13 -> days | E2: =A!Q13 -> 200 | F2: =A!T13 -> 0 | G2: =A!W13 -> 0 | H2: A | I2: =IF(_xlfn.NUMBERVALUE(K2,".",",")>0,MAX(I$1:I1)+1,"") ->  | K2: =IF(S$1>Q$1,INDIRECT("Cover!Z"&ROW()+(Q$1-1)),"") -> 0 | L2: =INDIRECT("Cover!Z53") -> 0 | M2: Insurance | N2: =ProdIns -> 0 | R2: =S1-Q1 -> 3
A3: =A!C14 -> 2 | B3: =A!E14 -> Assistant Director | C3: =A!N14 -> 0 | D3: =A!O14 -> days | E3: =A!Q14 -> 0 | F3: =A!T14 -> 0 | G3: =A!W14 -> 0 | H3: A | I3: =IF(_xlfn.NUMBERVALUE(K3,".",",")>0,MAX(I$1:I2)+1,"") ->  | K3: =IF(S$1>Q$1,INDIRECT("Cover!Z"&ROW()+(Q$1-1)),"") -> 0 | M3: Prod Fee | N3: =PRODFee -> 0
A4: =A!C15 -> 3 | B4: =A!E15 -> Director of Photography | C4: =A!N15 -> 0 | D4: =A!O15 -> days | E4: =A!Q15 -> 0 | F4: =A!T15 -> 0 | G4: =A!W15 -> 0 | H4: A | I4: =IF(_xlfn.NUMBERVALUE(K4,".",",")>0,MAX(I$1:I3)+1,"") ->  | K4: =IF(S$1>Q$1,INDIRECT("Cover!Z"&ROW()+(Q$1-1)),"") -> 0 | M4: XProdFee | N4: =XProdFee -> 0
A5: =A!C16 -> 4 | B5: =A!E16 -> 1st Assistant Camera | C5: =A!N16 -> 0 | D5: =A!O16 -> days | E5: =A!Q16 -> 0 | F5: =A!T16 -> 0 | G5: =A!W16 -> 0 | H5: A | I5: =IF(_xlfn.NUMBERVALUE(K5,".",",")>0,MAX(I$1:I4)+1,"") ->  | K5: =IF(S$1>Q$1,INDIRECT("Cover!Z"&ROW()+(Q$1-1)),"") -> 0 | M5: PostProdIns | N5: =PostProdIns -> 0
A6: =A!C17 -> 5 | B6: =A!E17 -> 2nd Assistant Camera | C6: =A!N17 -> 0 | D6: =A!O17 -> days | E6: =A!Q17 -> 0 | F6: =A!T17 -> 0 | G6: =A!W17 -> 0 | H6: A | M6: PostProdMU | N6: =PostProdMU -> 0
A7: =A!C18 -> 6 | B7: =A!E18 -> DIT | C7: =A!N18 -> 0 | D7: =A!O18 -> days | E7: =A!Q18 -> 0 | F7: =A!T18 -> 0 | G7: =A!W18 -> 0 | H7: A | M7: PostProdTax | N7: =PostProdTax -> 0
A8: =A!C19 -> 7 | B8: =A!E19 -> Prop Master | C8: =A!N19 -> 0 | D8: =A!O19 -> days | E8: =A!Q19 -> 0 | F8: =A!T19 -> 0 | G8: =A!W19 -> 0 | H8: A
A9: =A!C20 -> 8 | B9: =A!E20 -> Asst Props | C9: =A!N20 -> 0 | D9: =A!O20 -> days | E9: =A!Q20 -> 0 | F9: =A!T20 -> 0 | G9: =A!W20 -> 0 | H9: A
A10: =A!C21 -> 9 | B10: =A!E21 -> 0 | C10: =A!N21 -> 0 | D10: =A!O21 -> days | E10: =A!Q21 -> 0 | F10: =A!T21 -> 0 | G10: =A!W21 -> 0 | H10: A | J10: First P | K10: 0
A11: =A!C22 -> 10 | B11: =A!E22 -> Camera Op | C11: =A!N22 -> 0 | D11: =A!O22 -> days | E11: =A!Q22 -> 0 | F11: =A!T22 -> 0 | G11: =A!W22 -> 0 | H11: A | K11: 0
A12: =A!C23 -> 11 | B12: =A!E23 -> Gaffer | C12: =A!N23 -> 0 | D12: =A!O23 -> days | E12: =A!Q23 -> 0 | F12: =A!T23 -> 0 | G12: =A!W23 -> 0 | H12: A | K12: 0
A13: =A!C24 -> 12 | B13: =A!E24 -> Best Boy Electric | C13: =A!N24 -> 0 | D13: =A!O24 -> days | E13: =A!Q24 -> 0 | F13: =A!T24 -> 0 | G13: =A!W24 -> 0 | H13: A | K13: 0
A14: =A!C25 -> 13 | B14: =A!E25 -> 3rd Electric | C14: =A!N25 -> 0 | D14: =A!O25 -> days | E14: =A!Q25 -> 0 | F14: =A!T25 -> 0 | G14: =A!W25 -> 0 | H14: A | K14: 0
A15: =A!C26 -> 14 | B15: =A!E26 -> Electric/Driver | C15: =A!N26 -> 0 | D15: =A!O26 -> days | E15: =A!Q26 -> 0 | F15: =A!T26 -> 0 | G15: =A!W26 -> 0 | H15: A
A16: =A!C27 -> 15 | B16: =A!E27 -> Prep/Strike/Pre Rig Crew | C16: =A!N27 -> 0 | D16: =A!O27 -> days | E16: =A!Q27 -> 0 | F16: =A!T27 -> 0 | G16: =A!W27 -> 0 | H16: A
A17: =A!C28 -> 16 | B17: =A!E28 -> Key Grip | C17: =A!N28 -> 0 | D17: =A!O28 -> days | E17: =A!Q28 -> 0 | F17: =A!T28 -> 0 | G17: =A!W28 -> 0 | H17: A
A18: =A!C29 -> 17 | B18: =A!E29 -> Best Boy Grip | C18: =A!N29 -> 0 | D18: =A!O29 -> days | E18: =A!Q29 -> 0 | F18: =A!T29 -> 0 | G18: =A!W29 -> 0 | H18: A
A19: =A!C30 -> 18 | B19: =A!E30 -> 3rd Grip | C19: =A!N30 -> 0 | D19: =A!O30 -> days | E19: =A!Q30 -> 0 | F19: =A!T30 -> 0 | G19: =A!W30 -> 0 | H19: A
A20: =A!C31 -> 19 | B20: =A!E31 -> Grip/Driver | C20: =A!N31 -> 0 | D20: =A!O31 -> days | E20: =A!Q31 -> 0 | F20: =A!T31 -> 0 | G20: =A!W31 -> 0 | H20: A
A21: =A!C32 -> 20 | B21: =A!E32 -> Crane Tech 2x | C21: =A!N32 -> 0 | D21: =A!O32 -> days | E21: =A!Q32 -> 0 | F21: =A!T32 -> 0 | G21: =A!W32 -> 0 | H21: A
A22: =A!C33 -> 21 | B22: =A!E33 -> Crane Head Tech | C22: =A!N33 -> 0 | D22: =A!O33 -> days | E22: =A!Q33 -> 0 | F22: =A!T33 -> 0 | G22: =A!W33 -> 0 | H22: A
A23: =A!C34 -> 22 | B23: =A!E34 -> Steadi Cam Op | C23: =A!N34 -> 0 | D23: =A!O34 -> days | E23: =A!Q34 -> 0 | F23: =A!T34 -> 0 | G23: =A!W34 -> 0 | H23: A
A24: =A!C35 -> 23 | B24: =A!E35 -> Choreographer | C24: =A!N35 -> 0 | D24: =A!O35 -> days | E24: =A!Q35 -> 0 | F24: =A!T35 -> 0 | G24: =A!W35 -> 0 | H24: A
A25: =A!C36 -> 24 | B25: =A!E36 -> Make-Up/Hair | C25: =A!N36 -> 0 | D25: =A!O36 -> days | E25: =A!Q36 -> 0 | F25: =A!T36 -> 0 | G25: =A!W36 -> 0 | H25: A
A26: =A!C37 -> 25 | B26: =A!E37 -> Make-Up/Hair Asst | C26: =A!N37 -> 0 | D26: =A!O37 -> days | E26: =A!Q37 -> 0 | F26: =A!T37 -> 0 | G26: =A!W37 -> 0 | H26: A
A27: =A!C38 -> 26 | B27: =A!E38 -> Wardrobe Stylist | C27: =A!N38 -> 0 | D27: =A!O38 -> days | E27: =A!Q38 -> 0 | F27: =A!T38 -> 0 | G27: =A!W38 -> 0 | H27: A
A28: =A!C39 -> 27 | B28: =A!E39 -> Asst Wardrobe | C28: =A!N39 -> 0 | D28: =A!O39 -> days | E28: =A!Q39 -> 0 | F28: =A!T39 -> 0 | G28: =A!W39 -> 0 | H28: A
A29: =A!C40 -> 28 | B29: =A!E40 -> Script Supervisor | C29: =A!N40 -> 0 | D29: =A!O40 -> days | E29: =A!Q40 -> 0 | F29: =A!T40 -> 0 | G29: =A!W40 -> 0 | H29: A
A30: =A!C41 -> 29 | B30: =A!E41 -> Boom Operator | C30: =A!N41 -> 0 | D30: =A!O41 -> days | E30: =A!Q41 -> 0 | F30: =A!T41 -> 0 | G30: =A!W41 -> 0 | H30: A
A31: =A!C42 -> 30 | B31: =A!E42 -> Sound Mixer | C31: =A!N42 -> 0 | D31: =A!O42 -> days | E31: =A!Q42 -> 0 | F31: =A!T42 -> 0 | G31: =A!W42 -> 0 | H31: A
A32: =A!C43 -> 31 | B32: =A!E43 -> VTR Operator | C32: =A!N43 -> 0 | D32: =A!O43 -> days | E32: =A!Q43 -> 0 | F32: =A!T43 -> 0 | G32: =A!W43 -> 0 | H32: A
A33: =A!C44 -> 32 | B33: =A!E44 -> Stunt Coordinator | C33: =A!N44 -> 0 | D33: =A!O44 -> days | E33: =A!Q44 -> 0 | F33: =A!T44 -> 0 | G33: =A!W44 -> 0 | H33: A
A34: =A!C45 -> 33 | B34: =A!E45 -> Safety Officer | C34: =A!N45 -> 0 | D34: =A!O45 -> days | E34: =A!Q45 -> 0 | F34: =A!T45 -> 0 | G34: =A!W45 -> 0 | H34: A
A35: =A!C46 -> 34 | B35: =A!E46 -> Site Rep | C35: =A!N46 -> 0 | D35: =A!O46 -> days | E35: =A!Q46 -> 0 | F35: =A!T46 -> 0 | G35: =A!W46 -> 0 | H35: A
A36: =A!C47 -> 35 | B36: =A!E47 -> Storyboard Artist | C36: =A!N47 -> 0 | D36: =A!O47 -> days | E36: =A!Q47 -> 0 | F36: =A!T47 -> 0 | G36: =A!W47 -> 0 | H36: A
A37: =A!C48 -> 36 | B37: =A!E48 -> Catering Crew | C37: =A!N48 -> 0 | D37: =A!O48 -> days | E37: =A!Q48 -> 0 | F37: =A!T48 -> 0 | G37: =A!W48 -> 0 | H37: A
A38: =A!C49 -> 37 | B38: =A!E49 -> Location Scout | C38: =A!N49 -> 0 | D38: =A!O49 -> days | E38: =A!Q49 -> 0 | F38: =A!T49 -> 0 | G38: =A!W49 -> 0 | H38: A
A39: =A!C50 -> 38 | B39: =A!E50 -> Compliance Assistant | C39: =A!N50 -> 0 | D39: =A!O50 -> days | E39: =A!Q50 -> 0 | F39: =A!T50 -> 0 | G39: =A!W50 -> 0 | H39: A
A40: =A!C51 -> 39 | B40: =A!E51 -> 2nd AD | C40: =A!N51 -> 0 | D40: =A!O51 -> days | E40: =A!Q51 -> 0 | F40: =A!T51 -> 0 | G40: =A!W51 -> 0 | H40: A
A41: =A!C52 -> 40 | B41: =A!E52 -> Medic | C41: =A!N52 -> 0 | D41: =A!O52 -> days | E41: =A!Q52 -> 450 | F41: =A!T52 -> 0 | G41: =A!W52 -> 0 | H41: A
A42: =A!C53 -> 41 | B42: =A!E53 -> Craft Service | C42: =A!N53 -> 0 | D42: =A!O53 -> days | E42: =A!Q53 -> 0 | F42: =A!T53 -> 0 | G42: =A!W53 -> 0 | H42: A
A43: =A!C54 -> 42 | B43: =A!E54 -> Firefighter | C43: =A!N54 -> 0 | D43: =A!O54 -> days | E43: =A!Q54 -> 0 | F43: =A!T54 -> 0 | G43: =A!W54 -> 0 | H43: A
A44: =A!C55 -> 43 | B44: =A!E55 -> Police Officers/Ranger/CHP | C44: =A!N55 -> 0 | D44: =A!O55 -> days | E44: =A!Q55 -> 0 | F44: =A!T55 -> 0 | G44: =A!W55 -> 0 | H44: A
A45: =A!C56 -> 44 | B45: =A!E56 -> Welfare/Teacher | C45: =A!N56 -> 0 | D45: =A!O56 -> days | E45: =A!Q56 -> 0 | F45: =A!T56 -> 0 | G45: =A!W56 -> 0 | H45: A
A46: =A!C57 -> 45 | B46: =A!E57 -> Gang Boss | C46: =A!N57 -> 0 | D46: =A!O57 -> days | E46: =A!Q57 -> 0 | F46: =A!T57 -> 0 | G46: =A!W57 -> 0 | H46: A
A47: =A!C58 -> 46 | B47: =A!E58 -> Teamster Drivers / Animal Wranglers | C47: =A!N58 -> 0 | D47: =A!O58 -> days | E47: =A!Q58 -> 0 | F47: =A!T58 -> 0 | G47: =A!W58 -> 0 | H47: A
A48: =A!C59 -> 47 | B48: =A!E59 -> Production Supervisor | C48: =A!N59 -> 0 | D48: =A!O59 -> days | E48: =A!Q59 -> 0 | F48: =A!T59 -> 0 | G48: =A!W59 -> 0 | H48: A
A49: =A!C60 -> 48 | B49: =A!E60 -> Assistant Production Supervisor | C49: =A!N60 -> 0 | D49: =A!O60 -> days | E49: =A!Q60 -> 0 | F49: =A!T60 -> 0 | G49: =A!W60 -> 0 | H49: A
A50: =A!C61 -> 49 | B50: =A!E61 -> Production Assistant | C50: =A!N61 -> 0 | D50: =A!O61 -> days | E50: =A!Q61 -> 0 | F50: =A!T61 -> 0 | G50: =A!W61 -> 0 | H50: A
A51: =A!C62 -> 50 | B51: =A!E62 -> Production Assistant | C51: =A!N62 -> 0 | D51: =A!O62 -> days | E51: =A!Q62 -> 0 | F51: =A!T62 -> 0 | G51: =A!W62 -> 0 | H51: A
F52: =A!O63 -> Sub Total A | G52: =A!W63 -> 0 | H52: A
F53: =A!O64 -> Fringes | G53: =A!W64 -> 0 | H53: A
F54: =A!O65 -> Total | G54: =A!W65 -> 0 | H54: A
A55: Line No | B55: Line Title | C55: Units | D55: Unit Type | E55: Rate | F55: QTY | G55: Estimate | H55: B
A56: =B!C13 -> 51 | B56: =B!E13 -> Line Producer | C56: =B!N13 -> 0 | D56: =B!O13 -> days | E56: =B!Q13 -> 200 | F56: =B!T13 -> 0 | G56: =B!W13 -> 0 | H56: B
A57: =B!C14 -> 52 | B57: =B!E14 -> Assistant Director | C57: =B!N14 -> 0 | D57: =B!O14 -> days | E57: =B!Q14 -> 0 | F57: =B!T14 -> 0 | G57: =B!W14 -> 0 | H57: B
A58: =B!C15 -> 53 | B58: =B!E15 -> Director of Photography | C58: =B!N15 -> 0 | D58: =B!O15 -> days | E58: =B!Q15 -> 0 | F58: =B!T15 -> 0 | G58: =B!W15 -> 0 | H58: B
A59: =B!C16 -> 54 | B59: =B!E16 -> 1st Assistant Camera | C59: =B!N16 -> 0 | D59: =B!O16 -> days | E59: =B!Q16 -> 0 | F59: =B!T16 -> 0 | G59: =B!W16 -> 0 | H59: B
A60: =B!C17 -> 55 | B60: =B!E17 -> 2nd Assistant Camera | C60: =B!N17 -> 0 | D60: =B!O17 -> days | E60: =B!Q17 -> 0 | F60: =B!T17 -> 0 | G60: =B!W17 -> 0 | H60: B
A61: =B!C18 -> 56 | B61: =B!E18 -> DIT | C61: =B!N18 -> 0 | D61: =B!O18 -> days | E61: =B!Q18 -> 0 | F61: =B!T18 -> 0 | G61: =B!W18 -> 0 | H61: B
A62: =B!C19 -> 57 | B62: =B!E19 -> Prop Master | C62: =B!N19 -> 0 | D62: =B!O19 -> days | E62: =B!Q19 -> 0 | F62: =B!T19 -> 0 | G62: =B!W19 -> 0 | H62: B
A63: =B!C20 -> 58 | B63: =B!E20 -> Asst Props | C63: =B!N20 -> 0 | D63: =B!O20 -> days | E63: =B!Q20 -> 0 | F63: =B!T20 -> 0 | G63: =B!W20 -> 0 | H63: B
A64: =B!C21 -> 59 | B64: =B!E21 -> 0 | C64: =B!N21 -> 0 | D64: =B!O21 -> days | E64: =B!Q21 -> 0 | F64: =B!T21 -> 0 | G64: =B!W21 -> 0 | H64: B
A65: =B!C22 -> 60 | B65: =B!E22 -> Camera Op | C65: =B!N22 -> 0 | D65: =B!O22 -> days | E65: =B!Q22 -> 0 | F65: =B!T22 -> 0 | G65: =B!W22 -> 0 | H65: B
A66: =B!C23 -> 61 | B66: =B!E23 -> Gaffer | C66: =B!N23 -> 0 | D66: =B!O23 -> days | E66: =B!Q23 -> 0 | F66: =B!T23 -> 0 | G66: =B!W23 -> 0 | H66: B
A67: =B!C24 -> 62 | B67: =B!E24 -> Best Boy Electric | C67: =B!N24 -> 0 | D67: =B!O24 -> days | E67: =B!Q24 -> 0 | F67: =B!T24 -> 0 | G67: =B!W24 -> 0 | H67: B
A68: =B!C25 -> 63 | B68: =B!E25 -> 3rd Electric | C68: =B!N25 -> 0 | D68: =B!O25 -> days | E68: =B!Q25 -> 0 | F68: =B!T25 -> 0 | G68: =B!W25 -> 0 | H68: B
A69: =B!C26 -> 64 | B69: =B!E26 -> Electric/Driver | C69: =B!N26 -> 0 | D69: =B!O26 -> days | E69: =B!Q26 -> 0 | F69: =B!T26 -> 0 | G69: =B!W26 -> 0 | H69: B
A70: =B!C27 -> 65 | B70: =B!E27 -> Prep/Strike/Pre Rig Crew | C70: =B!N27 -> 0 | D70: =B!O27 -> days | E70: =B!Q27 -> 0 | F70: =B!T27 -> 0 | G70: =B!W27 -> 0 | H70: B
A71: =B!C28 -> 66 | B71: =B!E28 -> Key Grip | C71: =B!N28 -> 0 | D71: =B!O28 -> days | E71: =B!Q28 -> 0 | F71: =B!T28 -> 0 | G71: =B!W28 -> 0 | H71: B
A72: =B!C29 -> 67 | B72: =B!E29 -> Best Boy Grip | C72: =B!N29 -> 0 | D72: =B!O29 -> days | E72: =B!Q29 -> 0 | F72: =B!T29 -> 0 | G72: =B!W29 -> 0 | H72: B
A73: =B!C30 -> 68 | B73: =B!E30 -> 3rd Grip | C73: =B!N30 -> 0 | D73: =B!O30 -> days | E73: =B!Q30 -> 0 | F73: =B!T30 -> 0 | G73: =B!W30 -> 0 | H73: B
A74: =B!C31 -> 69 | B74: =B!E31 -> Grip/Driver | C74: =B!N31 -> 0 | D74: =B!O31 -> days | E74: =B!Q31 -> 0 | F74: =B!T31 -> 0 | G74: =B!W31 -> 0 | H74: B
A75: =B!C32 -> 70 | B75: =B!E32 -> Crane Tech 2x | C75: =B!N32 -> 0 | D75: =B!O32 -> days | E75: =B!Q32 -> 0 | F75: =B!T32 -> 0 | G75: =B!W32 -> 0 | H75: B
A76: =B!C33 -> 71 | B76: =B!E33 -> Crane Head Tech | C76: =B!N33 -> 0 | D76: =B!O33 -> days | E76: =B!Q33 -> 0 | F76: =B!T33 -> 0 | G76: =B!W33 -> 0 | H76: B
A77: =B!C34 -> 72 | B77: =B!E34 -> Steadi Cam Op | C77: =B!N34 -> 0 | D77: =B!O34 -> days | E77: =B!Q34 -> 0 | F77: =B!T34 -> 0 | G77: =B!W34 -> 0 | H77: B
A78: =B!C35 -> 73 | B78: =B!E35 -> Choreographer | C78: =B!N35 -> 0 | D78: =B!O35 -> days | E78: =B!Q35 -> 0 | F78: =B!T35 -> 0 | G78: =B!W35 -> 0 | H78: B
A79: =B!C36 -> 74 | B79: =B!E36 -> Make-Up/Hair | C79: =B!N36 -> 0 | D79: =B!O36 -> days | E79: =B!Q36 -> 0 | F79: =B!T36 -> 0 | G79: =B!W36 -> 0 | H79: B
A80: =B!C37 -> 75 | B80: =B!E37 -> Make-Up/Hair Asst | C80: =B!N37 -> 0 | D80: =B!O37 -> days | E80: =B!Q37 -> 0 | F80: =B!T37 -> 0 | G80: =B!W37 -> 0 | H80: B
A81: =B!C38 -> 76 | B81: =B!E38 -> Wardrobe Stylist | C81: =B!N38 -> 0 | D81: =B!O38 -> days | E81: =B!Q38 -> 0 | F81: =B!T38 -> 0 | G81: =B!W38 -> 0 | H81: B
A82: =B!C39 -> 77 | B82: =B!E39 -> Asst Wardrobe | C82: =B!N39 -> 0 | D82: =B!O39 -> days | E82: =B!Q39 -> 0 | F82: =B!T39 -> 0 | G82: =B!W39 -> 0 | H82: B
A83: =B!C40 -> 78 | B83: =B!E40 -> Script Supervisor | C83: =B!N40 -> 0 | D83: =B!O40 -> days | E83: =B!Q40 -> 0 | F83: =B!T40 -> 0 | G83: =B!W40 -> 0 | H83: B
A84: =B!C41 -> 79 | B84: =B!E41 -> Boom Operator | C84: =B!N41 -> 0 | D84: =B!O41 -> days | E84: =B!Q41 -> 0 | F84: =B!T41 -> 0 | G84: =B!W41 -> 0 | H84: B
A85: =B!C42 -> 80 | B85: =B!E42 -> Sound Mixer | C85: =B!N42 -> 0 | D85: =B!O42 -> days | E85: =B!Q42 -> 0 | F85: =B!T42 -> 0 | G85: =B!W42 -> 0 | H85: B
A86: =B!C43 -> 81 | B86: =B!E43 -> VTR Operator | C86: =B!N43 -> 0 | D86: =B!O43 -> days | E86: =B!Q43 -> 0 | F86: =B!T43 -> 0 | G86: =B!W43 -> 0 | H86: B
A87: =B!C44 -> 82 | B87: =B!E44 -> Stunt Coordinator | C87: =B!N44 -> 0 | D87: =B!O44 -> days | E87: =B!Q44 -> 0 | F87: =B!T44 -> 0 | G87: =B!W44 -> 0 | H87: B
A88: =B!C45 -> 83 | B88: =B!E45 -> Safety Officer | C88: =B!N45 -> 0 | D88: =B!O45 -> days | E88: =B!Q45 -> 0 | F88: =B!T45 -> 0 | G88: =B!W45 -> 0 | H88: B
A89: =B!C46 -> 84 | B89: =B!E46 -> Site Rep | C89: =B!N46 -> 0 | D89: =B!O46 -> days | E89: =B!Q46 -> 0 | F89: =B!T46 -> 0 | G89: =B!W46 -> 0 | H89: B
A90: =B!C47 -> 85 | B90: =B!E47 -> Storyboard Artist | C90: =B!N47 -> 0 | D90: =B!O47 -> days | E90: =B!Q47 -> 0 | F90: =B!T47 -> 0 | G90: =B!W47 -> 0 | H90: B
A91: =B!C48 -> 86 | B91: =B!E48 -> Catering Crew | C91: =B!N48 -> 0 | D91: =B!O48 -> days | E91: =B!Q48 -> 0 | F91: =B!T48 -> 0 | G91: =B!W48 -> 0 | H91: B
A92: =B!C49 -> 87 | B92: =B!E49 -> Location Manager | C92: =B!N49 -> 0 | D92: =B!O49 -> days | E92: =B!Q49 -> 0 | F92: =B!T49 -> 0 | G92: =B!W49 -> 0 | H92: B
A93: =B!C50 -> 88 | B93: =B!E50 -> Compliance Assistant | C93: =B!N50 -> 0 | D93: =B!O50 -> days | E93: =B!Q50 -> 0 | F93: =B!T50 -> 0 | G93: =B!W50 -> 0 | H93: B
A94: =B!C51 -> 89 | B94: =B!E51 -> 2nd AD | C94: =B!N51 -> 0 | D94: =B!O51 -> days | E94: =B!Q51 -> 0 | F94: =B!T51 -> 0 | G94: =B!W51 -> 0 | H94: B
A95: =B!C52 -> 90 | B95: =B!E52 -> Medic | C95: =B!N52 -> 0 | D95: =B!O52 -> days | E95: =B!Q52 -> 450 | F95: =B!T52 -> 0 | G95: =B!W52 -> 0 | H95: B
A96: =B!C53 -> 91 | B96: =B!E53 -> Craft Service | C96: =B!N53 -> 0 | D96: =B!O53 -> days | E96: =B!Q53 -> 0 | F96: =B!T53 -> 0 | G96: =B!W53 -> 0 | H96: B
A97: =B!C54 -> 92 | B97: =B!E54 -> Firefighter | C97: =B!N54 -> 0 | D97: =B!O54 -> days | E97: =B!Q54 -> 0 | F97: =B!T54 -> 0 | G97: =B!W54 -> 0 | H97: B
A98: =B!C55 -> 93 | B98: =B!E55 -> Police Officers/Ranger/CHP | C98: =B!N55 -> 0 | D98: =B!O55 -> days | E98: =B!Q55 -> 0 | F98: =B!T55 -> 0 | G98: =B!W55 -> 0 | H98: B
A99: =B!C56 -> 94 | B99: =B!E56 -> Welfare/Teacher | C99: =B!N56 -> 0 | D99: =B!O56 -> days | E99: =B!Q56 -> 0 | F99: =B!T56 -> 0 | G99: =B!W56 -> 0 | H99: B
A100: =B!C57 -> 95 | B100: =B!E57 -> Gang Boss | C100: =B!N57 -> 0 | D100: =B!O57 -> days | E100: =B!Q57 -> 0 | F100: =B!T57 -> 0 | G100: =B!W57 -> 0 | H100: B
A101: =B!C58 -> 96 | B101: =B!E58 -> Teamster Drivers / Animal Wranglers | C101: =B!N58 -> 0 | D101: =B!O58 -> days | E101: =B!Q58 -> 0 | F101: =B!T58 -> 0 | G101: =B!W58 -> 0 | H101: B
A102: =B!C59 -> 97 | B102: =B!E59 -> Production Supervisor | C102: =B!N59 -> 0 | D102: =B!O59 -> days | E102: =B!Q59 -> 0 | F102: =B!T59 -> 0 | G102: =B!W59 -> 0 | H102: B
A103: =B!C60 -> 98 | B103: =B!E60 -> Assistant Production Supervisor | C103: =B!N60 -> 0 | D103: =B!O60 -> days | E103: =B!Q60 -> 0 | F103: =B!T60 -> 0 | G103: =B!W60 -> 0 | H103: B
A104: =B!C61 -> 99 | B104: =B!E61 -> Production Assistant | C104: =B!N61 -> 0 | D104: =B!O61 -> days | E104: =B!Q61 -> 0 | F104: =B!T61 -> 0 | G104: =B!W61 -> 0 | H104: B
A105: =B!C62 -> 100 | B105: =B!E62 -> Production Assistant | C105: =B!N62 -> 0 | D105: =B!O62 -> days | E105: =B!Q62 -> 0 | F105: =B!T62 -> 0 | G105: =B!W62 -> 0 | H105: B
F106: =B!O63 -> Sub Total B | G106: =B!W63 -> 0 | H106: B
F107: =B!O64 -> Fringes | G107: =B!W64 -> 0 | H107: B
F108: =B!O65 -> Total | G108: =B!W65 -> 0 | H108: B
A110: Line No | B110: Line Title | C110: Units | D110: Unit Type | E110: Rate | F110: QTY | G110: Estimate
A111: =CDE!C10 -> 101 | B111: =CDE!E10 -> Craft Service | C111: =CDE!N10 -> 0 | D111: =CDE!O10 -> each | E111: =CDE!Q10 -> 0 | F111: =CDE!T10 -> 0 | G111: =CDE!W10 -> 0 | H111: C
A112: =CDE!C11 -> 102 | B112: =CDE!E11 -> Per Diems | C112: =CDE!N11 -> 0 | D112: =CDE!O11 -> each | E112: =CDE!Q11 -> 0 | F112: =CDE!T11 -> 0 | G112: =CDE!W11 -> 0 | H112: C
A113: =CDE!C12 -> 103 | B113: =CDE!E12 -> Hotels | C113: =CDE!N12 -> 0 | D113: =CDE!O12 -> each | E113: =CDE!Q12 -> 0 | F113: =CDE!T12 -> 0 | G113: =CDE!W12 -> 0 | H113: C
A114: =CDE!C13 -> 104 | B114: =CDE!E13 -> Scouting Expenses | C114: =CDE!N13 -> 0 | D114: =CDE!O13 -> each | E114: =CDE!Q13 -> 0 | F114: =CDE!T13 -> 0 | G114: =CDE!W13 -> 0 | H114: C
A115: =CDE!C14 -> 105 | B115: =CDE!E14 -> Deliveries & Taxi | C115: =CDE!N14 -> 0 | D115: =CDE!O14 -> allow | E115: =CDE!Q14 -> 0 | F115: =CDE!T14 -> 0 | G115: =CDE!W14 -> 0 | H115: C
A116: =CDE!C15 -> 106 | B116: =CDE!E15 -> Car Rental | C116: =CDE!N15 -> 0 | D116: =CDE!O15 -> each | E116: =CDE!Q15 -> 0 | F116: =CDE!T15 -> 0 | G116: =CDE!W15 -> 0 | H116: C
A117: =CDE!C16 -> 107 | B117: =CDE!E16 -> Trucking | C117: =CDE!N16 -> 0 | D117: =CDE!O16 -> each | E117: =CDE!Q16 -> 0 | F117: =CDE!T16 -> 0 | G117: =CDE!W16 -> 0 | H117: C
A118: =CDE!C17 -> 108 | B118: =CDE!E17 -> Casting Director | C118: =CDE!J17+CDE!N17 -> 0 | D118: =CDE!O17 -> days | E118: =CDE!Q17 -> 400 | F118: =CDE!T17 -> 0 | G118: =CDE!W17 -> 0 | H118: C
A119: =CDE!C18 -> 109 | B119: =CDE!E18 -> Casting Facility | C119: =CDE!J18+CDE!N18 -> 0 | D119: =CDE!O18 -> days | E119: =CDE!Q18 -> 1100 | F119: =CDE!T18 -> 0 | G119: =CDE!W18 -> 0 | H119: C
A120: =CDE!C19 -> 110 | B120: =CDE!E19 -> Home Econ Supplies | C120: =CDE!N19 -> 0 | D120: =CDE!O19 -> each | E120: =CDE!Q19 -> 0 | F120: =CDE!T19 -> 0 | G120: =CDE!W19 -> 0 | H120: C
A121: =CDE!C20 -> 111 | B121: =CDE!E20 -> Telephone & Cable | C121: =CDE!N20 -> 0 | D121: =CDE!O20 -> each | E121: =CDE!Q20 -> 0 | F121: =CDE!T20 -> 0 | G121: =CDE!W20 -> 0 | H121: C
A122: =CDE!C21 -> 112 | B122: =CDE!E21 -> Working Meals | C122: =CDE!N21 -> 0 | D122: =CDE!O21 -> each | E122: =CDE!Q21 -> 0 | F122: =CDE!T21 -> 0 | G122: =CDE!W21 -> 0 | H122: C
A123: =CDE!C22 -> 113 | B123: =CDE!E22 -> Messengers | C123: =CDE!N22 -> 0 | D123: =CDE!O22 -> each | E123: =CDE!Q22 -> 0 | F123: =CDE!T22 -> 0 | G123: =CDE!W22 -> 0 | H123: C
F124: =CDE!O23 -> Total C | G124: =CDE!W23 -> 0 | H124: C
A127: Line No | B127: Line Title | C127: Units | D127: Unit Type | E127: Rate | F127: QTY | G127: Estimate
A128: =CDE!C27 -> 114 | B128: =CDE!E27 -> Location Fees | C128: =CDE!N27 -> 0 | D128: =CDE!O27 -> each | E128: =CDE!Q27 -> 0 | F128: =CDE!T27 -> 0 | G128: =CDE!W27 -> 0 | H128: D
A129: =CDE!C28 -> 115 | B129: =CDE!E28 -> Permits | C129: =CDE!N28 -> 0 | D129: =CDE!O28 -> each | E129: =CDE!Q28 -> 0 | F129: =CDE!T28 -> 0 | G129: =CDE!W28 -> 0 | H129: D
A130: =CDE!C29 -> 116 | B130: =CDE!E29 -> Lane Closures | C130: =CDE!N29 -> 0 | D130: =CDE!O29 -> each | E130: =CDE!Q29 -> 0 | F130: =CDE!T29 -> 0 | G130: =CDE!W29 -> 0 | H130: D
A131: =CDE!C30 -> 117 | B131: =CDE!E30 -> Set Security | C131: =CDE!N30 -> 0 | D131: =CDE!O30 -> each | E131: =CDE!Q30 -> 22 | F131: =CDE!T30 -> 0 | G131: =CDE!W30 -> 0 | H131: D
A132: =CDE!C31 -> 118 | B132: =CDE!E31 -> Cargo Van | C132: =CDE!N31 -> 0 | D132: =CDE!O31 -> each | E132: =CDE!Q31 -> 0 | F132: =CDE!T31 -> 0 | G132: =CDE!W31 -> 0 | H132: D
A133: =CDE!C32 -> 119 | B133: =CDE!E32 -> Production Trucking | C133: =CDE!N32 -> 0 | D133: =CDE!O32 -> each | E133: =CDE!Q32 -> 0 | F133: =CDE!T32 -> 0 | G133: =CDE!W32 -> 0 | H133: D
A134: =CDE!C33 -> 120 | B134: =CDE!E33 -> Camera Truck | C134: =CDE!N33 -> 0 | D134: =CDE!O33 -> each | E134: =CDE!Q33 -> 0 | F134: =CDE!T33 -> 0 | G134: =CDE!W33 -> 0 | H134: D
A135: =CDE!C34 -> 121 | B135: =CDE!E34 -> Car Rentals | C135: =CDE!N34 -> 0 | D135: =CDE!O34 -> each | E135: =CDE!Q34 -> 0 | F135: =CDE!T34 -> 0 | G135: =CDE!W34 -> 0 | H135: D
A136: =CDE!C35 -> 122 | B136: =CDE!E35 -> Bus Rentals | C136: =CDE!N35 -> 0 | D136: =CDE!O35 -> each | E136: =CDE!Q35 -> 0 | F136: =CDE!T35 -> 0 | G136: =CDE!W35 -> 0 | H136: D
A137: =CDE!C36 -> 123 | B137: =CDE!E36 -> Limousines | C137: =CDE!N36 -> 0 | D137: =CDE!O36 -> each | E137: =CDE!Q36 -> 0 | F137: =CDE!T36 -> 0 | G137: =CDE!W36 -> 0 | H137: D
A138: =CDE!C37 -> 124 | B138: =CDE!E37 -> Dressing Room Vehicles | C138: =CDE!N37 -> 0 | D138: =CDE!O37 -> each | E138: =CDE!Q37 -> 0 | F138: =CDE!T37 -> 0 | G138: =CDE!W37 -> 0 | H138: D
A139: =CDE!C38 -> 125 | B139: =CDE!E38 -> Production MoHo | C139: =CDE!N38 -> 0 | D139: =CDE!O38 -> each | E139: =CDE!Q38 -> 0 | F139: =CDE!T38 -> 0 | G139: =CDE!W38 -> 0 | H139: D
A140: =CDE!C39 -> 126 | B140: =CDE!E39 -> Other Vehicles | C140: =CDE!N39 -> 0 | D140: =CDE!O39 -> each | E140: =CDE!Q39 -> 0 | F140: =CDE!T39 -> 0 | G140: =CDE!W39 -> 0 | H140: D
A141: =CDE!C40 -> 127 | B141: =CDE!E40 -> Parking/Tolls/Gas | C141: =CDE!N40 -> 0 | D141: =CDE!O40 -> each | E141: =CDE!Q40 -> 0 | F141: =CDE!T40 -> 0 | G141: =CDE!W40 -> 0 | H141: D
A142: =CDE!C41 -> 128 | B142: =CDE!E41 -> Excess Bags/Homeland Security | C142: =CDE!N41 -> 0 | D142: =CDE!O41 -> each | E142: =CDE!Q41 -> 0 | F142: =CDE!T41 -> 0 | G142: =CDE!W41 -> 0 | H142: D
A143: =CDE!C42 -> 129 | B143: =CDE!E42 -> Air Fares | C143: =CDE!N42 -> 0 | D143: =CDE!O42 -> each | E143: =CDE!Q42 -> 0 | F143: =CDE!T42 -> 0 | G143: =CDE!W42 -> 0 | H143: D
A144: =CDE!C43 -> 130 | B144: =CDE!E43 -> Hotels | C144: =CDE!N43 -> 0 | D144: =CDE!O43 -> each | E144: =CDE!Q43 -> 0 | F144: =CDE!T43 -> 0 | G144: =CDE!W43 -> 0 | H144: D
A145: =CDE!C44 -> 131 | B145: =CDE!E44 -> Per Diems | C145: =CDE!N44 -> 0 | D145: =CDE!O44 -> each | E145: =CDE!Q44 -> 0 | F145: =CDE!T44 -> 0 | G145: =CDE!W44 -> 0 | H145: D
A146: =CDE!C45 -> 132 | B146: =CDE!E45 -> Talent Meals | C146: =CDE!N45 -> 0 | D146: =CDE!O45 -> each | E146: =CDE!Q45 -> 0 | F146: =CDE!T45 -> 0 | G146: =CDE!W45 -> 0 | H146: D
A147: =CDE!C46 -> 133 | B147: =CDE!E46 -> Breakfast | C147: =CDE!N46 -> 0 | D147: =CDE!O46 -> ppl | E147: =CDE!Q46 -> 0 | F147: =CDE!T46 -> 0 | G147: =CDE!W46 -> 0 | H147: D
A148: =CDE!C47 -> 134 | B148: =CDE!E47 -> Lunch | C148: =CDE!N47 -> 0 | D148: =CDE!O47 -> ppl | E148: =CDE!Q47 -> 0 | F148: =CDE!T47 -> 0 | G148: =CDE!W47 -> 0 | H148: D
A149: =CDE!C48 -> 135 | B149: =CDE!E48 -> Dinner | C149: =CDE!N48 -> 0 | D149: =CDE!O48 -> ppl | E149: =CDE!Q48 -> 0 | F149: =CDE!T48 -> 0 | G149: =CDE!W48 -> 0 | H149: D
A150: =CDE!C49 -> 136 | B150: =CDE!E49 -> Cabs/ Ubers/ Lyfts / Other Transportation | C150: =CDE!N49 -> 0 | D150: =CDE!O49 -> each | E150: =CDE!Q49 -> 0 | F150: =CDE!T49 -> 0 | G150: =CDE!W49 -> 0 | H150: D
A151: =CDE!C50 -> 137 | B151: =CDE!E50 -> Kit Rental | C151: =CDE!N50 -> 0 | D151: =CDE!O50 -> each | E151: =CDE!Q50 -> 0 | F151: =CDE!T50 -> 0 | G151: =CDE!W50 -> 0 | H151: D
A152: =CDE!C51 -> 138 | B152: =CDE!E51 -> Art Work | C152: =CDE!N51 -> 0 | D152: =CDE!O51 -> each | E152: =CDE!Q51 -> 0 | F152: =CDE!T51 -> 0 | G152: =CDE!W51 -> 0 | H152: D
A153: =CDE!C52 -> 139 | B153: =CDE!E52 -> Sustainable Practices | C153: =CDE!N52 -> 0 | D153: =CDE!O52 -> allow | E153: =CDE!Q52 -> 0 | F153: =CDE!T52 -> 0 | G153: =CDE!W52 -> 0 | H153: D
F154: =CDE!O53 -> Total D | G154: =CDE!W53 -> 0 | H154: D
A157: Line No | B157: Line Title | C157: Units | D157: Unit Type | E157: Rate | F157: QTY | G157: Estimate
A158: =CDE!C57 -> 140 | B158: =CDE!E57 -> Prop Rental | C158: =CDE!N57 -> 0 | D158: =CDE!O57 -> each | E158: =CDE!Q57 -> 333 | F158: =CDE!T57 -> 0 | G158: =CDE!W57 -> 0 | H158: E
A159: =CDE!C58 -> 141 | B159: =CDE!E58 -> Prop Purchase | C159: =CDE!N58 -> 0 | D159: =CDE!O58 -> each | E159: =CDE!Q58 -> 0 | F159: =CDE!T58 -> 0 | G159: =CDE!W58 -> 0 | H159: E
A160: =CDE!C59 -> 142 | B160: =CDE!E59 -> Prop Fabrication | C160: =CDE!N59 -> 0 | D160: =CDE!O59 -> each | E160: =CDE!Q59 -> 0 | F160: =CDE!T59 -> 0 | G160: =CDE!W59 -> 0 | H160: E
A161: =CDE!C60 -> 143 | B161: =CDE!E60 -> Wardrobe Rental | C161: =CDE!N60 -> 0 | D161: =CDE!O60 -> each | E161: =CDE!Q60 -> 0 | F161: =CDE!T60 -> 0 | G161: =CDE!W60 -> 0 | H161: E
A162: =CDE!C61 -> 144 | B162: =CDE!E61 -> Wardrobe Purchase | C162: =CDE!N61 -> 0 | D162: =CDE!O61 -> each | E162: =CDE!Q61 -> 0 | F162: =CDE!T61 -> 0 | G162: =CDE!W61 -> 0 | H162: E
A163: =CDE!C62 -> 145 | B163: =CDE!E62 -> Costumes | C163: =CDE!N62 -> 0 | D163: =CDE!O62 -> each | E163: =CDE!Q62 -> 0 | F163: =CDE!T62 -> 0 | G163: =CDE!W62 -> 0 | H163: E
A164: =CDE!C63 -> 146 | B164: =CDE!E63 -> Picture Vehicles | C164: =CDE!N63 -> 0 | D164: =CDE!O63 -> each | E164: =CDE!Q63 -> 0 | F164: =CDE!T63 -> 0 | G164: =CDE!W63 -> 0 | H164: E
A165: =CDE!C64 -> 147 | B165: =CDE!E64 -> Animals & Handlers | C165: =CDE!N64 -> 0 | D165: =CDE!O64 -> each | E165: =CDE!Q64 -> 0 | F165: =CDE!T64 -> 0 | G165: =CDE!W64 -> 0 | H165: E
A166: =CDE!C65 -> 148 | B166: =CDE!E65 -> Theatrical Makeup | C166: =CDE!N65 -> 0 | D166: =CDE!O65 -> each | E166: =CDE!Q65 -> 0 | F166: =CDE!T65 -> 0 | G166: =CDE!W65 -> 0 | H166: E
A167: =CDE!C66 -> 149 | B167: =CDE!E66 -> Product Prep / Color Correct | C167: =CDE!N66 -> 0 | D167: =CDE!O66 -> each | E167: =CDE!Q66 -> 0 | F167: =CDE!T66 -> 0 | G167: =CDE!W66 -> 0 | H167: E
A168: =CDE!C67 -> 150 | B168: =CDE!E67 -> Greens | C168: =CDE!N67 -> 0 | D168: =CDE!O67 -> each | E168: =CDE!Q67 -> 0 | F168: =CDE!T67 -> 0 | G168: =CDE!W67 -> 0 | H168: E
F169: =CDE!O68 -> Total E | G169: =CDE!W68 -> 0 | H169: E
A171: Line No | B171: Line Title | C171: Units | D171: Unit Type | E171: Rate | F171: QTY | G171: Estimate
A172: =FGH!C12 -> 151 | B172: =FGH!E12 -> Rental For Build Days | C172: =FGH!N12 -> 0 | D172: =FGH!O12 -> days | E172: =FGH!Q12 -> 0 | F172: =FGH!T12 -> 0 | G172: =FGH!W12 -> 0 | H172: F
A173: =FGH!C13 -> 152 | B173: =FGH!E13 -> Build OT Hours | C173: =FGH!N13 -> 0 | D173: =FGH!O13 -> hrs | E173: =FGH!Q13 -> 0 | F173: =FGH!T13 -> 0 | G173: =FGH!W13 -> 0 | H173: F
A174: =FGH!C14 -> 153 | B174: =FGH!E14 -> Rental for Pre-Lite Days | C174: =FGH!N14 -> 0 | D174: =FGH!O14 -> days | E174: =FGH!Q14 -> 0 | F174: =FGH!T14 -> 0 | G174: =FGH!W14 -> 0 | H174: F
A175: =FGH!C15 -> 154 | B175: =FGH!E15 -> Pre-Lite OT Hours | C175: =FGH!N15 -> 0 | D175: =FGH!O15 -> days | E175: =FGH!Q15 -> 0 | F175: =FGH!T15 -> 0 | G175: =FGH!W15 -> 0 | H175: F
A176: =FGH!C16 -> 155 | B176: =FGH!E16 -> Rental for Shoot Days | C176: =FGH!N16 -> 0 | D176: =FGH!O16 -> days | E176: =FGH!Q16 -> 0 | F176: =FGH!T16 -> 0 | G176: =FGH!W16 -> 0 | H176: F
A177: =FGH!C17 -> 156 | B177: =FGH!E17 -> Shoot OT Hours | C177: =FGH!N17 -> 0 | D177: =FGH!O17 -> hrs | E177: =FGH!Q17 -> 0 | F177: =FGH!T17 -> 0 | G177: =FGH!W17 -> 0 | H177: F
A178: =FGH!C18 -> 157 | B178: =FGH!E18 -> Rental for Strike Days | C178: =FGH!N18 -> 0 | D178: =FGH!O18 -> days | E178: =FGH!Q18 -> 0 | F178: =FGH!T18 -> 0 | G178: =FGH!W18 -> 0 | H178: F
A179: =FGH!C19 -> 158 | B179: =FGH!E19 -> Strike OT Hours | C179: =FGH!N19 -> 0 | D179: =FGH!O19 -> hrs | E179: =FGH!Q19 -> 0 | F179: =FGH!T19 -> 0 | G179: =FGH!W19 -> 0 | H179: F
A180: =FGH!C20 -> 159 | B180: =FGH!E20 -> Generator and Operator | C180: =FGH!N20 -> 0 | D180: =FGH!O20 -> days | E180: =FGH!Q20 -> 0 | F180: =FGH!T20 -> 0 | G180: =FGH!W20 -> 0 | H180: F
A181: =FGH!C21 -> 160 | B181: =FGH!E21 -> Stage Manager/Studio Security | C181: =FGH!N21 -> 0 | D181: =FGH!O21 -> days | E181: =FGH!Q21 -> 1222 | F181: =FGH!T21 -> 0 | G181: =FGH!W21 -> 0 | H181: F
A182: =FGH!C22 -> 161 | B182: =FGH!E22 -> Power Charges | C182: =FGH!N22 -> 0 | D182: =FGH!O22 -> days | E182: =FGH!Q22 -> 0 | F182: =FGH!T22 -> 0 | G182: =FGH!W22 -> 0 | H182: F
A183: =FGH!C23 -> 162 | B183: =FGH!E23 -> Misc Studio Charges | C183: =FGH!N23 -> 0 | D183: =FGH!O23 -> days | E183: =FGH!Q23 -> 0 | F183: =FGH!T23 -> 0 | G183: =FGH!W23 -> 0 | H183: F
A184: =FGH!C24 -> 163 | B184: =FGH!E24 -> Meals for Crew & Talent | C184: =FGH!N24 -> 0 | D184: =FGH!O24 -> days | E184: =FGH!Q24 -> 0 | F184: =FGH!T24 -> 0 | G184: =FGH!W24 -> 0 | H184: F
A185: =FGH!C25 -> 164 | B185: =FGH!E25 -> Air Conditioning | C185: =FGH!N25 -> 0 | D185: =FGH!O25 -> days | E185: =FGH!Q25 -> 0 | F185: =FGH!T25 -> 0 | G185: =FGH!W25 -> 0 | H185: F
A186: =FGH!C26 -> 165 | B186: =FGH!E26 -> Crew Parking | C186: =FGH!N26 -> 0 | D186: =FGH!O26 -> days | E186: =FGH!Q26 -> 0 | F186: =FGH!T26 -> 0 | G186: =FGH!W26 -> 0 | H186: F
A187: =FGH!C27 -> 166 | B187: =FGH!E27 -> Condor/Scissor Lift | C187: =FGH!N27 -> 0 | D187: =FGH!O27 -> days | E187: =FGH!Q27 -> 0 | F187: =FGH!T27 -> 0 | G187: =FGH!W27 -> 0 | H187: F
A188: =FGH!C28 -> 167 | B188: =FGH!E28 -> Steeldeck | C188: =FGH!N28 -> 0 | D188: =FGH!O28 -> days | E188: =FGH!Q28 -> 0 | F188: =FGH!T28 -> 0 | G188: =FGH!W28 -> 0 | H188: F
F189: =FGH!O29 -> Total F | G189: =FGH!W29 -> 0 | H189: F
A191: Line No | B191: Line Title | C191: Units | D191: Unit Type | E191: Rate | F191: QTY | G191: Estimate
A192: =FGH!C34 -> 168 | B192: =FGH!E34 -> Production Designer/Art Director | C192: =FGH!N34 -> 0 | D192: =FGH!O34 -> days | E192: =FGH!Q34 -> 1000 | F192: =FGH!T34 -> 0 | G192: =FGH!W34 -> 0 | H192: G
A193: =FGH!C35 -> 169 | B193: =FGH!E35 -> 0 | C193: =FGH!N35 -> 0 | D193: =FGH!O35 -> days | E193: =FGH!Q35 -> 0 | F193: =FGH!T35 -> 0 | G193: =FGH!W35 -> 0 | H193: G
A194: =FGH!C36 -> 170 | B194: =FGH!E36 -> Set Decorator | C194: =FGH!N36 -> 0 | D194: =FGH!O36 -> days | E194: =FGH!Q36 -> 0 | F194: =FGH!T36 -> 0 | G194: =FGH!W36 -> 0 | H194: G
A195: =FGH!C37 -> 171 | B195: =FGH!E37 -> Art Dept Coordinator | C195: =FGH!N37 -> 0 | D195: =FGH!O37 -> days | E195: =FGH!Q37 -> 1111 | F195: =FGH!T37 -> 0 | G195: =FGH!W37 -> 0 | H195: G
A196: =FGH!C38 -> 172 | B196: =FGH!E38 -> Prop Master | C196: =FGH!N38 -> 0 | D196: =FGH!O38 -> days | E196: =FGH!Q38 -> 0 | F196: =FGH!T38 -> 0 | G196: =FGH!W38 -> 0 | H196: G
A197: =FGH!C39 -> 173 | B197: =FGH!E39 -> Asst Props | C197: =FGH!N39 -> 0 | D197: =FGH!O39 -> days | E197: =FGH!Q39 -> 0 | F197: =FGH!T39 -> 0 | G197: =FGH!W39 -> 0 | H197: G
A198: =FGH!C40 -> 174 | B198: =FGH!E40 -> Swing | C198: =FGH!N40 -> 0 | D198: =FGH!O40 -> days | E198: =FGH!Q40 -> 0 | F198: =FGH!T40 -> 0 | G198: =FGH!W40 -> 0 | H198: G
A199: =FGH!C41 -> 175 | B199: =FGH!E41 -> Leadman | C199: =FGH!N41 -> 0 | D199: =FGH!O41 -> days | E199: =FGH!Q41 -> 0 | F199: =FGH!T41 -> 0 | G199: =FGH!W41 -> 0 | H199: G
A200: =FGH!C42 -> 176 | B200: =FGH!E42 -> Set Dresser | C200: =FGH!N42 -> 0 | D200: =FGH!O42 -> days | E200: =FGH!Q42 -> 0 | F200: =FGH!T42 -> 0 | G200: =FGH!W42 -> 0 | H200: G
A201: =FGH!C43 -> 177 | B201: =FGH!E43 -> Scenics | C201: =FGH!N43 -> 0 | D201: =FGH!O43 -> days | E201: =FGH!Q43 -> 0 | F201: =FGH!T43 -> 0 | G201: =FGH!W43 -> 0 | H201: G
A202: =FGH!C44 -> 178 | B202: =FGH!E44 -> Grips / Riggers | C202: =FGH!N44 -> 0 | D202: =FGH!O44 -> days | E202: =FGH!Q44 -> 0 | F202: =FGH!T44 -> 0 | G202: =FGH!W44 -> 0 | H202: G
A203: =FGH!C45 -> 179 | B203: =FGH!E45 -> 0 | C203: =FGH!N45 -> 0 | D203: =FGH!O45 -> days | E203: =FGH!Q45 -> 0 | F203: =FGH!T45 -> 0 | G203: =FGH!W45 -> 0 | H203: G
A204: =FGH!C46 -> 180 | B204: =FGH!E46 -> 0 | C204: =FGH!N46 -> 0 | D204: =FGH!O46 -> days | E204: =FGH!Q46 -> 0 | F204: =FGH!T46 -> 0 | G204: =FGH!W46 -> 0 | H204: G
F205: =FGH!O47 -> Sub Total G | G205: =FGH!W47 -> 0 | H205: G
F206: =FGH!O48 -> Fringes G | G206: =FGH!W48 -> 0 | H206: G
F207: =FGH!O49 -> Total G | G207: =FGH!W49 -> 0 | H207: G
... 517 more rows

Sheet Expenses_Template (hidden)
DD1: Expenses
C8: P1. | D8: Blank Expenses
E9: Description | N9: Days | Q9: Rate | T9: QTY | X9: Estimate | AB9: Actual | AF9: Variance
C10: 0 | O10: days | P10: @ | S10: x | W10: =N10*Q10*(IF(ISNUMBER(T10),T10,IF(ISNUMBER(N10),1,0))) -> 0 | AB10: 0 | AF10: =AB10-W10 -> 0
C11: =C10+1 -> 1 | O11: days | P11: @ | S11: x | W11: =N11*Q11*(IF(ISNUMBER(T11),T11,IF(ISNUMBER(N11),1,0))) -> 0 | AB11: 0 | AF11: =AB11-W11 -> 0
C12: =C11+1 -> 2 | O12: days | P12: @ | S12: x | W12: =N12*Q12*(IF(ISNUMBER(T12),T12,IF(ISNUMBER(N12),1,0))) -> 0 | AB12: 0 | AF12: 0
C13: 3 | O13: days | P13: @ | S13: x | W13: =N13*Q13*(IF(ISNUMBER(T13),T13,IF(ISNUMBER(N13),1,0))) -> 0 | AB13: 0 | AF13: 0
C14: 4 | O14: days | P14: @ | S14: x | W14: 0 | AB14: 0 | AF14: 0
C15: 5 | O15: days | P15: @ | S15: x | W15: 0 | AB15: 0 | AF15: 0
C16: 6 | O16: days | P16: @ | S16: x | W16: 0 | AB16: 0 | AF16: 0
C17: 7 | O17: days | P17: @ | S17: x | W17: 0 | AB17: 0 | AF17: 0
C18: 8 | O18: days | P18: @ | S18: x | W18: 0 | AB18: 0 | AF18: 0
C19: 9 | O19: days | P19: @ | S19: x | W19: 0 | AB19: 0 | AF19: 0
C20: 10 | O20: days | P20: @ | S20: x | W20: 0 | AB20: 0 | AF20: 0
C21: 11 | O21: days | P21: @ | S21: x | W21: 0 | AB21: 0 | AF21: 0
C22: 12 | O22: days | P22: @ | S22: x | W22: 0 | AB22: 0 | AF22: 0
C23: 13 | O23: days | P23: @ | S23: x | W23: 0 | AB23: 0 | AF23: 0
C24: 14 | O24: days | P24: @ | S24: x | W24: 0 | AB24: 0 | AF24: 0
C25: 15 | O25: days | P25: @ | S25: x | W25: 0 | AB25: 0 | AF25: 0
C26: 16 | O26: days | P26: @ | S26: x | W26: 0 | AB26: 0 | AF26: 0
C27: 17 | O27: days | P27: @ | S27: x | W27: 0 | AB27: 0 | AF27: 0
C28: 18 | O28: days | P28: @ | S28: x | W28: 0 | AB28: 0 | AF28: 0
C29: 19 | O29: days | P29: @ | S29: x | W29: 0 | AB29: 0 | AF29: 0
C30: 20 | O30: days | P30: @ | S30: x | W30: 0 | AB30: 0 | AF30: 0
C31: 21 | O31: days | P31: @ | S31: x | W31: 0 | AB31: 0 | AF31: 0
C32: 22 | O32: days | P32: @ | S32: x | W32: 0 | AB32: 0 | AF32: 0
C33: 23 | O33: days | P33: @ | S33: x | W33: 0 | AB33: 0 | AF33: 0
C34: 24 | O34: days | P34: @ | S34: x | W34: 0 | AB34: 0 | AF34: 0
C35: 25 | O35: days | P35: @ | S35: x | W35: 0 | AB35: 0 | AF35: 0
C36: 26 | O36: days | P36: @ | S36: x | W36: 0 | AB36: 0 | AF36: 0
C37: 27 | O37: days | P37: @ | S37: x | W37: 0 | AB37: 0 | AF37: 0
C38: 28 | O38: days | P38: @ | S38: x | W38: 0 | AB38: 0 | AF38: 0
C39: 29 | O39: days | P39: @ | S39: x | W39: 0 | AB39: 0 | AF39: 0
C40: 30 | O40: days | P40: @ | S40: x | W40: 0 | AB40: 0 | AF40: 0
C41: 31 | O41: days | P41: @ | S41: x | W41: 0 | AB41: 0 | AF41: 0
C42: 32 | O42: days | P42: @ | S42: x | W42: 0 | AB42: 0 | AF42: 0
C43: 33 | O43: days | P43: @ | S43: x | W43: 0 | AB43: 0 | AF43: 0
C44: 34 | O44: days | P44: @ | S44: x | W44: 0 | AB44: 0 | AF44: 0
C45: 35 | O45: days | P45: @ | S45: x | W45: 0 | AB45: 0 | AF45: 0
C46: 36 | O46: days | P46: @ | S46: x | W46: 0 | AB46: 0 | AF46: 0
C47: 37 | O47: days | P47: @ | S47: x | W47: 0 | AB47: 0 | AF47: 0
C48: 38 | O48: days | P48: @ | S48: x | W48: 0 | AB48: 0 | AF48: 0
C49: 39 | O49: days | P49: @ | S49: x | W49: 0 | AB49: 0 | AF49: 0
C50: 40 | O50: days | P50: @ | S50: x | W50: 0 | AB50: 0 | AF50: 0
C51: 41 | O51: days | P51: @ | S51: x | W51: 0 | AB51: 0 | AF51: 0
C52: 42 | O52: days | P52: @ | S52: x | W52: 0 | AB52: 0 | AF52: 0
C53: 43 | O53: days | P53: @ | S53: x | W53: 0 | AB53: 0 | AF53: 0
C54: 44 | O54: days | P54: @ | S54: x | W54: 0 | AB54: 0 | AF54: 0
C55: 45 | O55: days | P55: @ | S55: x | W55: 0 | AB55: 0 | AF55: 0
C56: 46 | O56: days | P56: @ | S56: x | W56: 0 | AB56: 0 | AF56: 0
C57: 47 | O57: days | P57: @ | S57: x | W57: 0 | AB57: 0 | AF57: 0
C58: 48 | O58: days | P58: @ | S58: x | W58: 0 | AB58: 0 | AF58: 0
C59: 49 | O59: days | P59: @ | S59: x | W59: 0 | AB59: 0 | AF59: 0
C60: 50 | O60: days | P60: @ | S60: x | W60: =N60*Q60*(IF(ISNUMBER(T60),T60,IF(ISNUMBER(N60),1,0))) -> 0 | AB60: 0 | AF60: 0
C61: 51 | O61: days | P61: @ | S61: x | W61: =N61*Q61*(IF(ISNUMBER(T61),T61,IF(ISNUMBER(N61),1,0))) -> 0 | AB61: 0 | AF61: 0
C62: 52 | O62: days | P62: @ | S62: x | W62: =N62*Q62*(IF(ISNUMBER(T62),T62,IF(ISNUMBER(N62),1,0))) -> 0 | AB62: 0 | AF62: 0
C63: 53 | O63: days | P63: @ | S63: x | W63: =N63*Q63*(IF(ISNUMBER(T63),T63,IF(ISNUMBER(N63),1,0))) -> 0 | AB63: 0 | AF63: 0
C64: 54 | O64: days | P64: @ | S64: x | W64: =N64*Q64*(IF(ISNUMBER(T64),T64,IF(ISNUMBER(N64),1,0))) -> 0 | AB64: 0 | AF64: 0
C65: 55 | O65: days | P65: @ | S65: x | W65: 0 | AB65: 0 | AF65: 0
C66: 56 | O66: days | P66: @ | S66: x | W66: 0 | AB66: 0 | AF66: 0
C67: 57 | O67: days | P67: @ | S67: x | W67: 0 | AB67: 0 | AF67: 0
C68: 58 | O68: days | P68: @ | S68: x | W68: 0 | AB68: 0 | AF68: 0
C69: 59 | O69: days | P69: @ | S69: x | W69: 0 | AB69: 0 | AF69: 0
O70: ="Sub Total "&D8 -> Sub Total Blank Expenses | W70: =SUM(W10:Z63) -> 0 | AB70: =SUM(AB10:AD69) -> 0 | AF70: 0
O71: ="Handling "&D8 -> Handling Blank Expenses | W71: =W70*AR71 -> 0 | AB71: =W71 -> 0 | AF71: 0 | AJ71: ="Handling "&D8 -> Handling Blank Expenses | AR71: 0
O72: ="Total "&D8 -> Total Blank Expenses | W72: =SUM(W70:Z71) -> 0 | AB72: =SUM(AB70:AD71) -> 0 | AF72: 0
